Workbook

Sheet RESUMO (hidden)
D1: ESTADO DO MATO GROSSO DO SUL
D2: =CRONOGRAMA_DES!C2 -> PREFEITURA MUNICIPAL DE SIDROLÃNDIA
D3: SECRETARIA DE OBRAS
A4: PLANILHA DE ORÇAMENTO
A5: Objeto: | B5: =ORÇAMENTO_DES!B5 -> INFRAESTRUTURA - URBANA - PAVIMENTAÇÃO ASFÁLTICA, DRENAGEM, ACESSIBILIDADE E SINALIZAÇÃO VIÁRIA EM DIVERSAS RUAS NO MUNICÍPIO DE SIDROLÂNDIA/MS | K5: RESPONSÁVEL ORÇAMENTO
A6: Município: | B6: =RIGHT(OFFSET(DADOS!$I$2,DADOS!$A$7,0,1,1),LEN(OFFSET(DADOS!$I$2,DADOS!$A$7,0,1,1))-24) -> SIDROLÃNDIA | K6: FÁBIO MARQUES RIBEIRO ENGENHEIRO CIVIL CREA: 15.276
A7: Local: | B7: =ORÇAMENTO_DES!B7 -> DIVERSAS RUAS
A8: Prazo exec.: | B8: =ORÇAMENTO_DES!B8 -> 240 | C8: dias | I8: BDI: | J8: ='BDI DESONERADO'!E26 -> 0.2675 | K8: SERVIÇOS | L8: BDI: | M8: ='BDI NAO DESONERADO'!E25 -> 0.207 | N8: SERVIÇOS
A9: Sist./Ref.: | B9: =ORÇAMENTO_DES!B9 -> SINAPI (Março/2023)/ Sicro (outubro/2022) | J9: ='BDI DESONERADO'!E45 -> 0.1632 | K9: MATERIAIS | M9: ='BDI NAO DESONERADO'!E43 -> 0.1696 | N9: MATERIAIS
I10: COM DESONERADO | L10: S/ DESONERAÇÃO
A11: Item | B11: Descrição | I11: Preço Total | L11: Preço Total
A12: =ORÇAMENTO_DES!A12 -> 1. | B12: =ORÇAMENTO_DES!E12 -> SERVIÇOS PRELIMINARES | I12: =ORÇAMENTO_DES!K21 -> 39862.68 | L12: =ORÇAMENTO_DES!N21 -> 39091.39
A13: =ORÇAMENTO_DES!A22 -> 2. | B13: =ORÇAMENTO_DES!E22 -> DRENAGEM - MOVIMENTAÇÃO DE SOLO | I13: =ORÇAMENTO_DES!K38 -> 537572.88 | L13: =ORÇAMENTO_DES!N38 -> 543125.07
A14: =ORÇAMENTO_DES!A39 -> 3. | B14: =ORÇAMENTO_DES!E39 -> DRENAGEM - DISPOSITIVOS ESTRUTURAIS | I14: =ORÇAMENTO_DES!K53 -> 1617291.19 | L14: =ORÇAMENTO_DES!N53 -> 1569063.21
A15: =ORÇAMENTO_DES!A54 -> 4. | B15: =ORÇAMENTO_DES!E54 -> IMPLANTAÇÃO ASFÁLTICA - TERRAPLENAGEM | I15: =ORÇAMENTO_DES!K66 -> 93922.14 | L15: =ORÇAMENTO_DES!N66 -> 92268.07
A16: =ORÇAMENTO_DES!A67 -> 5. | B16: =ORÇAMENTO_DES!E67 -> IMPLANTAÇÃO ASFÁLTICA - PAVIMENTAÇÃO | I16: =ORÇAMENTO_DES!K85 -> 622956.96 | L16: =ORÇAMENTO_DES!N85 -> 598985.05
A17: =ORÇAMENTO_DES!A86 -> 6. | B17: =ORÇAMENTO_DES!E86 -> SERVIÇOS COMPLEMENTARES | I17: =ORÇAMENTO_DES!K92 -> 287027.16 | L17: =ORÇAMENTO_DES!N92 -> 290322.2
A18: =ORÇAMENTO_DES!A93 -> 7. | B18: =ORÇAMENTO_DES!E93 -> PASSEIO COM ACESSIBILIDADE | I18: =ORÇAMENTO_DES!K101 -> 153926.25 | L18: =ORÇAMENTO_DES!N101 -> 152544.71
A19: =ORÇAMENTO_DES!A102 -> 8. | B19: =ORÇAMENTO_DES!E102 -> SINALIZAÇÃO VIÁRIA PERMANENTE | I19: =ORÇAMENTO_DES!K107 -> 83025.55 | L19: =ORÇAMENTO_DES!N107 -> 79671.9
A20: =ORÇAMENTO_DES!A108 -> 9. | B20: =ORÇAMENTO_DES!E108 -> ADMINISTRAÇÃO LOCAL | I20: =ORÇAMENTO_DES!K110 -> 266278.87 | L20: =ORÇAMENTO_DES!N110 -> 289006.54

Sheet MOBIL-DESMOB (hidden)
A1: MOBILIZAÇÃO E DESMOBILIZAÇÃO
A2: OBRA | B2: =COMPOSIÇÃO!B2 -> INFRAESTRUTURA - URBANA - PAVIMENTAÇÃO ASFÁLTICA, DRENAGEM, ACESSIBILIDADE E SINALIZAÇÃO VIÁRIA EM DIVERSAS RUAS NO MUNICÍPIO DE SIDROLÂNDIA/MS
A3: LOCAL | B3: =COMPOSIÇÃO!B3 -> DIVERSAS RUAS
A4: DATA
A6: COMPOSIÇÃO 24 | B6: MOBILIZAÇÃO E DESMOBILIZAÇÃO | Q6: UN
A7: CÓDIGO | B7: DESCRIÇÃO | C7: TRANSP RODOV | E7: DMT | G7: VELOCIDADE PAVIMENTADA | H7: VELOCIDADE NÃO PAVIMENTADA | I7: FATOR RETORNO | J7: TEMPO DE VIAGEM | K7: QUANTIDADE | L7: C/DESONERAÇÃO | O7: S/DESONERAÇÃO
C8: CÓD | D8: FU | E8: PAVIMENTADA | F8: NÃO PAVIMENTADA | L8: CUSTO HORÁRIO EQUIPAMENTO | M8: CUSTO HORÁRIO MOTORISTA | N8: VALOR TOTAL | O8: CUSTO HORÁRIO EQUIPAMENTO | P8: CUSTO HORÁRIO MOTORISTA | Q8: VALOR TOTAL
A9: 3363 | B9: =UPPER(IFERROR(VLOOKUP(A9,[2]planilhanull!$G$7:$L$6905,2,FALSE),IFERROR(VLOOKUP(A9,'[3]serv SEM DES'!$B$1:$H$7477,2,FALSE),IFERROR(VLOOKUP(A9,[4]sheet1!$A$8:$E$5187,2,FALSE),0)))) -> GUINDAUTO HIDRAULICO, CAPACIDADE MAXIMA DE CARGA 6200 KG, MOMENTO MAXIMO DE CARGA 11,7 TM , ALCANCE MAXIMO HORIZONTAL 9,70 M, PARA MONTAGEM SOBRE CHASSI DE CAMINHAO PBT MINIMO 13000 KG (INCLUI MONTAGEM, NAO INCLUI CAMINHAO) | C9: E9665 | D9: 1 | E9: 135 | F9: 0 | G9: 80 | H9: 30 | I9: 2 | J9: =(E9/G9+F9/H9)*I9 -> 3.375 | K9: 1 | L9: =222.4383*D9 -> 222.4383 | M9: 0 | N9: =D9*I9*L9*K9*J9 -> 1501.458525 | O9: 225.8306 | P9: 0 | Q9: =D9*I9*J9*O9*K9 -> 1524.35655
A10: 4090 | B10: =UPPER(IFERROR(VLOOKUP(A10,[2]planilhanull!$G$7:$L$6905,2,FALSE),IFERROR(VLOOKUP(A10,'[3]serv SEM DES'!$B$1:$H$7477,2,FALSE),IFERROR(VLOOKUP(A10,[4]sheet1!$A$8:$E$5187,2,FALSE),0)))) -> MOTONIVELADORA POTENCIA BASICA LIQUIDA (PRIMEIRA MARCHA) 125 HP , PESO BRUTO 13843 KG, LARGURA DA LAMINA DE 3,7 M | C10: E9665 | D10: 1 | E10: 135 | F10: 0 | G10: 80 | H10: 30 | I10: 2 | J10: =(E10/G10+F10/H10)*I10 -> 3.375 | K10: 2 | L10: 222.4383 | M10: 0 | N10: =D10*I10*L10*K10*J10 -> 3002.91705 | O10: 225.8306 | P10: 0 | Q10: =D10*I10*J10*O10*K10 -> 3048.7131
A11: 4262 | B11: =UPPER(IFERROR(VLOOKUP(A11,[2]planilhanull!$G$7:$L$6905,2,FALSE),IFERROR(VLOOKUP(A11,'[3]serv SEM DES'!$B$1:$H$7477,2,FALSE),IFERROR(VLOOKUP(A11,[4]sheet1!$A$8:$E$5187,2,FALSE),0)))) -> PA CARREGADEIRA SOBRE RODAS, POTENCIA LIQUIDA 128 HP, CAPACIDADE DA CACAMBA DE 1,7 A 2,8 M3, PESO OPERACIONAL MAXIMO DE 11632 KG | C11: E9665 | D11: 1 | E11: 135 | F11: 0 | G11: 80 | H11: 30 | I11: 2 | J11: 3.375 | K11: 1 | L11: 222.4383 | M11: 0 | N11: 1501.458525 | O11: 225.8306 | P11: 0 | Q11: 1524.35655
A12: 7622 | B12: =UPPER(IFERROR(VLOOKUP(A12,[2]planilhanull!$G$7:$L$6905,2,FALSE),IFERROR(VLOOKUP(A12,'[3]serv SEM DES'!$B$1:$H$7477,2,FALSE),IFERROR(VLOOKUP(A12,[4]sheet1!$A$8:$E$5187,2,FALSE),0)))) -> TRATOR DE ESTEIRAS, POTENCIA DE 100 HP, PESO OPERACIONAL DE 9,4 T, COM LAMINA COM CAPACIDADE DE 2,19 M3 | C12: E9665 | D12: 1 | E12: 135 | F12: 0 | G12: 80 | H12: 30 | I12: 2 | J12: 3.375 | K12: 2 | L12: 222.4383 | M12: 0 | N12: 3002.91705 | O12: 225.8306 | P12: 0 | Q12: 3048.7131
A13: 7640 | B13: =UPPER(IFERROR(VLOOKUP(A13,[2]planilhanull!$G$7:$L$6905,2,FALSE),IFERROR(VLOOKUP(A13,'[3]serv SEM DES'!$B$1:$H$7477,2,FALSE),IFERROR(VLOOKUP(A13,[4]sheet1!$A$8:$E$5187,2,FALSE),0)))) -> TRATOR DE PNEUS COM POTENCIA DE 85 CV, TRACAO 4 X 4, PESO COM LASTRO DE 4675 KG | C13: E9665 | D13: 0.5 | E13: 135 | F13: 0 | G13: 80 | H13: 30 | I13: 2 | J13: 3.375 | K13: 1 | L13: 111.21915 | M13: 0 | N13: 375.3646313 | O13: 225.8306 | P13: 0 | Q13: 762.178275
A14: 10535 | B14: =UPPER(IFERROR(VLOOKUP(A14,[2]planilhanull!$G$7:$L$6905,2,FALSE),IFERROR(VLOOKUP(A14,'[3]serv SEM DES'!$B$1:$H$7477,2,FALSE),IFERROR(VLOOKUP(A14,[4]sheet1!$A$8:$E$5187,2,FALSE),0)))) -> BETONEIRA CAPACIDADE NOMINAL 400 L, CAPACIDADE DE MISTURA 280 L, MOTOR ELETRICO TRIFASICO 220/380 V POTENCIA 2 CV, SEM CARREGADOR | C14: E9665 | D14: 0.5 | E14: 135 | F14: 0 | G14: 80 | H14: 30 | I14: 2 | J14: 3.375 | K14: 1 | L14: 111.21915 | M14: 0 | N14: 375.3646313 | O14: 225.8306 | P14: 0 | Q14: 762.178275
A15: 10646 | B15: =UPPER(IFERROR(VLOOKUP(A15,[2]planilhanull!$G$7:$L$6905,2,FALSE),IFERROR(VLOOKUP(A15,'[3]serv SEM DES'!$B$1:$H$7477,2,FALSE),IFERROR(VLOOKUP(A15,[4]sheet1!$A$8:$E$5187,2,FALSE),0)))) -> ROLO COMPACTADOR VIBRATORIO DE UM CILINDRO, ACO LISO, POTENCIA 80 HP, PESO OPERACIONAL MAXIMO 8,1 T, IMPACTO DINAMICO 16,15/9,5 T, LARGURA TRABALHO 1,68 M | C15: E9665 | D15: 0.5 | E15: 135 | F15: 0 | G15: 80 | H15: 30 | I15: 2 | J15: 3.375 | K15: 1 | L15: 111.21915 | M15: 0 | N15: 375.3646313 | O15: 225.8306 | P15: 0 | Q15: 762.178275
A16: 10685 | B16: =UPPER(IFERROR(VLOOKUP(A16,[2]planilhanull!$G$7:$L$6905,2,FALSE),IFERROR(VLOOKUP(A16,'[3]serv SEM DES'!$B$1:$H$7477,2,FALSE),IFERROR(VLOOKUP(A16,[4]sheet1!$A$8:$E$5187,2,FALSE),0)))) -> ESCAVADEIRA HIDRAULICA SOBRE ESTEIRAS, CACAMBA 0,80M3, PESO OPERACIONAL 17T, POTENCIA BRUTA 111HP | C16: E9665 | D16: 1 | E16: 135 | F16: 0 | G16: 80 | H16: 30 | I16: 2 | J16: 3.375 | K16: 2 | L16: 165.0991 | M16: 0 | N16: 2228.83785 | O16: 168.4914 | P16: 0 | Q16: 2274.6339
A17: 13458 | B17: =UPPER(IFERROR(VLOOKUP(A17,[2]planilhanull!$G$7:$L$6905,2,FALSE),IFERROR(VLOOKUP(A17,'[3]serv SEM DES'!$B$1:$H$7477,2,FALSE),IFERROR(VLOOKUP(A17,[4]sheet1!$A$8:$E$5187,2,FALSE),0)))) -> COMPACTADOR DE SOLOS DE PERCURSAO (SOQUETE) COM MOTOR A GASOLINA 4 TEMPOS DE 4 HP (4 CV) | C17: E9665 | D17: 1 | E17: 135 | F17: 0 | G17: 80 | H17: 30 | I17: 2 | J17: 3.375 | K17: 1 | L17: 165.0991 | M17: 0 | N17: 1114.418925 | O17: 168.4914 | P17: 0 | Q17: 1137.31695
A18: 13726 | B18: =UPPER(IFERROR(VLOOKUP(A18,[2]planilhanull!$G$7:$L$6905,2,FALSE),IFERROR(VLOOKUP(A18,'[3]serv SEM DES'!$B$1:$H$7477,2,FALSE),IFERROR(VLOOKUP(A18,[4]sheet1!$A$8:$E$5187,2,FALSE),0)))) -> VASSOURA MECANICA REBOCAVEL COM ESCOVA CILINDRICA LARGURA UTIL DE VARRIMENTO = 2,44M | C18: E9665 | D18: 1 | E18: 135 | F18: 0 | G18: 80 | H18: 30 | I18: 2 | J18: 3.375 | K18: 1 | L18: 165.0991 | M18: 0 | N18: 1114.418925 | O18: 168.4914 | P18: 0 | Q18: 1137.31695
A19: 13836 | B19: =UPPER(IFERROR(VLOOKUP(A19,[2]planilhanull!$G$7:$L$6905,2,FALSE),IFERROR(VLOOKUP(A19,'[3]serv SEM DES'!$B$1:$H$7477,2,FALSE),IFERROR(VLOOKUP(A19,[4]sheet1!$A$8:$E$5187,2,FALSE),0)))) -> MAQUINA EXTRUSORA DE CONCRETO PARA GUIAS E SARJETAS, COM MOTOR A DIESEL DE 14 CV | C19: E9665 | D19: 1 | E19: 135 | F19: 0 | G19: 80 | H19: 30 | I19: 2 | J19: 3.375 | K19: 1 | L19: 165.0991 | M19: 0 | N19: 1114.418925 | O19: 168.4914 | P19: 0 | Q19: 1137.31695
A20: 14511 | B20: =UPPER(IFERROR(VLOOKUP(A20,[2]planilhanull!$G$7:$L$6905,2,FALSE),IFERROR(VLOOKUP(A20,'[3]serv SEM DES'!$B$1:$H$7477,2,FALSE),IFERROR(VLOOKUP(A20,[4]sheet1!$A$8:$E$5187,2,FALSE),0)))) -> ROLO COMPACTADOR DE PNEUS, ESTATICO, PRESSAO VARIAVEL, POTENCIA 110 HP, PESO SEM/COM LASTRO 10,8/27 T, LARGURA DE ROLAGEM 2,30 M | C20: E9665 | D20: 1 | E20: 135 | F20: 0 | G20: 80 | H20: 30 | I20: 2 | J20: 3.375 | K20: 1 | L20: =222.4383*D20 -> 222.4383 | M20: 0 | N20: 1501.458525 | O20: 205.2557 | P20: 0 | Q20: 1385.475975
A21: 14525 | B21: =UPPER(IFERROR(VLOOKUP(A21,[2]planilhanull!$G$7:$L$6905,2,FALSE),IFERROR(VLOOKUP(A21,'[3]serv SEM DES'!$B$1:$H$7477,2,FALSE),IFERROR(VLOOKUP(A21,[4]sheet1!$A$8:$E$5187,2,FALSE),0)))) -> ESCAVADEIRA HIDRAULICA SOBRE ESTEIRAS COM CACAMBA DE 1,20 M3, PESO OPERACIONAL 21 T, POTENCIA BRUTA 155 HP | C21: E9665 | D21: 1 | E21: 135 | F21: 0 | G21: 80 | H21: 30 | I21: 2 | J21: =(E21/G21+F21/H21)*I21 -> 3.375 | K21: 1 | L21: =222.4383*D21 -> 222.4383 | M21: 0 | N21: =D21*I21*L21*K21*J21 -> 1501.458525 | O21: 225.8306 | P21: 0 | Q21: =D21*I21*J21*O21*K21 -> 1524.35655
A22: 14626 | B22: =UPPER(IFERROR(VLOOKUP(A22,[2]planilhanull!$G$7:$L$6905,2,FALSE),IFERROR(VLOOKUP(A22,'[3]serv SEM DES'!$B$1:$H$7477,2,FALSE),IFERROR(VLOOKUP(A22,[4]sheet1!$A$8:$E$5187,2,FALSE),0)))) -> ROLO COMPACTADOR VIBRATORIO TANDEM, ACO LISO, POTENCIA 125 HP, PESO SEM/COM LASTRO 10,20/11,65 T, LARGURA DE TRABALHO 1,73 M | C22: E9665 | D22: 1 | E22: 135 | F22: 0 | G22: 80 | H22: 30 | I22: 2 | J22: =(E22/G22+F22/H22)*I22 -> 3.375 | K22: 1 | L22: =222.4383*D22 -> 222.4383 | M22: 0 | N22: =D22*I22*L22*K22*J22 -> 1501.458525 | O22: 225.8306 | P22: 0 | Q22: =D22*I22*J22*O22*K22 -> 1524.35655
A23: 36531 | B23: =UPPER(IFERROR(VLOOKUP(A23,[2]planilhanull!$G$7:$L$6905,2,FALSE),IFERROR(VLOOKUP(A23,'[3]serv SEM DES'!$B$1:$H$7477,2,FALSE),IFERROR(VLOOKUP(A23,[4]sheet1!$A$8:$E$5187,2,FALSE),0)))) -> RETROESCAVADEIRA SOBRE RODAS COM CARREGADEIRA, TRACAO 4 X 4, POTENCIA LIQUIDA 88 HP, PESO OPERACIONAL MINIMO DE 6674 KG, CAPACIDADE DA CARREGADEIRA DE 1,00 M3 E DA RETROESCAVADEIRA MINIMA DE 0,26 M3, PROFUNDIDADE DE ESCAVACAO MAXIMA DE 4,37 M | C23: E9665 | D23: 1 | E23: 135 | F23: 0 | G23: 80 | H23: 30 | I23: 2 | J23: 3.375 | K23: 1 | L23: =222.4383*D23 -> 222.4383 | M23: 0 | N23: 1501.458525 | O23: 225.8306 | P23: 0 | Q23: 1524.35655
A24: E9665 | B24: CAVALO MECÂNICO COM SEMIRREBOQUE COM CAPACIDADE DE 22 T - 240 KW | C24: E9665 | D24: 1 | E24: 135 | F24: 0 | G24: 80 | H24: 30 | I24: 2 | J24: 3.375 | K24: 1 | L24: =222.4383*D24 -> 222.4383 | M24: 0 | N24: 1501.458525 | O24: 225.8306 | P24: 0 | Q24: 1524.35655
A25: E9571 | B25: Caminhão tanque com capacidade de 10000 l - 188 kW | C25: E9571 | D25: 1 | E25: 135 | F25: 21.71 | G25: 70 | H25: 30 | I25: 2 | J25: 5.30447619 | K25: 2 | L25: 165.0991 | M25: 0 | N25: 3503.05698 | O25: 168.4914 | P25: 0 | Q25: 3575.034478
A26: E9579 | B26: Caminhão basculante com capacidade de 10 m³ - 188 kW | C26: E9579 | D26: 1 | E26: 135 | F26: 21.71 | G26: 70 | H26: 30 | I26: 2 | J26: 5.30447619 | K26: 10 | L26: 165.0991 | M26: 0 | N26: 17515.2849 | O26: 168.4914 | P26: 0 | Q26: 17875.17239
A27: E9687 | B27: Caminhão carroceria com capacidade de 5 t - 115 kW | C27: E9687 | D27: 1 | E27: 135 | F27: 21.71 | G27: 70 | H27: 30 | I27: 2 | J27: 5.30447619 | K27: 1 | L27: 165.0991 | M27: 0 | N27: 1751.52849 | O27: 168.4914 | P27: 0 | Q27: 1787.517239
A28: E9667 | B28: CAMINHÃO BASCULANTE COM CAPACIDADE DE 14 M³ - 188 KW | C28: E9667 | D28: 1 | E28: 135 | F28: 21.71 | G28: 70 | H28: 30 | I28: 2 | J28: 5.30447619 | K28: 7 | L28: 165.0991 | M28: 0 | N28: 12260.69943 | O28: 168.4914 | P28: 0 | Q28: 12512.62067
A29: 10775 | B29: =UPPER(IFERROR(VLOOKUP(A29,[2]planilhanull!$G$7:$L$6905,2,FALSE),IFERROR(VLOOKUP(A29,'[3]serv SEM DES'!$B$1:$H$7477,2,FALSE),IFERROR(VLOOKUP(A29,[4]sheet1!$A$8:$E$5187,2,FALSE),0)))) -> LOCACAO DE CONTAINER 2,30 X 6,00 M, ALT. 2,50 M, COM 1 SANITARIO, PARA ESCRITORIO, COMPLETO, SEM DIVISORIAS INTERNAS | C29: E9665 | D29: 0.5 | E29: 135 | F29: 0 | G29: 80 | H29: 30 | I29: 2 | J29: 3.375 | K29: 1 | L29: =222.4383*D29 -> 111.21915 | M29: 0 | N29: 375.3646313 | O29: 225.8306 | P29: 0 | Q29: 762.178275
A30: 10776 | B30: =UPPER(IFERROR(VLOOKUP(A30,[2]planilhanull!$G$7:$L$6905,2,FALSE),IFERROR(VLOOKUP(A30,'[3]serv SEM DES'!$B$1:$H$7477,2,FALSE),IFERROR(VLOOKUP(A30,[4]sheet1!$A$8:$E$5187,2,FALSE),0)))) -> LOCACAO DE CONTAINER 2,30 X 6,00 M, ALT. 2,50 M, PARA ESCRITORIO, SEM DIVISORIAS INTERNAS E SEM SANITARIO | C30: E9665 | D30: 0.5 | E30: 135 | F30: 0 | G30: 80 | H30: 30 | I30: 2 | J30: 3.375 | K30: 1 | L30: =222.4383*D30 -> 111.21915 | M30: 0 | N30: 375.3646313 | O30: 225.8306 | P30: 0 | Q30: 762.178275
A31: 10779 | B31: =UPPER(IFERROR(VLOOKUP(A31,[2]planilhanull!$G$7:$L$6905,2,FALSE),IFERROR(VLOOKUP(A31,'[3]serv SEM DES'!$B$1:$H$7477,2,FALSE),IFERROR(VLOOKUP(A31,[4]sheet1!$A$8:$E$5187,2,FALSE),0)))) -> LOCACAO DE CONTAINER 2,30 X 4,30 M, ALT. 2,50 M, P/ SANITARIO, C/ 5 BACIAS, 1 LAVATORIO E 4 MICTORIOS | C31: E9665 | D31: 0.5 | E31: 135 | F31: 0 | G31: 80 | H31: 30 | I31: 2 | J31: 3.375 | K31: 1 | L31: =222.4383*D31 -> 111.21915 | M31: 0 | N31: 375.3646313 | O31: 225.8306 | P31: 0 | Q31: 762.178275
N32: =SUM(N9:N31) -> 59370.89599 | Q32: =SUM(Q9:Q31) -> 62639.04066
A33: OBS: | B33: TRECHO | C33: DMT
B34: DOURADOS - ELDORADO | C34: 221 | D34: KM
B35: CAMPO GRANDE - ELDORADO | C35: 445 | D35: KM

Sheet ORÇAMENTO_DES
D1: ESTADO DO MATO GROSSO DO SUL
D3: SECRETARIA DE OBRAS
A4: PLANILHA DE ORÇAMENTO
A5: Objeto: | B5: INFRAESTRUTURA - URBANA - PAVIMENTAÇÃO ASFÁLTICA, DRENAGEM, ACESSIBILIDADE E SINALIZAÇÃO VIÁRIA EM DIVERSAS RUAS NO MUNICÍPIO DE SIDROLÂNDIA/MS | K5: RESPONSÁVEL ORÇAMENTO
A6: Município: | B6: SIDROLÃNDIA | K6: FÁBIO MARQUES RIBEIRO ENGENHEIRO CIVIL CREA: 15.276
A7: Local: | B7: DIVERSAS RUAS
A8: Prazo exec.: | B8: 240 | C8: dias | I8: BDI: | J8: 0.2675 | K8: SERVIÇOS | L8: BDI: | M8: 0.207 | N8: SERVIÇOS
A9: Sist./Ref.: | B9: SINAPI (Março/2023)/ Sicro (outubro/2022)
I10: COM DESONERADO | L10: S/ DESONERAÇÃO
A11: Item | B11: Código | C11: Serv/Ins | D11: Referencial | E11: Descrição | F11: DMT | G11: Unid. | H11: Qtde. | I11: Custo Unitário | J11: Preço Unitário | K11: Preço Total | L11: Custo Unitário | M11: Preço Unitário | N11: Preço Total
A12: 1. | E12: SERVIÇOS PRELIMINARES
A13: 1.1 | B13: COMP 14 | C13: SERVIÇO | D13: COMPOSIÇÃO | E13: PLACA DE OBRA EM CHAPA DE ACO GALVANIZADO (ref. antigo cód. 74209/1) | G13: M2 | H13: 8 | I13: 373.9 | J13: 473.92 | K13: 3791.36 | L13: 380.33 | M13: 459.06 | N13: 3672.48
A14: 1.2 | B14: COMP 01 | C14: SERVIÇO | D14: COMPOSIÇÃO | E14: LIGAÇÃO PROVISÓRIA DE ÁGUA | G14: UN | H14: 1 | I14: 891.31 | J14: 1129.74 | K14: 1129.74 | L14: 934.8 | M14: 1128.3 | N14: 1128.3
A15: 1.3 | B15: 10775 | C15: SERVIÇO | D15: SINAPI | E15: LOCACAO DE CONTAINER 2,30 X 6,00 M, ALT. 2,50 M, COM 1 SANITARIO, PARA ESCRITORIO, COMPLETO, SEM DIVISORIAS INTERNAS (NAO INCLUI MOBILIZACAO/DESMOBILIZACAO) | G15: MES | H15: 8 | I15: 823,00 | J15: 1043.15 | K15: 8345.2 | L15: 823,00 | M15: 993.36 | N15: 7946.88
A16: 1.4 | B16: 10776 | C16: SERVIÇO | D16: SINAPI | E16: LOCACAO DE CONTAINER 2,30 X 6,00 M, ALT. 2,50 M, PARA ESCRITORIO, SEM DIVISORIAS INTERNAS E SEM SANITARIO (NAO INCLUI MOBILIZACAO/DESMOBILIZACAO) | G16: MES | H16: 8 | I16: 642,96 | J16: 814.95 | K16: 6519.6 | L16: 642,96 | M16: 776.05 | N16: 6208.4
A17: 1.5 | B17: 10779 | C17: SERVIÇO | D17: SINAPI | E17: LOCACAO DE CONTAINER 2,30 X 4,30 M, ALT. 2,50 M, P/ SANITARIO, C/ 5 BACIAS, 1 LAVATORIO E 4 MICTORIOS (NAO INCLUI MOBILIZACAO/DESMOBILIZACAO) | G17: MES | H17: 8 | I17: 1.028,75 | J17: 1303.94 | K17: 10431.52 | L17: 1.028,75 | M17: 1241.7 | N17: 9933.6
A18: 1.6 | B18: 4815 | C18: SERVIÇO | D18: SINAPI | E18: BALDE VERMELHO PARA SINALIZACAO DE VIAS | G18: UN | H18: 55 | I18: 5,83 | J18: 7.39 | K18: 406.45 | L18: 5,83 | M18: 7.04 | N18: 387.2
A19: 1.7 | B19: COMP 15 | C19: SERVIÇO | D19: COMPOSIÇÃO | E19: SERVIÇOS TOPOGRAFICOS PARA PAVIMENTAÇÃO, INCLUSIVE NOTA DE SERVIÇOS, ACOMPANHAMENTO E GREIDE (REFER. SINAPI CÓD. 78472) | G19: M2 | H19: 16493.8 | I19: 0.3 | J19: 0.38 | K19: 6267.64 | L19: 0.34 | M19: 0.41 | N19: 6762.45
A20: 1.8 | B20: COMP 16 | C20: SERVIÇO | D20: COMPOSIÇÃO | E20: SONDAGEM DE INVESTIGAÇÃO DE INTERFERÊNCIAS SUBTERRÂNEAS, INCLUINDO ESCAVAÇÕES MECÂNICA E MANUAL E REATERRO | G20: UN | H20: 9 | I20: 260.46 | J20: 330.13 | K20: 2971.17 | L20: 280.96 | M20: 339.12 | N20: 3052.08
E21: Total - SERVIÇOS PRELIMINARES | K21: 39862.68 | N21: 39091.39
A22: 2. | E22: DRENAGEM - MOVIMENTAÇÃO DE SOLO
E23: ESCAVAÇÃO
A24: 2.1 | B24: 37524 | C24: SERVIÇO | D24: SINAPI | E24: TELA PLASTICA LARANJA, TIPO TAPUME PARA SINALIZACAO, MALHA RETANGULAR, ROLO 1.20 X 50 M (L X C) | G24: M | H24: 590.4 | I24: 2,68 | J24: 3.4 | K24: 2007.36 | L24: 2,68 | M24: 3.23 | N24: 1906.99
A25: 2.2 | B25: 93358 | C25: SERVIÇO | D25: SINAPI | E25: ESCAVAÇÃO MANUAL DE VALA COM PROFUNDIDADE MENOR OU IGUAL A 1,30 M. AF_02/2021 | G25: M3 | H25: 351.28 | I25: 67,41 | J25: 85.44 | K25: 30013.36 | L25: 74.88 | M25: 90.38 | N25: 31748.68
A26: 2.3 | B26: 102302 | C26: SERVIÇO | D26: SINAPI | E26: ESCAVAÇÃO MECANIZADA DE VALA COM PROF. ATÉ 1,5 M (MÉDIA MONTANTE E JUSANTE/UMA COMPOSIÇÃO POR TRECHO), RETROESCAV. (0,26 M3), LARG. MENOR QUE 0,8 M, EM SOLO MOLE, LOCAIS COM BAIXO NÍVEL DE NTERFERÊNCIA. AF_02/2021 | G26: M3 | H26: 883.75 | I26: 8,92 | J26: 11.31 | K26: 9995.21 | L26: 9.1 | M26: 10.98 | N26: 9703.57
A27: 2.4 | B27: 90092 | C27: SERVIÇO | D27: SINAPI | E27: ESCAVAÇÃO MECANIZADA DE VALA COM PROF. MAIOR QUE 1,5 M E ATÉ 3,0 M(MÉDIA MONTANTE E JUSANTE/UMA COMPOSIÇÃO POR TRECHO), ESCAVADEIRA (0,8 M3), LARG. MENOR QUE 1,5 M, EM SOLO DE 1A CATEGORIA, LOCAIS COM BAIXO NÍVEL DE INTERFERÊNCIA. AF_02/2021 | G27: M3 | H27: 6141.67 | I27: 5,72 | J27: 7.25 | K27: 44527.11 | L27: 5.97 | M27: 7.21 | N27: 44281.44
E28: ESCORAMENTO
A29: 2.5 | B29: 101579 | C29: SERVIÇO | D29: SINAPI | E29: ESCORAMENTO DE VALA, TIPO DESCONTÍNUO, COM PROFUNDIDADE DE 1,5 A 3,0 M, LARGURA MAIOR OU IGUAL A 1,5 M E MENOR QUE 2,5 M. AF_08/2020 | G29: M2 | H29: 5988.86 | I29: 41,19 | J29: 52.21 | K29: 312678.38 | L29: 43.65 | M29: 52.69 | N29: 315553.03
E30: PREPARO DE FUNDO DE VALA
A31: 2.6 | B31: 101616 | C31: SERVIÇO | D31: SINAPI | E31: PREPARO DE FUNDO DE VALA COM LARGURA MENOR QUE 1,5 M (ACERTO DO SOLO NATURAL). AF_08/2020 | G31: M2 | H31: 496.8 | I31: 4,93 | J31: 6.25 | K31: 3105 | L31: 5.51 | M31: 6.65 | N31: 3303.72
A32: 2.7 | B32: 101617 | C32: SERVIÇO | D32: SINAPI | E32: PREPARO DE FUNDO DE VALA COM LARGURA MAIOR OU IGUAL A 1,5 M E MENOR QUE 2,5 M (ACERTO DO SOLO NATURAL). AF_08/2020 | G32: M2 | H32: 2155.2 | I32: 2,43 | J32: 3.08 | K32: 6638.02 | L32: 2.72 | M32: 3.28 | N32: 7069.05
E33: REATERRO
A34: 2.8 | B34: 93379 | C34: SERVIÇO | D34: SINAPI | E34: REATERRO MECANIZADO DE VALA COM RETROESCAVADEIRA (CAPACIDADE DA CAÇAMBA DA RETRO: 0,26 M³ / POTÊNCIA: 88 HP), LARGURA DE 0,8 A 1,5 M, PROFUNDIDADE ATÉ 1,5 M, COM SOLO DE 1ª CATEGORIA EM LOCAIS COM BAIXO NÍVEL DE INTERFERÊNCIA. AF_04/2016 | G34: M3 | H34: 769.5 | I34: 17,35 | J34: 21.99 | K34: 16921.31 | L34: 18.45 | M34: 22.27 | N34: 17136.76
A35: 2.9 | B35: 93380 | C35: SERVIÇO | D35: SINAPI | E35: REATERRO MECANIZADO DE VALA COM RETROESCAVADEIRA (CAPACIDADE DA CAÇAMBA DA RETRO: 0,26 M³ / POTÊNCIA: 88 HP), LARGURA ATÉ 0,8 M, PROFUNDIDADE DE 1,5 A 3,0 M, COM SOLO DE 1ª CATEGORIA EM LOCAIS COM BAIXO NÍVEL DE INTERFERÊNCIA. AF_04/2016 | G35: M3 | H35: 5150.36 | I35: 14,31 | J35: 18.14 | K35: 93427.53 | L35: 15.16 | M35: 18.3 | N35: 94251.58
A36: 2.10 | B36: 100975 | C36: SERVIÇO | D36: SINAPI | E36: CARGA, MANOBRA E DESCARGA DE SOLOS E MATERIAIS GRANULARES EM CAMINHÃO BASCULANTE 14 M³ - CARGA COM PÁ CARREGADEIRA (CAÇAMBA DE 1,7 A 2,8 M³ / 128 HP) E DESCARGA LIVRE (UNIDADE: M3). AF_07/2020 | G36: M3 | H36: 812.26 | I36: 7,95 | J36: 10.08 | K36: 8187.58 | L36: 8.3 | M36: 10.02 | N36: 8138.84
A37: 2.11 | B37: 95876 | C37: SERVIÇO | D37: SINAPI | E37: TRANSPORTE COM CAMINHÃO BASCULANTE DE 14 M³, EM VIA URBANA PAVIMENTADA, DMT ATÉ 30 KM (UNIDADE: M3XKM). AF_07/2020 | G37: M3XKM | H37: 4061.3 | I37: 1,96 | J37: 2.48 | K37: 10072.02 | L37: 2.05 | M37: 2.47 | N37: 10031.41
E38: Total - MICRO E MACRODRENAGEM - TERRAPLENAGEM | K38: 537572.88 | N38: 543125.07
A39: 3. | E39: DRENAGEM - DISPOSITIVOS ESTRUTURAIS
A40: 3.1 | B40: 7781 | C40: INSUMO | D40: SINAPI | E40: TUBO DE CONCRETO SIMPLES PARA AGUAS PLUVIAIS, CLASSE PS1, COM ENCAIXE PONTA E BOLSA, DIAMETRO NOMINAL DE 400 MM | G40: M | H40: 621 | I40: 70,90 | J40: 89.87 | K40: 55809.27 | L40: 70,90 | M40: 85.58 | N40: 53145.18
A41: 3.2 | B41: 7750 | C41: INSUMO | D41: SINAPI | E41: TUBO DE CONCRETO ARMADO PARA AGUAS PLUVIAIS, CLASSE PA-1, COM ENCAIXE PONTA E BOLSA, DIAMETRO NOMINAL DE 800 MM | G41: M | H41: 1347 | I41: 369,37 | J41: 468.18 | K41: 630638.46 | L41: 372,70 | M41: 449.85 | N41: 605947.95
A42: 3.3 | B42: 101014 | C42: INSUMO | D42: SINAPI | E42: CARGA, MANOBRA E DESCARGA DE TUBOS DE CONCRETO, DN 400 MM, EM CAMINHÃO CARROCERIA COM GUINDAUTO (MUNCK) 11,7 TM. AF_07/2020 | G42: T | H42: 98.12 | I42: 38,31 | J42: 48.56 | K42: 4764.71 | L42: 38.76 | M42: 46.78 | N42: 4590.05
A43: 3.4 | B43: 101465 | C43: INSUMO | D43: SINAPI | E43: CARGA, MANOBRA E DESCARGA DE TUBOS DE CONCRETO, DN 800 MM, EM CAMINHÃO CARROCERIA COM GUINDAUTO (MUNCK) 11,7 TM. AF_07/2020 | G43: T | H43: 855.36 | I43: 24,62 | J43: 31.21 | K43: 26695.79 | L43: 24.91 | M43: 30.07 | N43: 25720.67
A44: 3.5 | B44: 100952 | C44: INSUMO | D44: SINAPI | E44: TRANSPORTE COM CAMINHÃO CARROCERIA COM GUINDAUTO (MUNCK), MOMENTO MÁXIMO DE CARGA 11,7 TM, EM VIA URBANA PAVIMENTADA, DMT ATÉ 30KM (UNIDADE: TXKM). AF_07/2020 | G44: TXKM | H44: 28603.89 | I44: 2,70 | J44: 3.42 | K44: 97825.3 | L44: 2.69 | M44: 3.25 | N44: 92962.64
A45: 3.6 | B45: 100953 | C45: SERVIÇO | D45: SINAPI | E45: TRANSPORTE COM CAMINHÃO CARROCERIA COM GUINDAUTO (MUNCK), MOMENTO MÁXIMO DE CARGA 11,7 TM, EM VIA URBANA PAVIMENTADA, ADICIONAL PARA DMT EXCEDENTE A 30 KM (UNIDADE: TXKM). AF_07/2020 | G45: TXKM | H45: 59114.71 | I45: 1,07 | J45: 1.36 | K45: 80396.01 | L45: 1.07 | M45: 1.29 | N45: 76257.97
A46: 3.7 | B46: 92809 | C46: SERVIÇO | D46: SINAPI | E46: ASSENTAMENTO DE TUBO DE CONCRETO PARA REDES COLETORAS DE ÁGUAS PLUVIAIS, DIÂMETRO DE 400 MM, JUNTA RÍGIDA, INSTALADO EM LOCAL COM BAIXO NÍVEL DE INTERFERÊNCIAS (NÃO INCLUI FORNECIMENTO). AF_12/2015 | G46: M | H46: 621 | I46: 50,33 | J46: 63.79 | K46: 39613.59 | L46: 54.12 | M46: 65.32 | N46: 40563.72
A47: 3.8 | B47: 92813 | C47: SERVIÇO | D47: SINAPI | E47: ASSENTAMENTO DE TUBO DE CONCRETO PARA REDES COLETORAS DE ÁGUAS PLUVIAIS, DIÂMETRO DE 800 MM, JUNTA RÍGIDA, INSTALADO EM LOCAL COM BAIXO NÍVEL DE INTERFERÊNCIAS (NÃO INCLUI FORNECIMENTO). AF_12/2015 | G47: M | H47: 1347 | I47: 98,48 | J47: 124.82 | K47: 168132.54 | L47: 105.69 | M47: 127.57 | N47: 171836.79
A48: 3.9 | B48: COMP 03 | C48: SERVIÇO | D48: COMPOSIÇÃO | E48: PV-1 - POÇO-DE-VISITA C/ MEDIDA EXT. 2,32X2,32M, EM ALVEN. DE TIJOJO MACIÇO UMA VEZ, REVEST. INTERNO COM CHAPISCO E REBOCO, LASTRO DE BRITA DE 12CM, BERÇO DE 18CM EM CONCRETO FCK=15MPA, LAJE DE 12CM EM CONCRETO ARMADO FCK=20MPA, INCL. FORMA, ESC. MANUAL E REAT. APILOADO | G48: UN | H48: 25 | I48: 6625.75 | J48: 8398.14 | K48: 209953.5 | L48: 6951.36 | M48: 8390.29 | N48: 209757.25
A49: 3.10 | B49: 99319 | C49: SERVIÇO | D49: SINAPI | E49: CHAMINÉ CIRCULAR PARA POÇO DE VISITA PARA DRENAGEM, EM ALVENARIA COM TIJOLOS CERÂMICOS MACIÇOS, DIÂMETRO INTERNO = 0,6 M. AF_12/2020 | G49: M | H49: 17.56 | I49: 862,33 | J49: 1093 | K49: 19193.08 | L49: 908.38 | M49: 1096.41 | N49: 19252.95
A50: 3.11 | B50: COMP 13 | C50: SERVIÇO | D50: COMPOSIÇÃO | E50: TAMPAO FOFO ARTICULADO, CLASSE B125 CARGA MAX 12,5 T, REDONDO TAMPA 600 MM REDE PLUVIAL/ESGOTO, ASSENTADO COM ARG CIM/AREIA 1:4, FORNECIMENTO E ASSENTAMENTO (ref. antigo cód. 83627) | G50: UN | H50: 25 | I50: 673.56 | J50: 853.74 | K50: 21343.5 | L50: 591.65 | M50: 714.12 | N50: 17853
A51: 3.12 | B51: COMP 05 | C51: SERVIÇO | D51: COMPOSIÇÃO | E51: BLDC - BOCA-DE-LOBO DUPLA, EM CONCRETO SIMPLES FCK 20 MPA, INCLUINDO ESCAVAÇÃO, FORMA, ARMAÇÃO, CALÇAMENTO AO REDOR E GRELHA EM FOFO TIPO PESADA, CONFORME PROJETO | G51: UN | H51: 80 | I51: 2567.37 | J51: 3254.14 | K51: 260331.2 | L51: 2573.12 | M51: 3105.76 | N51: 248460.8
A52: 3.13 | B52: COMP 23 | C52: SERVIÇO | D52: COMPOSIÇÃO | E52: LEVANTAMENTO OU REBAIXAMENTO DE TAMPÃO DE POÇO DE VISITA | G52: UN | H52: 8 | I52: 255.84 | J52: 324.28 | K52: 2594.24 | L52: 281.09 | M52: 339.28 | N52: 2714.24
E53: Total - MICRO E MACRODRENAGEM - DISPOSITIVOS AUXILIARES | K53: 1617291.19 | N53: 1569063.21
A54: 4. | E54: IMPLANTAÇÃO ASFÁLTICA - TERRAPLENAGEM
A55: 4.1 | E55: LIMPEZA
A56: 4.1.1 | B56: 98525 | C56: SERVIÇO | D56: SINAPI | E56: LIMPEZA MECANIZADA DE CAMADA VEGETAL, VEGETAÇÃO E PEQUENAS ÁRVORES (DIÂMETRO DE TRONCO MENOR QUE 0,20 M), COM TRATOR DE ESTEIRAS.AF_05/2018 | G56: M2 | H56: 16384.32 | I56: 0,34 | J56: 0.43 | K56: 7045.26 | L56: 0.36 | M56: 0.43 | N56: 7045.25
A57: 4.2 | E57: CORTE
A58: 4.2.1 | B58: 101115 | C58: SERVIÇO | D58: SINAPI | E58: ESCAVAÇÃO HORIZONTAL EM SOLO DE 1A CATEGORIA COM TRATOR DE ESTEIRAS (150HP/LÂMINA: 3,18M3). AF_07/2020 | G58: M3 | H58: 1256.62 | I58: 3,20 | J58: 4.06 | K58: 5101.88 | L58: 3.27 | M58: 3.95 | N58: 4963.64
A59: 4.2.2 | B59: 100975 | C59: SERVIÇO | D59: SINAPI | E59: CARGA, MANOBRA E DESCARGA DE SOLOS E MATERIAIS GRANULARES EM CAMINHÃO BASCULANTE 14 M³ - CARGA COM PÁ CARREGADEIRA (CAÇAMBA DE 1,7 A 2,8 M³ / 128 HP) E DESCARGA LIVRE (UNIDADE: M3). AF_07/2020 | G59: M3 | H59: 1633.62 | I59: 7,95 | J59: 10.08 | K59: 16466.89 | L59: 8.3 | M59: 10.02 | N59: 16368.87
A60: 4.2.3 | B60: 95876 | C60: SERVIÇO | D60: SINAPI | E60: TRANSPORTE COM CAMINHÃO BASCULANTE DE 14 M³, EM VIA URBANA PAVIMENTADA, DMT ATÉ 30 KM (UNIDADE: M3XKM). AF_07/2020 | G60: M3XKM | H60: 8168.05 | I60: 1,96 | J60: 2.48 | K60: 20256.76 | L60: 2.05 | M60: 2.47 | N60: 20175.08
A61: 4.3 | E61: ATERRO
A62: 4.3.2 | B62: 6077 | C62: SERVIÇO | D62: SINAPI | E62: ARGILA OU BARRO PARA ATERRO/REATERRO (RETIRADO NA JAZIDA, SEM TRANSPORTE) | G62: M3 | H62: 471.62 | I62: 41,29 | J62: 52.34 | K62: 24684.59 | L62: 41,29 | M62: 49.84 | N62: 23505.54
A63: 4.3.3 | B63: 100975 | C63: SERVIÇO | D63: SINAPI | E63: CARGA, MANOBRA E DESCARGA DE SOLOS E MATERIAIS GRANULARES EM CAMINHÃO BASCULANTE 14 M³ - CARGA COM PÁ CARREGADEIRA (CAÇAMBA DE 1,7 A 2,8 M³ / 128 HP) E DESCARGA LIVRE (UNIDADE: M3). AF_07/2020 | G63: M3 | H63: 613.13 | I63: 7,95 | J63: 10.08 | K63: 6180.35 | L63: 8.3 | M63: 10.02 | N63: 6143.56
A64: 4.3.4 | B64: 95876 | C64: SERVIÇO | D64: SINAPI | E64: TRANSPORTE COM CAMINHÃO BASCULANTE DE 14 M³, EM VIA URBANA PAVIMENTADA, DMT ATÉ 30 KM (UNIDADE: M3XKM). AF_07/2020 | G64: M3XKM | H64: 3065.56 | I64: 1,96 | J64: 2.48 | K64: 7602.59 | L64: 2.05 | M64: 2.47 | N64: 7571.93
A65: 4.3.5 | B65: 96385 | C65: SERVIÇO | D65: SINAPI | E65: EXECUÇÃO E COMPACTAÇÃO DE ATERRO COM SOLO PREDOMINANTEMENTE ARGILOSO - EXCLUSIVE SOLO, ESCAVAÇÃO, CARGA E TRANSPORTE. AF_11/2019 | G65: M3 | H65: 471.62 | I65: 11,01 | J65: 13.96 | K65: 6583.82 | L65: 11.41 | M65: 13.77 | N65: 6494.2
E66: Total - IMPLANTAÇÃO ASFÁLTICA - TERRAPLENAGEM | K66: 93922.14 | N66: 92268.07
A67: 5. | E67: IMPLANTAÇÃO ASFÁLTICA - PAVIMENTAÇÃO
E68: SUBLEITO
A69: 5.1 | B69: 100576 | C69: SERVIÇO | D69: SINAPI | E69: REGULARIZAÇÃO E COMPACTAÇÃO DE SUBLEITO DE SOLO PREDOMINANTEMENTE ARGILOSO. AF_11/2019 | G69: M2 | H69: 16493.79 | I69: 2,36 | J69: 2.99 | K69: 49316.43 | L69: 2.45 | M69: 2.96 | N69: 48821.61
E70: BASE
A71: 5.2 | B71: 96396 | C71: SERVIÇO | D71: SINAPI | E71: EXECUÇÃO E COMPACTAÇÃO DE BASE E OU SUB BASE PARA PAVIMENTAÇÃO DE BRITA GRADUADA SIMPLES - EXCLUSIVE CARGA E TRANSPORTE. AF_11/2019 | G71: M3 | H71: 24.75 | I71: 166,06 | J71: 210.48 | K71: 5209.38 | L71: 166.55 | M71: 201.03 | N71: 4975.49
A72: 5.3 | B72: 100975 | C72: SERVIÇO | D72: SINAPI | E72: CARGA, MANOBRA E DESCARGA DE SOLOS E MATERIAIS GRANULARES EM CAMINHÃO BASCULANTE 14 M³ - CARGA COM PÁ CARREGADEIRA (CAÇAMBA DE 1,7 A 2,8 M³ / 128 HP) E DESCARGA LIVRE (UNIDADE: M3). AF_07/2020 | G72: M3 | H72: 32.14 | I72: 7,95 | J72: 10.08 | K72: 323.97 | L72: 8.3 | M72: 10.02 | N72: 322.04
A73: 5.4 | B73: 95876 | C73: SERVIÇO | D73: SINAPI | E73: TRANSPORTE COM CAMINHÃO BASCULANTE DE 14 M³, EM VIA URBANA PAVIMENTADA, DMT ATÉ 30 KM (UNIDADE: M3XKM). AF_07/2020 | G73: M3XKM | H73: 964.88 | I73: 1,96 | J73: 2.48 | K73: 2392.9 | L73: 2.05 | M73: 2.47 | N73: 2383.25
A74: 5.5 | B74: 93593 | C74: SERVIÇO | D74: SINAPI | E74: TRANSPORTE COM CAMINHÃO BASCULANTE DE 14 M³, EM VIA URBANA PAVIMENTADA, ADICIONAL PARA DMT EXCEDENTE A 30 KM (UNIDADE: M3XKM). AF_07/2020 | G74: M3XKM | H74: 1575.98 | I74: 0,79 | J74: 1 | K74: 1575.98 | L74: 0.82 | M74: 0.99 | N74: 1560.22
E75: IMPRIMAÇÃO
A76: 5.7 | B76: COMP 17 | C76: SERVIÇO | D76: COMPOSIÇÃO | E76: EXECUÇÃO DE IMPRIMAÇÃO COM IMPRIMA (EMULSÃO ASFÁLTICA PARA IMPRIMAÇÃO) | G76: M2 | H76: 14231.74 | I76: 7.23 | J76: 9.16 | K76: 130362.74 | L76: 7.26 | M76: 8.76 | N76: 124670.04
A77: 5.8 | B77: 102330 | C77: SERVIÇO | D77: SINAPI | E77: TRANSPORTE COM CAMINHÃO TANQUE DE TRANSPORTE DE MATERIAL ASFÁLTICO DE 30000 L, EM VIA URBANA PAVIMENTADA, DMT ATÉ 30KM (UNIDADE: TXKM). AF_07/2020 | G77: TXKM | H77: 512.34 | I77: 1,33 | J77: 1.69 | K77: 865.85 | L77: 1.38 | M77: 1.67 | N77: 855.6
A78: 5.9 | B78: 102331 | C78: SERVIÇO | D78: SINAPI | E78: TRANSPORTE COM CAMINHÃO TANQUE DE TRANSPORTE DE MATERIAL ASFÁLTICO DE 30000 L, EM VIA URBANA PAVIMENTADA, ADICIONAL PARA DMT EXCEDENTE A 30 KM (UNIDADE: TXKM). AF_07/2020 | G78: TXKM | H78: 836.83 | I78: 0,51 | J78: 0.65 | K78: 543.94 | L78: 0.54 | M78: 0.65 | N78: 543.93
E79: CONCRETO ASFÁLTICO
A80: 5.10 | B80: COMP 24 | C80: SERVIÇO | D80: COMPOSIÇÃO | E80: CONSTRUÇÃO DE PAVIMENTO COM TRATAMENTO SUPERFICIAL DUPLO, COM EMULSÃO ASFÁLTICA RR-2C, COM CAPA SELANTE. AF_01/2020 | G80: M2 | H80: 14231.74 | I80: 20.97 | J80: 26.58 | K80: 378279.65 | L80: 21.03 | M80: 25.38 | N80: 361201.56
A81: 5.11 | B81: 101003 | C81: SERVIÇO | D81: SINAPI | E81: CARGA DE MISTURA ASFÁLTICA EM CAMINHÃO BASCULANTE 14 M³ (UNIDADE: T). AF_07/2020 | G81: T | H81: 590.21 | I81: 6,28 | J81: 7.96 | K81: 4698.07 | L81: 6.57 | M81: 7.93 | N81: 4680.36 | T81: 27.213
A82: 5.12 | B82: COMP 25 | C82: SERVIÇO | D82: COMPOSIÇÃO | E82: TRANSPORTE COMERCIAL DE BRITA | G82: M3XKM | H82: 699.42 | I82: 1.18 | J82: 1.5 | K82: 1049.13 | L82: 1.17 | M82: 1.41 | N82: 986.18
A83: 5.13 | B83: 102330 | C83: SERVIÇO | D83: SINAPI | E83: TRANSPORTE COM CAMINHÃO TANQUE DE TRANSPORTE DE MATERIAL ASFÁLTICO DE 30000 L, EM VIA URBANA PAVIMENTADA, DMT ATÉ 30KM (UNIDADE: TXKM). AF_07/2020 | G83: TXKM | H83: 17706.56 | I83: 1,33 | J83: 1.69 | K83: 29924.09 | L83: 1.38 | M83: 1.67 | N83: 29569.95
A84: 5.14 | B84: 102331 | C84: SERVIÇO | D84: SINAPI | E84: TRANSPORTE COM CAMINHÃO TANQUE DE TRANSPORTE DE MATERIAL ASFÁLTICO DE 30000 L, EM VIA URBANA PAVIMENTADA, ADICIONAL PARA DMT EXCEDENTE A 30 KM (UNIDADE: TXKM). AF_07/2020 | G84: TXKM | H84: 28330.5 | I84: 0,51 | J84: 0.65 | K84: 18414.83 | L84: 0.54 | M84: 0.65 | N84: 18414.82
E85: Total - IMPLANTAÇÃO ASFÁLTICA - PAVIMENTAÇÃO | K85: 622956.96 | N85: 598985.05
A86: 6. | E86: SERVIÇOS COMPLEMENTARES
A87: 6.1 | B87: COMP 07 | C87: SERVIÇO | D87: COMPOSIÇÃO | E87: MEIO-FIO COM SARJETA, CONCRETO FCK=15 MPA, SEÇÃO 615 CM², MOLDADO NO LOCAL, PINTURA A CAL EM UMA DEMÃO | G87: M | H87: 4350.12 | I87: 47.28 | J87: 59.93 | K87: 260702.69 | L87: 50.29 | M87: 60.7 | N87: 264052.28
A88: 6.2 | B88: COMP 08 | C88: SERVIÇO | D88: COMPOSIÇÃO | E88: TENTO (ACABAMENTO DE LIMPA-RODAS), CONCRETO FCK = 15 MPA, SEÇÃO 330 CM², MOLDADO NO LOCAL | G88: M | H88: 154.81 | I88: 27.33 | J88: 34.64 | K88: 5362.62 | L88: 29.12 | M88: 35.15 | N88: 5441.57
A89: 6.3 | B89: 100975 | C89: SERVIÇO | D89: SINAPI | E89: CARGA, MANOBRA E DESCARGA DE SOLOS E MATERIAIS GRANULARES EM CAMINHÃO BASCULANTE 14 M³ - CARGA COM PÁ CARREGADEIRA (CAÇAMBA DE 1,7 A 2,8 M³ / 128 HP) E DESCARGA LIVRE (UNIDADE: M3). AF_07/2020 | G89: M3 | H89: 157.04 | I89: 7,95 | J89: 10.08 | K89: 1582.96 | L89: 8.3 | M89: 10.02 | N89: 1573.54
A90: 6.4 | B90: 95876 | C90: SERVIÇO | D90: SINAPI | E90: TRANSPORTE COM CAMINHÃO BASCULANTE DE 14 M³, EM VIA URBANA PAVIMENTADA, DMT ATÉ 30 KM (UNIDADE: M3XKM). AF_07/2020 | G90: M3XKM | H90: 4711.24 | I90: 1,96 | J90: 2.48 | K90: 11683.88 | L90: 2.05 | M90: 2.47 | N90: 11636.76
A91: 6.5 | B91: 93593 | C91: SERVIÇO | D91: SINAPI | E91: TRANSPORTE COM CAMINHÃO BASCULANTE DE 14 M³, EM VIA URBANA PAVIMENTADA, ADICIONAL PARA DMT EXCEDENTE A 30 KM (UNIDADE: M3XKM). AF_07/2020 | G91: M3XKM | H91: 7695.01 | I91: 0,79 | J91: 1 | K91: 7695.01 | L91: 0.82 | M91: 0.99 | N91: 7618.05
E92: Total - SERVIÇOS COMPLEMENTARES | K92: 287027.16 | N92: 290322.2
A93: 7. | E93: PASSEIO COM ACESSIBILIDADE
A94: 7.1 | B94: 94990 | C94: SERVIÇO | D94: SINAPI | E94: EXECUÇÃO DE PASSEIO (CALÇADA) OU PISO DE CONCRETO COM CONCRETO MOLDADO IN LOCO, FEITO EM OBRA, ACABAMENTO CONVENCIONAL, NÃO ARMADO. AF_08/2022 | G94: M3 | H94: 142.1 | I94: 737,41 | J94: 934.67 | K94: 132816.61 | L94: 767.34 | M94: 926.18 | N94: 131610.17
A95: 7.2 | B95: 95876 | C95: SERVIÇO | D95: SINAPI | E95: TRANSPORTE COM CAMINHÃO BASCULANTE DE 14 M³, EM VIA URBANA PAVIMENTADA, DMT ATÉ 30 KM (UNIDADE: M3XKM). AF_07/2020 | G95: M3XKM | H95: 3036 | I95: 1,96 | J95: 2.48 | K95: 7529.28 | L95: 2.05 | M95: 2.47 | N95: 7498.92
A96: 7.3 | B96: 93593 | C96: SERVIÇO | D96: SINAPI | E96: TRANSPORTE COM CAMINHÃO BASCULANTE DE 14 M³, EM VIA URBANA PAVIMENTADA, ADICIONAL PARA DMT EXCEDENTE A 30 KM (UNIDADE: M3XKM). AF_07/2020 | G96: M3XKM | H96: 4958.77 | I96: 0,79 | J96: 1 | K96: 4958.77 | L96: 0.82 | M96: 0.99 | N96: 4909.18
E97: PISO PODOTATIL
A98: 7.4 | B98: COMP 09 | C98: SERVIÇO | D98: COMPOSIÇÃO | E98: INSTALAÇÃO DE PISO TÁTIL DIRECIONAL E DE ALERTA COM LADRILHO HIDRÁULICO DE 20X20X2,0 CM, EM CONCRETO SIMPLES FCK = 35MPA (NBR 9050 E COM O DECRETO 5296), INCLUINDO FORNECIMENTO E ASSENTAMENTO COM ARGAMASSA OU CIMENTO COLANTE SOBRE COXIM PREPARADO NO PISO RÚSTICO (Ref. SINAPI 101094) | G98: M | H98: 216 | I98: 30.33 | J98: 38.44 | K98: 8303.04 | L98: 31.54 | M98: 38.07 | N98: 8223.12
A99: 7.5 | B99: 100947 | C99: SERVIÇO | D99: SINAPI | E99: TRANSPORTE COM CAMINHÃO CARROCERIA 9T, EM VIA URBANA PAVIMENTADA, DMT ATÉ 30KM (UNIDADE: TXKM). AF_07/2020 | G99: TXKM | H99: 64.8 | I99: 2,12 | J99: 2.69 | K99: 174.31 | L99: 2.12 | M99: 2.56 | N99: 165.88
A100: 7.6 | B100: 100948 | C100: SERVIÇO | D100: SINAPI | E100: TRANSPORTE COM CAMINHÃO CARROCERIA 9T, EM VIA URBANA PAVIMENTADA, ADICIONAL PARA DMT EXCEDENTE A 30 KM (UNIDADE: TXKM). AF_07/2020 | G100: TXKM | H100: 136.08 | I100: 0,84 | J100: 1.06 | K100: 144.24 | L100: 0.84 | M100: 1.01 | N100: 137.44
E101: Total - PASSEIO COM ACESSIBILIDADE | K101: 153926.25 | N101: 152544.71
A102: 8. | E102: SINALIZAÇÃO VIÁRIA PERMANENTE
A103: 8.1 | B103: COMP 10 | C103: SERVIÇO | D103: COMPOSIÇÃO | E103: FORNECIMENTO E INSTALAÇÃO DE PLACA DE SINALIZAÇÃO VERTICAL (ATÉ 0,36 M²), EM CHAPA DE AÇO Nº 16 COM PELÍCULA RETRORREFLETIVA, INCLUÍDO POSTE METÁLICO DN 50mm, PINTADO COM ESMALTE SINTÉTICO 2 DEMÕES E FIXADO EM BASE DE CONCRETO NÃO ESTRUTURAL | G103: UN | H103: 41 | I103: 517.68 | J103: 656.16 | K103: 26902.56 | L103: 520.75 | M103: 628.55 | N103: 25770.55
A104: 8.2 | B104: COMP 11 | C104: SERVIÇO | D104: COMPOSIÇÃO | E104: FORNECIMENTO E INSTALAÇÃO DE 02 PLACAS DE IDENTIFICAÇÃO DE RUA 45X20CM EM CHAPA DE AÇO, NUM MESMO POSTE METÁLICO DN 50mm, PINTADO COM ESMALTE SINTÉTICO 2 DEMÕES E FIXADO EM BASE DE CONCRETO NÃO ESTRUTURAL | G104: UN | H104: 34 | I104: 470.49 | J104: 596.35 | K104: 20275.9 | L104: 473.56 | M104: 571.59 | N104: 19434.06
A105: 8.3 | B105: COMP 21 | C105: SERVIÇO | D105: COMPOSIÇÃO | E105: PINTURA DE FAIXA - TERMOPLÁSTICO POR ASPERSÃO HOT SPRAY - ESPESSURA DE 1,5 MM | G105: M2 | H105: 277.45 | I105: 45.73 | J105: 57.96 | K105: 16081 | L105: 46.11 | M105: 55.65 | N105: 15440.09
A106: 8.4 | B106: COMP 22 | C106: SERVIÇO | D106: COMPOSIÇÃO | E106: PINTURA MECANIZADA DE SETAS E ZEBRADOS NO PAVIMENTO APLICADA POR EXTRUSÃO, DURABILIDADE 5 ANOS - PADRÃO DNIT, COM MASSA TERMOPLÁSTICA PARA EXTRUSÃO, COM APLICAÇÃO DE MICRO ESFERAS DE VIDRO PREMIX E DROP-ON, INCLUSIVE PRÉ-MARCAÇÃO | G106: M2 | H106: 158.56 | I106: 98.35 | J106: 124.66 | K106: 19766.09 | L106: 99.42 | M106: 120 | N106: 19027.2
E107: Total - SINALIZAÇÃO VIÁRIA PERMANENTE | K107: 83025.55 | N107: 79671.9
A108: 9. | E108: ADMINISTRAÇÃO LOCAL
A109: 9.1 | B109: COMP 19 | C109: SERVIÇO | D109: COMPOSIÇÃO | E109: EQUIPE TÉCNICA | G109: UN | H109: 3.96 | I109: 53051 | J109: 67242.14 | K109: 266278.87 | L109: 60465.16 | M109: 72981.45 | N109: 289006.54
E110: Total - ADMINISTRAÇÃO LOCAL | K110: 266278.87 | N110: 289006.54
F111: TOTAL GERAL= | J111: 3701863.68 | M111: 3654078.14

Sheet COMPOSIÇÃO
A1: COMPOSIÇÃO DE CUSTO UNITÁRIO
A2: OBRA | B2: INFRAESTRUTURA - URBANA - PAVIMENTAÇÃO ASFÁLTICA, DRENAGEM, ACESSIBILIDADE E SINALIZAÇÃO VIÁRIA EM DIVERSAS RUAS NO MUNICÍPIO DE SIDROLÂNDIA/MS
A3: LOCAL | B3: DIVERSAS RUAS
A4: DATA | B4: SINAPI (Março/2023)/ Sicro (outubro/2022)
A6: CÓDIGO | B6: SERVIÇO | I6: UNIDADE
A7: COMP 01 | B7: LIGAÇÃO PROVISÓRIA DE ÁGUA | I7: UN
A8: CÓDIGO | B8: DESCRIÇÃO | C8: INDICE | D8: UNIDADE | E8: QUANTIDADE | F8: C/ DESONERAÇÃO | H8: S/ DESONERAÇÃO
F9: CUSTO UNITÁRIO | G9: CUSTO TOTAL | H9: CUSTO UNITÁRIO | I9: CUSTO TOTAL
A11: 95676 | B11: CAIXA EM CONCRETO PRÉ-MOLDADO PARA ABRIGO DE HIDRÔMETRO COM DN 20 (½)  FORNECIMENTO E INSTALAÇÃO. AF_11/2016 | D11: UN | E11: 1 | F11: 121,99 | G11: 121.99 | H11: 124.01 | I11: 124.01
A12: 95674 | B12: HIDRÔMETRO DN 20 (½), 3,0 M³/H  FORNECIMENTO E INSTALAÇÃO. AF_11/2016 | D12: UN | E12: 1 | F12: 116,76 | G12: 116.76 | H12: 118.29 | I12: 118.29
A13: 95634 | B13: KIT CAVALETE PARA MEDIÇÃO DE ÁGUA - ENTRADA PRINCIPAL, EM PVC SOLDÁVEL DN 20 (½") FORNECIMENTO E INSTALAÇÃO (EXCLUSIVE HIDRÔMETRO). AF_11/2016 | D13: UN | E13: 1 | F13: 246,06 | G13: 246.06 | H13: 252.8 | I13: 252.8
A14: 91784 | B14: (COMPOSIÇÃO REPRESENTATIVA) DO SERVIÇO DE INSTALAÇÃO DE TUBOS DE PVC, SOLDÁVEL, ÁGUA FRIA, DN 20 MM (INSTALADO EM RAMAL, SUB-RAMAL OU RAMAL DE DISTRIBUIÇÃO), INCLUSIVE CONEXÕES, CORTES E FIXAÇÕES, PARA PRÉDIOS. AF_10/2015 | D14: M | E14: 10 | F14: 40,65 | G14: 406.5 | H14: 43.97 | I14: 439.7
A15: TOTAL | G15: 891.31 | H15: 934.8
A17: COMP 02 | B17: RECORTE MECÂNICO DE PAVIMENTO ASFÁLTICO OU PISO DE CONCRETO, COM SERRA DE DISCO DIAMANTADO PARA PISO/ASFALTO | I17: M
A18: CÓDIGO | B18: DESCRIÇÃO | C18: INDICE | D18: UNIDADE | E18: QUANTIDADE | F18: C/ DESONERAÇÃO | H18: S/ DESONERAÇÃO
F19: CUSTO UNITÁRIO | G19: CUSTO TOTAL | H19: CUSTO UNITÁRIO | I19: CUSTO TOTAL
A21: 13887 | B21: DISCO DE CORTE DIAMANTADO SEGMENTADO PARA CONCRETO, DIAMETRO DE 350 MM, FURO DE 1 " (14 X 1 ") | D21: UN | E21: 0.002 | F21: 449,60 | G21: 0.89 | H21: 466,41 | I21: 0.93
A22: 91283 | B22: CORTADORA DE PISO COM MOTOR 4 TEMPOS A GASOLINA, POTÊNCIA DE 13 HP, COM DISCO DE CORTE DIAMANTADO SEGMENTADO PARA CONCRETO, DIÂMETRO DE 350 MM, FURO DE 1" (14 X 1") - CHP DIURNO. AF_08/2015 | D22: CHP | E22: 0.083 | F22: 9,49 | G22: 0.78 | H22: 10.06 | I22: 0.83
A23: 88316 | B23: SERVENTE COM ENCARGOS COMPLEMENTARES | D23: H | E23: 0.083 | F23: 17,04 | G23: 1.41 | H23: 18.93 | I23: 1.57
A24: TOTAL | G24: 3.08 | H24: 3.33
A26: COMP 03 | B26: PV-1 - POÇO-DE-VISITA C/ MEDIDA EXT. 2,32X2,32M, EM ALVEN. DE TIJOJO MACIÇO UMA VEZ, REVEST. INTERNO COM CHAPISCO E REBOCO, LASTRO DE BRITA DE 12CM, BERÇO DE 18CM EM CONCRETO FCK=15MPA, LAJE DE 12CM EM CONCRETO ARMADO FCK=20MPA, INCL. FORMA, ESC. MANUAL E REAT. APILOADO | I26: UN
A27: CÓDIGO | B27: DESCRIÇÃO | C27: INDICE | D27: UNIDADE | E27: QUANTIDADE | F27: C/ DESONERAÇÃO | H27: S/ DESONERAÇÃO
F28: CUSTO UNITÁRIO | G28: CUSTO TOTAL | H28: CUSTO UNITÁRIO | I28: CUSTO TOTAL
A30: 93358 | B30: ESCAVAÇÃO MANUAL DE VALA COM PROFUNDIDADE MENOR OU IGUAL A 1,30 M. AF_02/2021 | D30: M3 | E30: 1.3 | F30: 67,41 | G30: 87.63 | H30: 74.88 | I30: 97.34
A31: 101624 | B31: PREPARO DE FUNDO DE VALA COM LARGURA MAIOR OU IGUAL A 1,5 M E MENOR QUE 2,5 M, COM CAMADA DE BRITA, LANÇAMENTO MECANIZADO. AF_08/2020 | D31: M3 | E31: 1.02 | F31: 185,28 | G31: 188.98 | H31: 189.24 | I31: 193.02
A32: 94962 | B32: CONCRETO MAGRO PARA LASTRO, TRAÇO 1:4,5:4,5 (EM MASSA SECA DE CIMENTO/ AREIA MÉDIA/ BRITA 1) - PREPARO MECÂNICO COM BETONEIRA 400 L. AF_05/2021 | D32: M3 | E32: 1.74 | F32: 384,76 | G32: 669.48 | H32: 397.76 | I32: 692.1
A33: 103670 | B33: LANÇAMENTO COM USO DE BALDES, ADENSAMENTO E ACABAMENTO DE CONCRETO EM ESTRUTURAS. AF_02/2022 | D33: M3 | E33: 1.74 | F33: 231,03 | G33: 401.99 | H33: 257.34 | I33: 447.77
A34: COMP 12 | B34: ALVENARIA EM TIJOLO CERAMICO MACICO 5X10X20CM 1 VEZ (ESPESSURA 20CM), ASSENTADO COM ARGAMASSA TRACO 1:2:8 | D34: M2 | E34: 12.6 | F34: 244.53 | G34: 3081.07 | H34: 258.12 | I34: 3252.31
A35: 87878 | B35: CHAPISCO APLICADO EM ALVENARIAS E ESTRUTURAS DE CONCRETO INTERNAS, COM COLHER DE PEDREIRO. ARGAMASSA TRAÇO 1:3 COM PREPARO MANUAL. AF_10/2022 | D35: M2 | E35: 11.4 | F35: 4,25 | G35: 48.45 | H35: 4.57 | I35: 52.09
A36: 87529 | B36: MASSA ÚNICA, PARA RECEBIMENTO DE PINTURA, EM ARGAMASSA TRAÇO 1:2:8, PREPARO MECÂNICO COM BETONEIRA 400L, APLICADA MANUALMENTE EM FACES INTERNAS DE PAREDES, ESPESSURA DE 20MM, COM EXECUÇÃO DE TALISCAS. AF_06/2014 | D36: M2 | E36: 11.4 | F36: 33,36 | G36: 380.3 | H36: 36.19 | I36: 412.56
A37: 92916 | B37: ARMAÇÃO DE ESTRUTURAS DIVERSAS DE CONCRETO ARMADO, EXCETO VIGAS, PILARES, LAJES E FUNDAÇÕES, UTILIZANDO AÇO CA-50 DE 6,3 MM - MONTAGEM. AF_06/2022 | D37: KG | E37: 60 | F37: 16,31 | G37: 978.6 | H37: 16.21 | I37: 972.6
A38: 92915 | B38: ARMAÇÃO DE ESTRUTURAS DIVERSAS DE CONCRETO ARMADO, EXCETO VIGAS, PILARES, LAJES E FUNDAÇÕES, UTILIZANDO AÇO CA-60 DE 5,0 MM - MONTAGEM. AF_06/2022 | D38: KG | E38: 8 | F38: 17,04 | G38: 136.32 | H38: 17.21 | I38: 137.68
A39: 92514 | B39: MONTAGEM E DESMONTAGEM DE FÔRMA DE LAJE MACIÇA, PÉ-DIREITO SIMPLES, EM CHAPA DE MADEIRA COMPENSADA RESINADA, 4 UTILIZAÇÕES. AF_09/2020 | D39: M2 | E39: 2.72 | F39: 50,34 | G39: 136.92 | H39: 54.95 | I39: 149.46
A40: 94964 | B40: CONCRETO FCK = 20MPA, TRAÇO 1:2,7:3 (EM MASSA SECA DE CIMENTO/ AREIA MÉDIA/ BRITA 1) - PREPARO MECÂNICO COM BETONEIRA 400 L. AF_05/2021 | D40: M3 | E40: 0.64 | F40: 484,23 | G40: 309.9 | H40: 497.45 | I40: 318.36
A41: 103670 | B41: LANÇAMENTO COM USO DE BALDES, ADENSAMENTO E ACABAMENTO DE CONCRETO EM ESTRUTURAS. AF_02/2022 | D41: M3 | E41: 0.64 | F41: 231,03 | G41: 147.85 | H41: 257.34 | I41: 164.69
A42: 5928 | B42: GUINDAUTO HIDRÁULICO, CAPACIDADE MÁXIMA DE CARGA 6200 KG, MOMENTO MÁXIMO DE CARGA 11,7 TM, ALCANCE MÁXIMO HORIZONTAL 9,70 M, INCLUSIVE CAMINHÃO TOCO PBT 16.000 KG, POTÊNCIA DE 189 CV - CHP DIURNO. AF_06/2014 | D42: CHP | E42: 0.1 | F42: 265,93 | G42: 26.59 | H42: 263.17 | I42: 26.31
A43: 93382 | B43: REATERRO MANUAL DE VALAS COM COMPACTAÇÃO MECANIZADA. AF_04/2016 | D43: M3 | E43: 1.15 | F43: 27,54 | G43: 31.67 | H43: 30.5 | I43: 35.07
A44: TOTAL | G44: 6625.75 | H44: 6951.36
A46: COMP 04 | B46: BLSC - BOCA-DE-LOBO SIMPLES, EM CONCRETO SIMPLES FCK 20 MPA, INCLUINDO ESCAVAÇÃO, FORMA, ARMAÇÃO, CALÇAMENTO AO REDOR E GRELHA EM FOFO TIPO PESADA, CONFORME PROJETO | I46: UN
A47: CÓDIGO | B47: DESCRIÇÃO | C47: INDICE | D47: UNIDADE | E47: QUANTIDADE | F47: C/ DESONERAÇÃO | H47: S/ DESONERAÇÃO
F48: CUSTO UNITÁRIO | G48: CUSTO TOTAL | H48: CUSTO UNITÁRIO | I48: CUSTO TOTAL
A50: COMP 02 | B50: RECORTE MECÂNICO DE PAVIMENTO ASFÁLTICO OU PISO DE CONCRETO, COM SERRA DE DISCO DIAMANTADO PARA PISO/ASFALTO | D50: M | E50: 3.31 | F50: 3.08 | G50: 10.19 | H50: 3.33 | I50: 11.02
A51: 93358 | B51: ESCAVAÇÃO MANUAL DE VALA COM PROFUNDIDADE MENOR OU IGUAL A 1,30 M. AF_02/2021 | D51: M3 | E51: 0.95 | F51: 67,41 | G51: 64.03 | H51: 74.88 | I51: 71.13
A52: 101616 | B52: PREPARO DE FUNDO DE VALA COM LARGURA MENOR QUE 1,5 M (ACERTO DO SOLO NATURAL). AF_08/2020 | D52: M2 | E52: 2.06 | F52: 4,93 | G52: 10.15 | H52: 5.51 | I52: 11.35
A53: 92475 | B53: MONTAGEM E DESMONTAGEM DE FÔRMA DE VIGA, ESCORAMENTO COM GARFO DE MADEIRA, PÉ-DIREITO SIMPLES, EM CHAPA DE MADEIRA PLASTIFICADA, 14 UTILIZAÇÕES. AF_09/2020 | D53: M2 | E53: 3.62 | F53: 74,69 | G53: 270.37 | H53: 81.26 | I53: 294.16
A54: 92917 | B54: ARMAÇÃO DE ESTRUTURAS DIVERSAS DE CONCRETO ARMADO, EXCETO VIGAS, PILARES, LAJES E FUNDAÇÕES, UTILIZANDO AÇO CA-50 DE 8,0 MM - MONTAGEM. AF_06/2022 | D54: KG | E54: 4.5 | F54: 15,44 | G54: 69.48 | H54: 15.15 | I54: 68.17
A55: 92915 | B55: ARMAÇÃO DE ESTRUTURAS DIVERSAS DE CONCRETO ARMADO, EXCETO VIGAS, PILARES, LAJES E FUNDAÇÕES, UTILIZANDO AÇO CA-60 DE 5,0 MM - MONTAGEM. AF_06/2022 | D55: KG | E55: 0.92 | F55: 17,04 | G55: 15.67 | H55: 17.21 | I55: 15.83
A56: 94964 | B56: CONCRETO FCK = 20MPA, TRAÇO 1:2,7:3 (EM MASSA SECA DE CIMENTO/ AREIA MÉDIA/ BRITA 1) - PREPARO MECÂNICO COM BETONEIRA 400 L. AF_05/2021 | D56: M3 | E56: 0.729 | F56: 484,23 | G56: 353 | H56: 497.45 | I56: 362.64
A57: 103670 | B57: LANÇAMENTO COM USO DE BALDES, ADENSAMENTO E ACABAMENTO DE CONCRETO EM ESTRUTURAS. AF_02/2022 | D57: M3 | E57: 0.729 | F57: 231,03 | G57: 168.42 | H57: 257.34 | I57: 187.6
A58: 5928 | B58: GUINDAUTO HIDRÁULICO, CAPACIDADE MÁXIMA DE CARGA 6200 KG, MOMENTO MÁXIMO DE CARGA 11,7 TM, ALCANCE MÁXIMO HORIZONTAL 9,70 M, INCLUSIVE CAMINHÃO TOCO PBT 16.000 KG, POTÊNCIA DE 189 CV - CHP DIURNO. AF_06/2014 | D58: CHP | E58: 0.1 | F58: 265,93 | G58: 26.59 | H58: 263.17 | I58: 26.31
A59: 103003 | B59: GRELHA DE FERRO FUNDIDO SIMPLES COM REQUADRO, 300 X 1000 MM, ASSENTADA COM ARGAMASSA 1 : 3 CIMENTO: AREIA - FORNECIMENTO E INSTALAÇÃO. AF_08/2021 | D59: UN | E59: 1 | F59: 411,35 | G59: 411.35 | H59: 360.79 | I59: 360.79
A60: TOTAL | G60: 1399.25 | H60: 1409
A62: COMP 05 | B62: BLDC - BOCA-DE-LOBO DUPLA, EM CONCRETO SIMPLES FCK 20 MPA, INCLUINDO ESCAVAÇÃO, FORMA, ARMAÇÃO, CALÇAMENTO AO REDOR E GRELHA EM FOFO TIPO PESADA, CONFORME PROJETO | I62: UN
A63: CÓDIGO | B63: DESCRIÇÃO | C63: INDICE | D63: UNIDADE | E63: QUANTIDADE | F63: C/ DESONERAÇÃO | H63: S/ DESONERAÇÃO
F64: CUSTO UNITÁRIO | G64: CUSTO TOTAL | H64: CUSTO UNITÁRIO | I64: CUSTO TOTAL
A66: COMP 02 | B66: RECORTE MECÂNICO DE PAVIMENTO ASFÁLTICO OU PISO DE CONCRETO, COM SERRA DE DISCO DIAMANTADO PARA PISO/ASFALTO | D66: M | E66: 4.51 | F66: 3.08 | G66: 13.89 | H66: 3.33 | I66: 15.01
A67: 93358 | B67: ESCAVAÇÃO MANUAL DE VALA COM PROFUNDIDADE MENOR OU IGUAL A 1,30 M. AF_02/2021 | D67: M3 | E67: 1.91 | F67: 67,41 | G67: 128.75 | H67: 74.88 | I67: 143.02
A68: 101616 | B68: PREPARO DE FUNDO DE VALA COM LARGURA MENOR QUE 1,5 M (ACERTO DO SOLO NATURAL). AF_08/2020 | D68: M2 | E68: 3.02 | F68: 4,93 | G68: 14.88 | H68: 5.51 | I68: 16.64
A69: 92475 | B69: MONTAGEM E DESMONTAGEM DE FÔRMA DE VIGA, ESCORAMENTO COM GARFO DE MADEIRA, PÉ-DIREITO SIMPLES, EM CHAPA DE MADEIRA PLASTIFICADA, 14 UTILIZAÇÕES. AF_09/2020 | D69: M2 | E69: 6.36 | F69: 74,69 | G69: 475.02 | H69: 81.26 | I69: 516.81
A70: 92917 | B70: ARMAÇÃO DE ESTRUTURAS DIVERSAS DE CONCRETO ARMADO, EXCETO VIGAS, PILARES, LAJES E FUNDAÇÕES, UTILIZANDO AÇO CA-50 DE 8,0 MM - MONTAGEM. AF_06/2022 | D70: KG | E70: 8.59 | F70: 15,44 | G70: 132.62 | H70: 15.15 | I70: 130.13
A71: 92915 | B71: ARMAÇÃO DE ESTRUTURAS DIVERSAS DE CONCRETO ARMADO, EXCETO VIGAS, PILARES, LAJES E FUNDAÇÕES, UTILIZANDO AÇO CA-60 DE 5,0 MM - MONTAGEM. AF_06/2022 | D71: KG | E71: 2.53 | F71: 17,04 | G71: 43.11 | H71: 17.21 | I71: 43.54
A72: 94964 | B72: CONCRETO FCK = 20MPA, TRAÇO 1:2,7:3 (EM MASSA SECA DE CIMENTO/ AREIA MÉDIA/ BRITA 1) - PREPARO MECÂNICO COM BETONEIRA 400 L. AF_05/2021 | D72: M3 | E72: 1.272 | F72: 484,23 | G72: 615.94 | H72: 497.45 | I72: 632.75
A73: 103670 | B73: LANÇAMENTO COM USO DE BALDES, ADENSAMENTO E ACABAMENTO DE CONCRETO EM ESTRUTURAS. AF_02/2022 | D73: M3 | E73: 1.272 | F73: 231,03 | G73: 293.87 | H73: 257.34 | I73: 327.33
A74: 5928 | B74: GUINDAUTO HIDRÁULICO, CAPACIDADE MÁXIMA DE CARGA 6200 KG, MOMENTO MÁXIMO DE CARGA 11,7 TM, ALCANCE MÁXIMO HORIZONTAL 9,70 M, INCLUSIVE CAMINHÃO TOCO PBT 16.000 KG, POTÊNCIA DE 189 CV - CHP DIURNO. AF_06/2014 | D74: CHP | E74: 0.1 | F74: 265,93 | G74: 26.59 | H74: 263.17 | I74: 26.31
A75: 103003 | B75: GRELHA DE FERRO FUNDIDO SIMPLES COM REQUADRO, 300 X 1000 MM, ASSENTADA COM ARGAMASSA 1 : 3 CIMENTO: AREIA - FORNECIMENTO E INSTALAÇÃO. AF_08/2021 | D75: UN | E75: 2 | F75: 411,35 | G75: 822.7 | H75: 360.79 | I75: 721.58
A76: TOTAL | G76: 2567.37 | H76: 2573.12
A78: COMP 06 | B78: BLTC - BOCA-DE-LOBO TRIPLA, EM CONCRETO SIMPLES FCK 20 MPA, INCLUINDO ESCAVAÇÃO, FORMA, ARMAÇÃO, CALÇAMENTO AO REDOR E GRELHA EM FOFO TIPO PESADA, CONFORME PROJETO | I78: UN
A79: CÓDIGO | B79: DESCRIÇÃO | C79: INDICE | D79: UNIDADE | E79: QUANTIDADE | F79: C/ DESONERAÇÃO | H79: S/ DESONERAÇÃO
F80: CUSTO UNITÁRIO | G80: CUSTO TOTAL | H80: CUSTO UNITÁRIO | I80: CUSTO TOTAL
A82: COMP 02 | B82: RECORTE MECÂNICO DE PAVIMENTO ASFÁLTICO OU PISO DE CONCRETO, COM SERRA DE DISCO DIAMANTADO PARA PISO/ASFALTO | D82: M | E82: 5.71 | F82: 3.08 | G82: 17.58 | H82: 3.33 | I82: 19.01
A83: 93358 | B83: ESCAVAÇÃO MANUAL DE VALA COM PROFUNDIDADE MENOR OU IGUAL A 1,30 M. AF_02/2021 | D83: M3 | E83: 2.86 | F83: 67,41 | G83: 192.79 | H83: 74.88 | I83: 214.15
A84: 101616 | B84: PREPARO DE FUNDO DE VALA COM LARGURA MENOR QUE 1,5 M (ACERTO DO SOLO NATURAL). AF_08/2020 | D84: M2 | E84: 3.98 | F84: 4,93 | G84: 19.62 | H84: 5.51 | I84: 21.92
A85: 92475 | B85: MONTAGEM E DESMONTAGEM DE FÔRMA DE VIGA, ESCORAMENTO COM GARFO DE MADEIRA, PÉ-DIREITO SIMPLES, EM CHAPA DE MADEIRA PLASTIFICADA, 14 UTILIZAÇÕES. AF_09/2020 | D85: M2 | E85: 9.1 | F85: 74,69 | G85: 679.67 | H85: 81.26 | I85: 739.46
A86: 92917 | B86: ARMAÇÃO DE ESTRUTURAS DIVERSAS DE CONCRETO ARMADO, EXCETO VIGAS, PILARES, LAJES E FUNDAÇÕES, UTILIZANDO AÇO CA-50 DE 8,0 MM - MONTAGEM. AF_06/2022 | D86: KG | E86: 12.68 | F86: 15,44 | G86: 195.77 | H86: 15.15 | I86: 192.1
A87: 92915 | B87: ARMAÇÃO DE ESTRUTURAS DIVERSAS DE CONCRETO ARMADO, EXCETO VIGAS, PILARES, LAJES E FUNDAÇÕES, UTILIZANDO AÇO CA-60 DE 5,0 MM - MONTAGEM. AF_06/2022 | D87: KG | E87: 4.23 | F87: 17,04 | G87: 72.07 | H87: 17.21 | I87: 72.79
A88: 94964 | B88: CONCRETO FCK = 20MPA, TRAÇO 1:2,7:3 (EM MASSA SECA DE CIMENTO/ AREIA MÉDIA/ BRITA 1) - PREPARO MECÂNICO COM BETONEIRA 400 L. AF_05/2021 | D88: M3 | E88: 1.815 | F88: 484,23 | G88: 878.87 | H88: 497.45 | I88: 902.87
A89: 103670 | B89: LANÇAMENTO COM USO DE BALDES, ADENSAMENTO E ACABAMENTO DE CONCRETO EM ESTRUTURAS. AF_02/2022 | D89: M3 | E89: 1.815 | F89: 231,03 | G89: 419.31 | H89: 257.34 | I89: 467.07
A90: 5928 | B90: GUINDAUTO HIDRÁULICO, CAPACIDADE MÁXIMA DE CARGA 6200 KG, MOMENTO MÁXIMO DE CARGA 11,7 TM, ALCANCE MÁXIMO HORIZONTAL 9,70 M, INCLUSIVE CAMINHÃO TOCO PBT 16.000 KG, POTÊNCIA DE 189 CV - CHP DIURNO. AF_06/2014 | D90: CHP | E90: 0.1 | F90: 265,93 | G90: 26.59 | H90: 263.17 | I90: 26.31
A91: 103003 | B91: GRELHA DE FERRO FUNDIDO SIMPLES COM REQUADRO, 300 X 1000 MM, ASSENTADA COM ARGAMASSA 1 : 3 CIMENTO: AREIA - FORNECIMENTO E INSTALAÇÃO. AF_08/2021 | D91: UN | E91: 3 | F91: 411,35 | G91: 1234.05 | H91: 360.79 | I91: 1082.37
A92: TOTAL | G92: 3736.32 | H92: 3738.05
A94: COMP 07 | B94: MEIO-FIO COM SARJETA, CONCRETO FCK=15 MPA, SEÇÃO 615 CM², MOLDADO NO LOCAL, PINTURA A CAL EM UMA DEMÃO | I94: M
A95: CÓDIGO | B95: DESCRIÇÃO | C95: INDICE | D95: UNIDADE | E95: QUANTIDADE | F95: C/ DESONERAÇÃO | H95: S/ DESONERAÇÃO
F96: CUSTO UNITÁRIO | G96: CUSTO TOTAL | H96: CUSTO UNITÁRIO | I96: CUSTO TOTAL
A98: COMP 02 | B98: RECORTE MECÂNICO DE PAVIMENTO ASFÁLTICO OU PISO DE CONCRETO, COM SERRA DE DISCO DIAMANTADO PARA PISO/ASFALTO | D98: M | E98: 1 | F98: 3.08 | G98: 3.08 | H98: 3.33 | I98: 3.33
A99: 93358 | B99: ESCAVAÇÃO MANUAL DE VALA COM PROFUNDIDADE MENOR OU IGUAL A 1,30 M. AF_02/2021 | D99: M3 | E99: 0.042 | F99: 67,41 | G99: 2.83 | H99: 74.88 | I99: 3.14
A100: 94963 | B100: CONCRETO FCK = 15MPA, TRAÇO 1:3,4:3,5 (EM MASSA SECA DE CIMENTO/ AREIA MÉDIA/ BRITA 1) - PREPARO MECÂNICO COM BETONEIRA 400 L. AF_05/2021 | D100: M3 | E100: 0.0615 | F100: 436,82 | G100: 26.86 | H100: 449.61 | I100: 27.65
A101: 103670 | B101: LANÇAMENTO COM USO DE BALDES, ADENSAMENTO E ACABAMENTO DE CONCRETO EM ESTRUTURAS. AF_02/2022 | D101: M3 | E101: 0.0615 | F101: 231,03 | G101: 14.2 | H101: 257.34 | I101: 15.82
A102: 102498 | B102: PINTURA DE MEIO-FIO COM TINTA BRANCA A BASE DE CAL (CAIAÇÃO). AF_05/2021 | D102: M | E102: 0.25 | F102: 1,27 | G102: 0.31 | H102: 1.42 | I102: 0.35
A103: TOTAL | G103: 47.28 | H103: 50.29
A105: COMP 08 | B105: TENTO (ACABAMENTO DE LIMPA-RODAS), CONCRETO FCK = 15 MPA, SEÇÃO 330 CM², MOLDADO NO LOCAL | I105: M
A106: CÓDIGO | B106: DESCRIÇÃO | C106: INDICE | D106: UNIDADE | E106: QUANTIDADE | F106: C/ DESONERAÇÃO | H106: S/ DESONERAÇÃO
F107: CUSTO UNITÁRIO | G107: CUSTO TOTAL | H107: CUSTO UNITÁRIO | I107: CUSTO TOTAL
A109: COMP 02 | B109: RECORTE MECÂNICO DE PAVIMENTO ASFÁLTICO OU PISO DE CONCRETO, COM SERRA DE DISCO DIAMANTADO PARA PISO/ASFALTO | D109: M | E109: 1 | F109: 3.08 | G109: 3.08 | H109: 3.33 | I109: 3.33
A110: 93358 | B110: ESCAVAÇÃO MANUAL DE VALA COM PROFUNDIDADE MENOR OU IGUAL A 1,30 M. AF_02/2021 | D110: M3 | E110: 0.033 | F110: 67,41 | G110: 2.22 | H110: 74.88 | I110: 2.47
A111: 94963 | B111: CONCRETO FCK = 15MPA, TRAÇO 1:3,4:3,5 (EM MASSA SECA DE CIMENTO/ AREIA MÉDIA/ BRITA 1) - PREPARO MECÂNICO COM BETONEIRA 400 L. AF_05/2021 | D111: M3 | E111: 0.033 | F111: 436,82 | G111: 14.41 | H111: 449.61 | I111: 14.83
A112: 103670 | B112: LANÇAMENTO COM USO DE BALDES, ADENSAMENTO E ACABAMENTO DE CONCRETO EM ESTRUTURAS. AF_02/2022 | D112: M3 | E112: 0.033 | F112: 231,03 | G112: 7.62 | H112: 257.34 | I112: 8.49
A113: TOTAL | G113: 27.33 | H113: 29.12
A115: COMP 09 | B115: INSTALAÇÃO DE PISO TÁTIL DIRECIONAL E DE ALERTA COM LADRILHO HIDRÁULICO DE 20X20X2,0 CM, EM CONCRETO SIMPLES FCK = 35MPA (NBR 9050 E COM O DECRETO 5296), INCLUINDO FORNECIMENTO E ASSENTAMENTO COM ARGAMASSA OU CIMENTO COLANTE SOBRE COXIM PREPARADO NO PISO RÚSTICO (Ref. SINAPI 101094) | I115: M
A116: CÓDIGO | B116: DESCRIÇÃO | C116: INDICE | D116: UNIDADE | E116: QUANTIDADE | F116: C/ DESONERAÇÃO | H116: S/ DESONERAÇÃO
F117: CUSTO UNITÁRIO | G117: CUSTO TOTAL | H117: CUSTO UNITÁRIO | I117: CUSTO TOTAL
A119: 1379 | B119: CIMENTO PORTLAND COMPOSTO CP II-32 | D119: KG | E119: 0.192 | F119: 0,89 | G119: 0.17 | H119: 0,89 | I119: 0.17
A120: 37595 | B120: ARGAMASSA COLANTE TIPO AC III | D120: KG | E120: 0.972 | F120: 2,61 | G120: 2.53 | H120: 2,61 | I120: 2.53
A121: 38135 | B121: LADRILHO HIDRAULICO, *20 X 20* CM, E= 2 CM, TATIL ALERTA OU DIRECIONAL, AMARELO | D121: M2 | E121: 0.2 | F121: 86,39 | G121: 17.27 | H121: 86,39 | I121: 17.27
A122: 88309 | B122: PEDREIRO COM ENCARGOS COMPLEMENTARES | D122: H | E122: 0.35 | F122: 21,15 | G122: 7.4 | H122: 23.68 | I122: 8.28
A123: 88316 | B123: SERVENTE COM ENCARGOS COMPLEMENTARES | D123: H | E123: 0.174 | F123: 17,04 | G123: 2.96 | H123: 18.93 | I123: 3.29
A124: TOTAL | G124: 30.33 | H124: 31.54
A126: COMP 10 | B126: FORNECIMENTO E INSTALAÇÃO DE PLACA DE SINALIZAÇÃO VERTICAL (ATÉ 0,36 M²), EM CHAPA DE AÇO Nº 16 COM PELÍCULA RETRORREFLETIVA, INCLUÍDO POSTE METÁLICO DN 50mm, PINTADO COM ESMALTE SINTÉTICO 2 DEMÕES E FIXADO EM BASE DE CONCRETO NÃO ESTRUTURAL | I126: UN
A127: CÓDIGO | B127: DESCRIÇÃO | C127: INDICE | D127: UNIDADE | E127: QUANTIDADE | F127: C/ DESONERAÇÃO | H127: S/ DESONERAÇÃO
F128: CUSTO UNITÁRIO | G128: CUSTO TOTAL | H128: CUSTO UNITÁRIO | I128: CUSTO TOTAL
A130: 93358 | B130: ESCAVAÇÃO MANUAL DE VALA COM PROFUNDIDADE MENOR OU IGUAL A 1,30 M. AF_02/2021 | D130: M3 | E130: 0.027 | F130: 67,41 | G130: 1.82 | H130: 74.88 | I130: 2.02
A131: 100982 | B131: CARGA, MANOBRA E DESCARGA DE ENTULHO EM CAMINHÃO BASCULANTE 10 M³ - CARGA COM ESCAVADEIRA HIDRÁULICA (CAÇAMBA DE 0,80 M³ / 111 HP) E DESCARGA LIVRE (UNIDADE: M3). AF_07/2020 | D131: M3 | E131: 0.0351 | F131: 8,48 | G131: 0.29 | H131: 8.57 | I131: 0.3
A132: 95875 | B132: TRANSPORTE COM CAMINHÃO BASCULANTE DE 10 M³, EM VIA URBANA PAVIMENTADA, DMT ATÉ 30 KM (UNIDADE: M3XKM). AF_07/2020 | D132: M3XKM | E132: 0.0351 | F132: 2,33 | G132: 0.08 | H132: 2.32 | I132: 0.08
A133: 94963 | B133: CONCRETO FCK = 15MPA, TRAÇO 1:3,4:3,5 (EM MASSA SECA DE CIMENTO/ AREIA MÉDIA/ BRITA 1) - PREPARO MECÂNICO COM BETONEIRA 400 L. AF_05/2021 | D133: M3 | E133: 0.027 | F133: 436,82 | G133: 11.79 | H133: 449.61 | I133: 12.13
A134: 103670 | B134: LANÇAMENTO COM USO DE BALDES, ADENSAMENTO E ACABAMENTO DE CONCRETO EM ESTRUTURAS. AF_02/2022 | D134: M3 | E134: 0.027 | F134: 231,03 | G134: 6.23 | H134: 257.34 | I134: 6.94
A135: 21013 | B135: TUBO ACO GALVANIZADO COM COSTURA, CLASSE LEVE, DN 50 MM ( 2"), E = 3,00 MM, *4,40* KG/M (NBR 5580) | D135: M | E135: 3.2 | F135: 75,26 | G135: 240.83 | H135: 75,33 | I135: 241.05
A136: 34723 | B136: PLACA DE SINALIZACAO EM CHAPA DE ACO NUM 16 COM PINTURA REFLETIVA | D136: M2 | E136: 0.36 | F136: 635,25 | G136: 228.69 | H136: 635,25 | I136: 228.69
A137: 88316 | B137: SERVENTE COM ENCARGOS COMPLEMENTARES | D137: H | E137: 0.27 | F137: 17,04 | G137: 4.6 | H137: 18.93 | I137: 5.11
A138: 100725 | B138: PINTURA COM TINTA ALQUÍDICA DE FUNDO E ACABAMENTO (ESMALTE SINTÉTICO GRAFITE) PULVERIZADA SOBRE SUPERFÍCIES METÁLICAS (EXCETO PERFIL) EXECUTADO EM OBRA (POR DEMÃO). AF_01/2020_PE | D138: M2 | E138: 1.01 | F138: 20,87 | G138: 21.07 | H138: 21.96 | I138: 22.17
A139: 5824 | B139: CAMINHÃO TOCO, PBT 16.000 KG, CARGA ÚTIL MÁX. 10.685 KG, DIST. ENTRE EIXOS 4,8 M, POTÊNCIA 189 CV, INCLUSIVE CARROCERIA FIXA ABERTA DE MADEIRA P/ TRANSPORTE GERAL DE CARGA SECA, DIMEN. APROX. 2,5 X 7,00 X 0,50 M - CHP DIURNO. AF_06/2014 | D139: CHP | E139: 0.011 | F139: 207,49 | G139: 2.28 | H139: 206.02 | I139: 2.26
A140: TOTAL | G140: 517.68 | H140: 520.75
A142: COMP 11 | B142: FORNECIMENTO E INSTALAÇÃO DE 02 PLACAS DE IDENTIFICAÇÃO DE RUA 45X20CM EM CHAPA DE AÇO, NUM MESMO POSTE METÁLICO DN 50mm, PINTADO COM ESMALTE SINTÉTICO 2 DEMÕES E FIXADO EM BASE DE CONCRETO NÃO ESTRUTURAL | I142: UN
A143: CÓDIGO | B143: DESCRIÇÃO | C143: INDICE | D143: UNIDADE | E143: QUANTIDADE | F143: C/ DESONERAÇÃO | H143: S/ DESONERAÇÃO
F144: CUSTO UNITÁRIO | G144: CUSTO TOTAL | H144: CUSTO UNITÁRIO | I144: CUSTO TOTAL
A146: 93358 | B146: ESCAVAÇÃO MANUAL DE VALA COM PROFUNDIDADE MENOR OU IGUAL A 1,30 M. AF_02/2021 | D146: M3 | E146: 0.027 | F146: 67,41 | G146: 1.82 | H146: 74.88 | I146: 2.02
A147: 100982 | B147: CARGA, MANOBRA E DESCARGA DE ENTULHO EM CAMINHÃO BASCULANTE 10 M³ - CARGA COM ESCAVADEIRA HIDRÁULICA (CAÇAMBA DE 0,80 M³ / 111 HP) E DESCARGA LIVRE (UNIDADE: M3). AF_07/2020 | D147: M3 | E147: 0.0351 | F147: 8,48 | G147: 0.29 | H147: 8.57 | I147: 0.3
A148: 95875 | B148: TRANSPORTE COM CAMINHÃO BASCULANTE DE 10 M³, EM VIA URBANA PAVIMENTADA, DMT ATÉ 30 KM (UNIDADE: M3XKM). AF_07/2020 | D148: M3XKM | E148: 0.0351 | F148: 2,33 | G148: 0.08 | H148: 2.32 | I148: 0.08
A149: 94963 | B149: CONCRETO FCK = 15MPA, TRAÇO 1:3,4:3,5 (EM MASSA SECA DE CIMENTO/ AREIA MÉDIA/ BRITA 1) - PREPARO MECÂNICO COM BETONEIRA 400 L. AF_05/2021 | D149: M3 | E149: 0.027 | F149: 436,82 | G149: 11.79 | H149: 449.61 | I149: 12.13
A150: 103670 | B150: LANÇAMENTO COM USO DE BALDES, ADENSAMENTO E ACABAMENTO DE CONCRETO EM ESTRUTURAS. AF_02/2022 | D150: M3 | E150: 0.027 | F150: 231,03 | G150: 6.23 | H150: 257.34 | I150: 6.94
A151: 21013 | B151: TUBO ACO GALVANIZADO COM COSTURA, CLASSE LEVE, DN 50 MM ( 2"), E = 3,00 MM, *4,40* KG/M (NBR 5580) | D151: M | E151: 3.2 | F151: 75,26 | G151: 240.83 | H151: 75,33 | I151: 241.05
A152: 13521 | B152: PLACA DE ACO ESMALTADA PARA IDENTIFICACAO DE RUA, *45 CM X 20* CM | D152: UN | E152: 2 | F152: 90,75 | G152: 181.5 | H152: 90,75 | I152: 181.5
A153: 88316 | B153: SERVENTE COM ENCARGOS COMPLEMENTARES | D153: H | E153: 0.27 | F153: 17,04 | G153: 4.6 | H153: 18.93 | I153: 5.11
A154: 100725 | B154: PINTURA COM TINTA ALQUÍDICA DE FUNDO E ACABAMENTO (ESMALTE SINTÉTICO GRAFITE) PULVERIZADA SOBRE SUPERFÍCIES METÁLICAS (EXCETO PERFIL) EXECUTADO EM OBRA (POR DEMÃO). AF_01/2020_PE | D154: M2 | E154: 1.01 | F154: 20,87 | G154: 21.07 | H154: 21.96 | I154: 22.17
A155: 5824 | B155: CAMINHÃO TOCO, PBT 16.000 KG, CARGA ÚTIL MÁX. 10.685 KG, DIST. ENTRE EIXOS 4,8 M, POTÊNCIA 189 CV, INCLUSIVE CARROCERIA FIXA ABERTA DE MADEIRA P/ TRANSPORTE GERAL DE CARGA SECA, DIMEN. APROX. 2,5 X 7,00 X 0,50 M - CHP DIURNO. AF_06/2014 | D155: CHP | E155: 0.011 | F155: 207,49 | G155: 2.28 | H155: 206.02 | I155: 2.26
A156: TOTAL | G156: 470.49 | H156: 473.56
A158: COMP 12 | B158: ALVENARIA EM TIJOLO CERAMICO MACICO 5X10X20CM 1 VEZ (ESPESSURA 20CM), ASSENTADO COM ARGAMASSA TRACO 1:2:8 | I158: M2
A159: CÓDIGO | B159: DESCRIÇÃO | C159: INDICE | D159: UNIDADE | E159: QUANTIDADE | F159: C/ DESONERAÇÃO | H159: S/ DESONERAÇÃO
F160: CUSTO UNITÁRIO | G160: CUSTO TOTAL | H160: CUSTO UNITÁRIO | I160: CUSTO TOTAL
A162: 7258 | B162: TIJOLO CERAMICO MACICO COMUM *5 X 10 X 20* CM (L X A X C) | D162: UN | E162: 140 | F162: 0,81 | G162: 113.4 | H162: 0,81 | I162: 113.4
A163: 87292 | B163: ARGAMASSA TRAÇO 1:2:8 (EM VOLUME DE CIMENTO, CAL E AREIA MÉDIA ÚMIDA) PARA EMBOÇO/MASSA ÚNICA/ASSENTAMENTO DE ALVENARIA DE VEDAÇÃO, PREPARO MECÂNICO COM BETONEIRA 400 L. AF_08/2019 | D163: M3 | E163: 0.062 | F163: 545,60 | G163: 33.82 | H163: 580.9 | I163: 36.01
A164: 88309 | B164: PEDREIRO COM ENCARGOS COMPLEMENTARES | D164: H | E164: 3.28 | F164: 21,15 | G164: 69.37 | H164: 23.68 | I164: 77.67
A165: 88316 | B165: SERVENTE COM ENCARGOS COMPLEMENTARES | D165: H | E165: 1.64 | F165: 17,04 | G165: 27.94 | H165: 18.93 | I165: 31.04
A166: TOTAL | G166: 244.53 | H166: 258.12
A168: COMP 13 | B168: TAMPAO FOFO ARTICULADO, CLASSE B125 CARGA MAX 12,5 T, REDONDO TAMPA 600 MM REDE PLUVIAL/ESGOTO, ASSENTADO COM ARG CIM/AREIA 1:4, FORNECIMENTO E ASSENTAMENTO (ref. antigo cód. 83627) | I168: UN
A169: CÓDIGO | B169: DESCRIÇÃO | C169: INDICE | D169: UNIDADE | E169: QUANTIDADE | F169: C/ DESONERAÇÃO | H169: S/ DESONERAÇÃO
F170: CUSTO UNITÁRIO | G170: CUSTO TOTAL | H170: CUSTO UNITÁRIO | I170: CUSTO TOTAL
A172: 11301 | B172: TAMPAO FOFO ARTICULADO, CLASSE B125 CARGA MAX 12,5 T, REDONDO, TAMPA 600 MM (COM INSCRICAO EM RELEVO DO TIPO DE REDE) | D172: UN | E172: 1 | F172: 632,94 | G172: 632.94 | H172: 546,53 | I172: 546.53
A173: 87316 | B173: ARGAMASSA TRAÇO 1:4 (EM VOLUME DE CIMENTO E AREIA GROSSA ÚMIDA) PARA CHAPISCO CONVENCIONAL, PREPARO MECÂNICO COM BETONEIRA 400 L. AF_08/2019 | D173: M3 | E173: 0.005 | F173: 486,40 | G173: 2.43 | H173: 503.87 | I173: 2.51
A174: 88309 | B174: PEDREIRO COM ENCARGOS COMPLEMENTARES | D174: H | E174: 1 | F174: 21,15 | G174: 21.15 | H174: 23.68 | I174: 23.68
A175: 88316 | B175: SERVENTE COM ENCARGOS COMPLEMENTARES | D175: H | E175: 1 | F175: 17,04 | G175: 17.04 | H175: 18.93 | I175: 18.93
A176: TOTAL | G176: 673.56 | H176: 591.65
A178: COMP 14 | B178: PLACA DE OBRA EM CHAPA DE ACO GALVANIZADO (ref. antigo cód. 74209/1) | I178: M2
A179: CÓDIGO | B179: DESCRIÇÃO | C179: INDICE | D179: UNIDADE | E179: QUANTIDADE | F179: C/ DESONERAÇÃO | H179: S/ DESONERAÇÃO
F180: CUSTO UNITÁRIO | G180: CUSTO TOTAL | H180: CUSTO UNITÁRIO | I180: CUSTO TOTAL
A182: 4417 | B182: SARRAFO NAO APARELHADO *2,5 X 7* CM, EM MACARANDUBA, ANGELIM OU EQUIVALENTE DA REGIAO - BRUTA | D182: M | E182: 1 | F182: 8,05 | G182: 8.05 | H182: 8,05 | I182: 8.05
A183: 4491 | B183: PONTALETE *7,5 X 7,5* CM EM PINUS, MISTA OU EQUIVALENTE DA REGIAO - BRUTA | D183: M | E183: 4 | F183: 7,36 | G183: 29.44 | H183: 7,34 | I183: 29.36
A184: 4813 | B184: PLACA DE OBRA (PARA CONSTRUCAO CIVIL) EM CHAPA GALVANIZADA *N. 22*, ADESIVADA, DE *2,4 X 1,2* M (SEM POSTES PARA FIXACAO) | D184: M2 | E184: 1 | F184: 275,00 | G184: 275 | H184: 275,00 | I184: 275
A185: 5075 | B185: PREGO DE ACO POLIDO COM CABECA 18 X 30 (2 3/4 X 10) | D185: KG | E185: 0.11 | F185: 24,31 | G185: 2.67 | H185: 25,27 | I185: 2.77
A186: 88262 | B186: CARPINTEIRO DE FORMAS COM ENCARGOS COMPLEMENTARES | D186: H | E186: 1 | F186: 20,82 | G186: 20.82 | H186: 23.32 | I186: 23.32
A187: 88316 | B187: SERVENTE COM ENCARGOS COMPLEMENTARES | D187: H | E187: 2 | F187: 17,04 | G187: 34.08 | H187: 18.93 | I187: 37.86
A188: 94962 | B188: CONCRETO MAGRO PARA LASTRO, TRAÇO 1:4,5:4,5 (EM MASSA SECA DE CIMENTO/ AREIA MÉDIA/ BRITA 1) - PREPARO MECÂNICO COM BETONEIRA 400 L. AF_05/2021 | D188: M3 | E188: 0.01 | F188: 384,76 | G188: 3.84 | H188: 397.76 | I188: 3.97
A189: TOTAL | G189: 373.9 | H189: 380.33
A191: COMP 15 | B191: SERVIÇOS TOPOGRAFICOS PARA PAVIMENTAÇÃO, INCLUSIVE NOTA DE SERVIÇOS, ACOMPANHAMENTO E GREIDE (REFER. SINAPI CÓD. 78472) | I191: M2
A192: CÓDIGO | B192: DESCRIÇÃO | C192: INDICE | D192: UNIDADE | E192: QUANTIDADE | F192: C/ DESONERAÇÃO | H192: S/ DESONERAÇÃO
F193: CUSTO UNITÁRIO | G193: CUSTO TOTAL | H193: CUSTO UNITÁRIO | I193: CUSTO TOTAL
A195: 4460 | B195: SARRAFO NAO APARELHADO *2,5 X 10* CM, EM MACARANDUBA, ANGELIM OU EQUIVALENTE DA REGIAO - BRUTA | D195: M | E195: 0.0029 | F195: 10,44 | G195: 0.03 | H195: 10,44 | I195: 0.03
A196: 88253 | B196: AUXILIAR DE TOPÓGRAFO COM ENCARGOS COMPLEMENTARES | D196: H | E196: 0.0025 | F196: 10,71 | G196: 0.02 | H196: 12.14 | I196: 0.03
A197: 88288 | B197: NIVELADOR COM ENCARGOS COMPLEMENTARES | D197: H | E197: 0.0025 | F197: 13,14 | G197: 0.03 | H197: 14.97 | I197: 0.03
A198: 88316 | B198: SERVENTE COM ENCARGOS COMPLEMENTARES | D198: H | E198: 0.0075 | F198: 17,04 | G198: 0.12 | H198: 18.93 | I198: 0.14
A199: 88597 | B199: DESENHISTA DETALHISTA COM ENCARGOS COMPLEMENTARES | D199: H | E199: 0.002 | F199: 20,39 | G199: 0.04 | H199: 23.39 | I199: 0.04
A200: 92145 | B200: CAMINHONETE CABINE SIMPLES COM MOTOR 1.6 FLEX, CÂMBIO MANUAL, POTÊNCIA 101/104 CV, 2 PORTAS - CHP DIURNO. AF_11/2015 | D200: CHP | E200: 0.001 | F200: 67,03 | G200: 0.06 | H200: 71.85 | I200: 0.07
A201: TOTAL | G201: 0.3 | H201: 0.34
A203: COMP 16 | B203: SONDAGEM DE INVESTIGAÇÃO DE INTERFERÊNCIAS SUBTERRÂNEAS, INCLUINDO ESCAVAÇÕES MECÂNICA E MANUAL E REATERRO | I203: UN
A204: CÓDIGO | B204: DESCRIÇÃO | C204: INDICE | D204: UNIDADE | E204: QUANTIDADE | F204: C/ DESONERAÇÃO | H204: S/ DESONERAÇÃO
F205: CUSTO UNITÁRIO | G205: CUSTO TOTAL | H205: CUSTO UNITÁRIO | I205: CUSTO TOTAL
A207: 90099 | B207: ESCAVAÇÃO MECANIZADA DE VALA COM PROF. ATÉ 1,5 M (MÉDIA MONTANTE E JUSANTE/UMA COMPOSIÇÃO POR TRECHO), RETROESCAV. (0,26 M3), LARG. MENOR QUE 0,8 M, EM SOLO DE 1A CATEGORIA, EM LOCAIS COM ALTO NÍVEL DE INTERFERÊNCIA. AF_02/2021 | D207: M3 | E207: 2.88 | F207: 14,57 | G207: 41.96 | H207: 14.86 | I207: 42.79
A208: 93358 | B208: ESCAVAÇÃO MANUAL DE VALA COM PROFUNDIDADE MENOR OU IGUAL A 1,30 M. AF_02/2021 | D208: M3 | E208: 1.92 | F208: 67,41 | G208: 129.42 | H208: 74.88 | I208: 143.76
A209: 93375 | B209: REATERRO MECANIZADO DE VALA COM RETROESCAVADEIRA (CAPACIDADE DA CAÇAMBA DA RETRO: 0,26 M³ / POTÊNCIA: 88 HP), LARGURA DE 0,8 A 1,5 M, PROFUNDIDADE ATÉ 1,5 M, COM SOLO DE 1ª CATEGORIA EM LOCAIS COM ALTO NÍVEL DE INTERFERÊNCIA. AF_04/2016 | D209: M3 | E209: 4.8 | F209: 18,56 | G209: 89.08 | H209: 19.67 | I209: 94.41
A210: TOTAL | G210: 260.46 | H210: 280.96
A212: COMP 17 | B212: EXECUÇÃO DE IMPRIMAÇÃO COM IMPRIMA (EMULSÃO ASFÁLTICA PARA IMPRIMAÇÃO) | I212: M2
A213: CÓDIGO | B213: DESCRIÇÃO | C213: INDICE | D213: UNIDADE | E213: QUANTIDADE | F213: C/ DESONERAÇÃO | H213: S/ DESONERAÇÃO
F214: CUSTO UNITÁRIO | G214: CUSTO TOTAL | H214: CUSTO UNITÁRIO | I214: CUSTO TOTAL
A216: 5839 | B216: VASSOURA MECÂNICA REBOCÁVEL COM ESCOVA CILÍNDRICA, LARGURA ÚTIL DE VARRIMENTO DE 2,44 M - CHP DIURNO. AF_06/2014 | D216: CHP | E216: 0.002 | F216: 10,78 | G216: 0.02 | H216: 10.28 | I216: 0.02
A217: 5841 | B217: VASSOURA MECÂNICA REBOCÁVEL COM ESCOVA CILÍNDRICA, LARGURA ÚTIL DE VARRIMENTO DE 2,44 M - CHI DIURNO. AF_06/2014 | D217: CHI | E217: 0.004 | F217: 5,13 | G217: 0.02 | H217: 4.89 | I217: 0.01
A218: 83362 | B218: ESPARGIDOR DE ASFALTO PRESSURIZADO, TANQUE 6 M3 COM ISOLAÇÃO TÉRMICA, AQUECIDO COM 2 MAÇARICOS, COM BARRA ESPARGIDORA 3,60 M, MONTADO SOBRE CAMINHÃO TOCO, PBT 14.300 KG, POTÊNCIA 185 CV - CHP DIURNO. AF_08/2015 | D218: CHP | E218: 0.001 | F218: 254,60 | G218: 0.25 | H218: 251.72 | I218: 0.25
A219: 88316 | B219: SERVENTE COM ENCARGOS COMPLEMENTARES | D219: H | E219: 0.0058 | F219: 17,04 | G219: 0.09 | H219: 18.93 | I219: 0.1
A220: 89035 | B220: TRATOR DE PNEUS, POTÊNCIA 85 CV, TRAÇÃO 4X4, PESO COM LASTRO DE 4.675 KG - CHP DIURNO. AF_06/2014 | D220: CHP | E220: 0.0017 | F220: 123,19 | G220: 0.2 | H220: 123.74 | I220: 0.21
A221: 89036 | B221: TRATOR DE PNEUS, POTÊNCIA 85 CV, TRAÇÃO 4X4, PESO COM LASTRO DE 4.675 KG - CHI DIURNO. AF_06/2014 | D221: CHI | E221: 0.0041 | F221: 39,56 | G221: 0.16 | H221: 42.59 | I221: 0.17
A222: 91486 | B222: ESPARGIDOR DE ASFALTO PRESSURIZADO, TANQUE 6 M3 COM ISOLAÇÃO TÉRMICA, AQUECIDO COM 2 MAÇARICOS, COM BARRA ESPARGIDORA 3,60 M, MONTADO SOBRE CAMINHÃO TOCO, PBT 14.300 KG, POTÊNCIA 185 CV - CHI DIURNO. AF_08/2015 | D222: CHI | E222: 0.0049 | F222: 56,01 | G222: 0.27 | H222: 58.82 | I222: 0.28
A223: COTAÇÃO | B223: EMULSÃO ASFÁLTICA PARA IMPRIMAÇÃO | D223: KG | E223: 1.2 | F223: 5.19 | G223: 6.22 | H223: 5.19 | I223: 6.22
A224: TOTAL | G224: 7.23 | H224: 7.26
A226: COMP 18 | B226: RECOMPOSIÇÃO MANUAL DE BASE PARA PAVIMENTAÇÃO COM BRITA GRADUADA SIMPLES, INCLUSIVE COMPACTAÇÃO E FORNECIMENTO DE MATERIAIS. EXCLUSIVE TRANSPORTE. | I226: M3
A227: CÓDIGO | B227: DESCRIÇÃO | C227: INDICE | D227: UNIDADE | E227: QUANTIDADE | F227: C/ DESONERAÇÃO | H227: S/ DESONERAÇÃO
F228: CUSTO UNITÁRIO | G228: CUSTO TOTAL | H228: CUSTO UNITÁRIO | I228: CUSTO TOTAL
A230: 4748 | B230: PEDRA BRITADA OU BICA CORRIDA, NAO CLASSIFICADA (POSTO PEDREIRA/FORNECEDOR, SEM FRETE) | D230: M3 | E230: 1.3 | F230: 89,58 | G230: 116.45 | H230: 89,58 | I230: 116.45
A231: 6259 | B231: CAMINHÃO PIPA 6.000 L, PESO BRUTO TOTAL 13.000 KG, DISTÂNCIA ENTRE EIXOS 4,80 M, POTÊNCIA 189 CV INCLUSIVE TANQUE DE AÇO PARA TRANSPORTE DE ÁGUA, CAPACIDADE 6 M3 - CHP DIURNO. AF_06/2014 | D231: CHP | E231: 0.035 | F231: 247,13 | G231: 8.64 | H231: 245.22 | I231: 8.58
A232: 88316 | B232: SERVENTE COM ENCARGOS COMPLEMENTARES | D232: H | E232: 1.05 | F232: 17,04 | G232: 17.89 | H232: 18.93 | I232: 19.87
A233: 90692 | B233: MINICARREGADEIRA SOBRE RODAS, POTÊNCIA LÍQUIDA DE 47 HP, CAPACIDADE NOMINAL DE OPERAÇÃO DE 646 KG - CHP DIURNO. AF_06/2015 | D233: CHP | E233: 0.035 | F233: 114,81 | G233: 4.01 | H233: 116.36 | I233: 4.07
A234: 91277 | B234: PLACA VIBRATÓRIA REVERSÍVEL COM MOTOR 4 TEMPOS A GASOLINA, FORÇA CENTRÍFUGA DE 25 KN (2500 KGF), POTÊNCIA 5,5 CV - CHP DIURNO. AF_08/2015 | D234: CHP | E234: 0.35 | F234: 8,24 | G234: 2.88 | H234: 8.73 | I234: 3.05
A235: TOTAL | G235: 149.87 | H235: 152.02
A237: COMP 19 | B237: EQUIPE TÉCNICA | I237: UN
... 79 more rows

Sheet CRONOGRAMA_DES (hidden)
C1: ESTADO DO MATO GROSSO DO SUL | O1: ____________________________________________
C2: =OFFSET(DADOS!$I$2,DADOS!$A$7,0,1,1) -> PREFEITURA MUNICIPAL DE SIDROLÃNDIA | O2: FABIO MARQUES RIBEIRO ENGENHEIRO CIVIL CREA: 15.276/MS
C3: =ORÇAMENTO_DES!$D$3 -> SECRETARIA DE OBRAS
A4: CRONOGRAMA FÍSICO FINANCEIRO - DESONERADO
A5: =DRENAGEM!A5 -> Objeto: | B5: =DRENAGEM!B5 -> INFRAESTRUTURA - URBANA - PAVIMENTAÇÃO ASFÁLTICA, DRENAGEM, ACESSIBILIDADE E SINALIZAÇÃO VIÁRIA EM DIVERSAS RUAS NO MUNICÍPIO DE SIDROLÂNDIA/MS
A6: Município: | B6: =DRENAGEM!B6 -> SIDROLÃNDIA
A7: Local: | B7: =DRENAGEM!B7 -> DIVERSAS RUAS
A8: IT EM | B8: DESCRIÇÃO DOS SERVIÇOS | D8: % | E8: VALOR ÍTEM | F8: MÊS 1 | I8: MÊS 2 | L8: MÊS 3 | O8: MÊS 4
A9: IT EM | F9: PROPONENTE | G9: % | H9: % ACUMULADA | I9: PROPONENTE | J9: % | K9: % ACUMULADA | L9: PROPONENTE | M9: % | N9: % ACUMULADA | O9: PROPONENTE | P9: % | Q9: % ACUMULADA
A10: 1 | B10: SERVIÇOS PRELIMINARES | D10: =E10/(E$19-$E$18) -> 0.0116028805 | E10: =ORÇAMENTO_DES!K21 -> 39862.68 | F10: =G10*E10 -> 7972.536 | G10: 0.2 | H10: =G10 -> 0.2 | I10: =E10*J10 -> 7972.536 | J10: 0.2 | K10: =H10+J10 -> 0.4 | L10: =E10*M10 -> 3986.268 | M10: 0.1 | N10: =K10+M10 -> 0.5 | O10: =E10*P10 -> 3986.268 | P10: 0.1 | Q10: =N10+P10 -> 0.6 | Y10: =G10+J10+P10+G25+J25+P25 -> 0.8 | AA10: =G10+J10+P10+G25 -> 0.6
A11: 2 | B11: MICRO E MACRO DRENAGEM - TERRAPLENAGEM | D11: =E11/(E$19-$E$18) -> 0.1564720156 | E11: =ORÇAMENTO_DES!K38 -> 537572.88 | F11: =G11*E11 -> 215029.152 | G11: 0.4 | H11: =G11 -> 0.4 | I11: 134393.22 | J11: 0.25 | K11: =H11+J11 -> 0.65 | L11: =E11*M11 -> 107514.576 | M11: 0.2 | N11: =K11+M11 -> 0.85 | O11: 80635.932 | P11: 0.15 | Q11: =N11+P11 -> 1 | Y11: 0.8 | AA11: 0.8
A12: 3 | B12: MICRO E MACRO DRENAGEM - DISPOSITIVOS AUXILIARES | D12: 0.4707469847 | E12: =ORÇAMENTO_DES!K53 -> 1617291.19 | F12: 566051.9165 | G12: 0.35 | H12: 0.35 | I12: 404322.7975 | J12: 0.25 | K12: 0.6 | L12: =E12*M12 -> 404322.7975 | M12: 0.25 | N12: =K12+M12 -> 0.85 | O12: 242593.6785 | P12: 0.15 | Q12: =N12+P12 -> 1 | Y12: 0.75 | AA12: 0.75
A13: 4 | B13: IMPLANTAÇÃO ASFÁLTICA - TERRAPLENAGEM | D13: 0.02733803565 | E13: =ORÇAMENTO_DES!K66 -> 93922.14 | F13: 0 | H13: 0 | I13: 0 | K13: 0 | L13: 28176.642 | M13: 0.3 | N13: 0.3 | O13: 28176.642 | P13: 0.3 | Q13: 0.6 | Y13: 0.7 | AA13: 0.5
A14: 5 | B14: IMPLANTAÇÃO ASFÁLTICA - PAVIMENTAÇÃO | D14: 0.1813248674 | E14: =ORÇAMENTO_DES!K85 -> 622956.96 | F14: 0 | H14: 0 | I14: 0 | K14: 0 | L14: 0 | N14: 0 | O14: 0 | Q14: 0 | Y14: 0.7 | AA14: 0.4
A15: 6 | B15: SERVIÇOS COMPLEMENTARES | D15: 0.08354535716 | E15: =ORÇAMENTO_DES!K92 -> 287027.16 | F15: 0 | H15: 0 | I15: 0 | K15: 0 | L15: 0 | N15: 0 | O15: 0 | Q15: 0 | Y15: 0.8 | AA15: 0
A16: 7 | B16: PASSEIO COM ACESSIBILIDADE | D16: 0.04480350756 | E16: =ORÇAMENTO_DES!K101 -> 153926.25 | F16: 0 | H16: 0 | I16: 0 | K16: 0 | L16: 0 | N16: 0 | O16: 0 | Q16: 0 | Y16: 0.5 | AA16: 0
A17: 8 | B17: SINALIZAÇÃO VIÁRIA PERMANENTE | D17: 0.02416635146 | E17: =ORÇAMENTO_DES!K107 -> 83025.55 | F17: 0 | H17: 0 | I17: 0 | K17: 0 | L17: 0 | N17: 0 | O17: 0 | Q17: 0 | Y17: 0.5 | AA17: 0
A18: 9 | B18: ADMINISTRAÇÃO LOCAL | D18: 0.07750612624 | E18: =ORÇAMENTO_DES!K110 -> 266278.87 | F18: 33284.85875 | G18: 0.125 | H18: =G18 -> 0.125 | I18: 33284.85875 | J18: 0.125 | K18: =H18+J18 -> 0.25 | L18: 33284.85875 | M18: 0.125 | N18: =K18+M18 -> 0.375 | O18: =E18*P18 -> 33284.85875 | P18: 0.125 | Q18: 0.5 | Y18: 0.75 | AA18: 0.5
E19: =SUM(E10:E18) -> 3701863.68
C20: T OT AL MENSAL= | F20: =SUM(F10:F18) -> 822338.4632 | I20: =SUM(I10:I18) -> 579973.4122 | L20: =SUM(L10:L18) -> 577285.1423 | O20: =SUM(O10:O18) -> 388677.3792
C21: T OT AL ACUMULADO= | F21: =F20 -> 822338.4632 | G21: =F21/E19 -> 0.2221417465 | H21: =G21 -> 0.2221417465 | I21: =F21+I20 -> 1402311.875 | J21: =I20/E19 -> 0.1566706563 | K21: =J21+H21 -> 0.3788124028 | L21: =I21+L20 -> 1979597.018 | M21: =L20/E19 -> 0.1559444626 | N21: =M21+K21 -> 0.5347568654 | O21: =L21+O20 -> 2368274.397 | P21: =O20/E19 -> 0.1049950546 | Q21: =P21+N21 -> 0.63975192
A23: IT EM | B23: DESCRIÇÃO DOS SERVIÇOS | D23: % | E23: VALOR ÍTEM | F23: MÊS 5 | I23: MÊS 6 | L23: MÊS 7 | O23: MÊS 8
A24: IT EM | F24: PROPONENT E | G24: % | H24: % ACUMULADA | I24: PROPONENT E | J24: % | K24: % ACUMULADA | L24: PROPONENT E | M24: % | N24: % ACUMULADA | O24: PROPONENT E | P24: % | Q24: % ACUMULADA
A25: 1 | B25: SERVIÇOS PRELIMINARES | D25: =D10 -> 0.0116028805 | E25: 39862.68 | F25: =G25*E25 -> 3986.268 | G25: 0.1 | H25: =Q10+G25 -> 0.7 | I25: =J25*E25 -> 3986.268 | J25: 0.1 | K25: =H25+J25 -> 0.8 | L25: =M25*E25 -> 3986.268 | M25: 0.1 | N25: =K25+M25 -> 0.9 | O25: =P25*E25 -> 3986.268 | P25: 0.1 | Q25: =N25+P25 -> 1 | R25: =(F10+I10+L10+O10+F25+I25+L25+O25)/E10 -> 1
A26: 2 | B26: MICRO E MACRO DRENAGEM - TERRAPLENAGEM | D26: 0.1564720156 | E26: 537572.88 | F26: =G26*E26 -> 0 | H26: =Q11+G26 -> 1 | I26: 0 | K26: =H26+J26 -> 1 | L26: =M26*E26 -> 0 | N26: =K26+M26 -> 1 | O26: 0 | Q26: 1 | R26: =(F11+I11+L11+O11+F26+I26+L26+O26)/E11 -> 1
A27: 3 | B27: MICRO E MACRO DRENAGEM - DISPOSITIVOS AUXILIARES | D27: 0.4707469847 | E27: 1617291.19 | F27: =G27*E27 -> 0 | H27: 1 | I27: 0 | K27: 1 | L27: =M27*E27 -> 0 | N27: 1 | O27: 0 | Q27: 1 | R27: 1
A28: 4 | B28: IMPLANTAÇÃO ASFÁLTICA - TERRAPLENAGEM | D28: 0.02733803565 | E28: 93922.14 | F28: 18784.428 | G28: 0.2 | H28: 0.8 | I28: 18784.428 | J28: 0.2 | K28: 1 | L28: 0 | N28: 1 | O28: 0 | Q28: 1 | R28: 1
A29: 5 | B29: IMPLANTAÇÃO ASFÁLTICA - PAVIMENTAÇÃO | D29: 0.1813248674 | E29: 622956.96 | F29: 249182.784 | G29: 0.4 | H29: 0.4 | I29: 186887.088 | J29: 0.3 | K29: 0.7 | L29: 186887.088 | M29: 0.3 | N29: 1 | O29: 0 | Q29: =N29+P29 -> 1 | R29: 1
A30: 6 | B30: SERVIÇOS COMPLEMENTARES | D30: 0.08354535716 | E30: 287027.16 | F30: 0 | H30: 0 | I30: 86108.148 | J30: 0.3 | K30: 0.3 | L30: 57405.432 | M30: 0.2 | N30: =K30+M30 -> 0.5 | O30: 143513.58 | P30: 0.5 | Q30: =N30+P30 -> 1 | R30: 1
A31: 7 | B31: PASSEIO COM ACESSIBILIDADE | D31: 0.04480350756 | E31: 153926.25 | F31: 0 | H31: 0 | I31: 0 | K31: 0 | L31: 76963.125 | M31: 0.5 | N31: 0.5 | O31: 76963.125 | P31: 0.5 | Q31: 1 | R31: 1
A32: 8 | B32: SINALIZAÇÃO VIÁRIA PERMANENTE | D32: 0.02416635146 | E32: 83025.55 | F32: 0 | H32: 0 | I32: 0 | K32: 0 | L32: 41512.775 | M32: 0.5 | N32: 0.5 | O32: 41512.775 | P32: 0.5 | Q32: 1 | R32: 1
A33: 9 | B33: ADMINISTRAÇÃO LOCAL | D33: 0.07750612624 | E33: 266278.87 | F33: 33284.85875 | G33: 0.125 | H33: 0.625 | I33: 33284.85875 | J33: 0.125 | K33: 0.75 | L33: 33284.85875 | M33: 0.125 | N33: 0.875 | O33: 33284.85875 | P33: 0.125 | Q33: 1 | R33: 1
E34: =SUM(E25:E33) -> 3701863.68
D35: T OT AL MENSAL= | F35: =SUM(F25:F33) -> 305238.3387 | I35: =SUM(I25:I33) -> 329050.7907 | L35: =SUM(L25:L33) -> 400039.5468 | O35: =SUM(O25:O33) -> 299260.6068
D36: T OT AL ACUMULADO= | F36: =O21+F35 -> 2673512.736 | G36: =F35/E34 -> 0.08245531579 | H36: =G36+Q21 -> 0.7222072358 | I36: =F36+I35 -> 3002563.527 | J36: =I35/E34 -> 0.08888787357 | K36: =J36+H36 -> 0.8110951094 | L36: =I36+L35 -> 3402603.073 | M36: =L35/E34 -> 0.1080643647 | N36: =M36+K36 -> 0.9191594741 | O36: =L36+O35-0.01 -> 3701863.67 | P36: =O35/E34 -> 0.08084052591 | Q36: =P36+N36 -> 1

Sheet BDI DESONERADO (hidden)
B1: ESTADO DO MATO GROSSO DO SUL | D1: ____________________________________________
B2: =OFFSET(DADOS!$I$2,DADOS!$A$7,0,1,1) -> PREFEITURA MUNICIPAL DE SIDROLÃNDIA | D2: FABIO MARQUES RIBEIRO ENGENHEIRO CIVIL CREA: 15.276/MS
B3: =ORÇAMENTO_DES!$D$3 -> SECRETARIA DE OBRAS
A4: DEMONSTRAÇÃO DE BDI - DESONERADO - Acórdão 2622/2013
A5: =DRENAGEM!A5 -> Objeto: | B5: =DRENAGEM!B5 -> INFRAESTRUTURA - URBANA - PAVIMENTAÇÃO ASFÁLTICA, DRENAGEM, ACESSIBILIDADE E SINALIZAÇÃO VIÁRIA EM DIVERSAS RUAS NO MUNICÍPIO DE SIDROLÂNDIA/MS
A6: Município: | B6: =DRENAGEM!B6 -> SIDROLÃNDIA
A7: Local: | B7: =DRENAGEM!B7 -> DIVERSAS RUAS
A9: TIPO DE OBRA: | B9: CONSTRUÇÃO DE RODOVIAS - SERVIÇOS
A11: IMPOSTOS:
B12: TRIBUTOS: | C12: 3.65 | D12: %
B13: ISS BRUTO: | C13: 5 | D13: %
B14: INCIDENCIA SOBRE MO: | C14: 40 | D14: %
B15: CPRB | C15: 4.5 | D15: %
B16: TOTAL TRIBUSTOS: | C16: =((C14*C13/100)+C12+C15) -> 10.15 | D16: %
E17: ADOTADO
E19: 4.01
E20: 0.4
E21: 0.56
E22: 1.11
E23: 7.3
A26: BDI DESONERADO ADOTADO | E26: =ROUND((((((1+(E19+E20+E21)/100))*(1+E22/100)*(1+E23/100))/(1-C16/100))-1),4) -> 0.2675
A28: TIPO DE OBRA: | B28: FORNECIMENTO DE MATERIAIS E EQUIPAMENTOS
A30: IMPOSTOS:
B31: TRIBUTOS: | C31: 3.65 | D31: %
B32: ISS BRUTO: | D32: %
B33: INCIDENCIA SOBRE MO: | C33: 100 | D33: %
B34: CPRB | C34: 4.5 | D34: %
B35: TOTAL TRIBUSTOS: | C35: =C31+C32+C34*(C33/100) -> 8.15 | D35: %
E36: ADOTADO
E38: 1.5
E39: 0.3
E40: 0.56
E41: 0.85
E42: 3.5
A45: BDI DESONERADO ADOTADO | E45: =ROUND(((((1+(E38+E39+E40)/100))*(1+E41/100)*(1+E42/100))/(1-C35/100))-1,4) -> 0.1632

Sheet CRONOGRAMA_NAO_DES
B1: ESTADO DO MATO GROSSO DO SUL
B2: PREFEITURA MUNICIPAL DE SIDROLÃNDIA | N2: ____________________________________________
B3: SECRETARIA DE OBRAS | N3: FABIO MARQUES RIBEIRO ENGENHEIRO CIVIL CREA: 15.276/MS
A4: CRONOGRAMA FÍSICO FINANCEIRO - NÃO DESONERADO
A5: Objeto: | B5: INFRAESTRUTURA - URBANA - PAVIMENTAÇÃO ASFÁLTICA, DRENAGEM, ACESSIBILIDADE E SINALIZAÇÃO VIÁRIA EM DIVERSAS RUAS NO MUNICÍPIO DE SIDROLÂNDIA/MS
A6: Município: | B6: SIDROLÃNDIA
A7: Local: | B7: DIVERSAS RUAS
A8: IT EM | B8: DESCRIÇÃO DOS SERVIÇOS | C8: % | D8: VALOR ÍTEM | E8: MÊS 1 | H8: MÊS 2 | K8: MÊS 3 | N8: MÊS 4
A9: IT EM | E9: PROPONENTE | F9: % | G9: % ACUMULADA | H9: PROPONENTE | I9: % | J9: % ACUMULADA | K9: PROPONENTE | L9: % | M9: % ACUMULADA | N9: PROPONENTE | O9: % | P9: % ACUMULADA
A10: 1 | B10: SERVIÇOS PRELIMINARES | C10: 0.0116168078 | D10: 39091.39 | E10: 7818.278 | F10: 0.2 | G10: 0.2 | H10: 7818.278 | I10: 0.2 | J10: 0.4 | K10: 3909.139 | L10: 0.1 | M10: 0.5 | N10: 3909.139 | O10: 0.1 | P10: 0.6 | U10: 11728.917 | W10: 7818.978
A11: 2 | B11: MICRO E MACRO DRENAGEM - TERRAPLENAGEM | C11: 0.161400747 | D11: 543125.07 | E11: 217250.028 | F11: 0.4 | G11: 0.4 | H11: 135781.2675 | I11: 0.25 | J11: 0.65 | K11: 108625.014 | L11: 0.2 | M11: 0.85 | N11: 81468.7605 | O11: 0.15 | P11: 1 | U11: 135783.3175 | W11: 135782.3175
A12: 3 | B12: MICRO E MACRO DRENAGEM - DISPOSITIVOS AUXILIARES | C12: 0.466279294 | D12: 1569063.21 | E12: 549172.1235 | F12: 0.35 | G12: 0.35 | H12: 392265.8025 | I12: 0.25 | J12: 0.6 | K12: 392265.8025 | L12: 0.25 | M12: 0.85 | N12: 235359.4815 | O12: 0.15 | P12: 1 | U12: 392267.7525 | W12: 392266.7525
A13: 4 | B13: IMPLANTAÇÃO ASFÁLTICA - TERRAPLENAGEM | C13: 0.02741934822 | D13: 92268.07 | E13: 0 | G13: 0 | H13: 0 | J13: 0 | K13: 27680.421 | L13: 0.3 | M13: 0.3 | N13: 27680.421 | O13: 0.3 | P13: 0.6 | U13: 18454.814 | W13: 0.2
A14: 5 | B14: IMPLANTAÇÃO ASFÁLTICA - PAVIMENTAÇÃO | C14: 0.178000685 | D14: 598985.05 | E14: 0 | G14: 0 | H14: 0 | J14: 0 | K14: 0 | M14: 0 | N14: 0 | P14: 0 | U14: 179696.615 | W14: 0.4
A15: 6 | B15: SERVIÇOS COMPLEMENTARES | C15: 0.08627519248 | D15: 290322.2 | E15: 0 | G15: 0 | H15: 0 | J15: 0 | K15: 0 | M15: 0 | N15: 0 | P15: 0 | U15: 87096.96 | W15: 0
A16: 7 | B16: PASSEIO COM ACESSIBILIDADE | C16: 0.04533178729 | D16: 152544.71 | E16: 0 | G16: 0 | H16: 0 | J16: 0 | K16: 0 | M16: 0 | N16: 0 | P16: 0 | U16: 0 | W16: 0
A17: 8 | B17: SINALIZAÇÃO VIÁRIA PERMANENTE | C17: 0.02367613812 | D17: 79671.9 | E17: 0 | G17: 0 | H17: 0 | J17: 0 | K17: 0 | M17: 0 | N17: 0 | P17: 0 | U17: 0 | W17: 0
A18: 9 | B18: ADMINISTRAÇÃO LOCAL | C18: 0.08588421714 | D18: 289006.54 | E18: 36125.8175 | F18: 0.125 | G18: 0.125 | H18: 36125.8175 | I18: 0.125 | J18: 0.25 | K18: 36125.8175 | L18: 0.125 | M18: 0.375 | N18: 36125.8175 | O18: 0.125 | P18: 0.5 | U18: 72252.885 | W18: 36126.3175
D19: 3654078.14
B20: T OT AL MENSAL= | E20: 810366.247 | H20: 571991.1655 | K20: 568606.194 | N20: 384543.6195
B21: T OT AL ACUMULADO= | E21: 810366.247 | F21: 0.2217703661 | G21: 0.2217703661 | H21: 1382357.413 | I21: 0.156535012 | J21: 0.3783053781 | K21: 1950963.607 | L21: 0.1556086576 | M21: 0.5339140357 | N21: 2335507.226 | O21: 0.1052368353 | P21: 0.639150871
A23: IT EM | B23: DESCRIÇÃO DOS SERVIÇOS | C23: % | D23: VALOR ÍTEM | E23: MÊS 5 | H23: MÊS 6 | K23: MÊS 7 | N23: MÊS 8
A24: IT EM | B24: DESCRIÇÃO DOS SERVIÇOS | E24: PROPONENT E | F24: % | G24: % ACUMULADA | H24: PROPONENT E | I24: % | J24: % ACUMULADA | K24: PROPONENT E | L24: % | M24: % ACUMULADA | N24: PROPONENT E | O24: % | P24: % ACUMULADA
A25: 1 | B25: SERVIÇOS PRELIMINARES | C25: 0.0116168078 | D25: 39091.39 | E25: 3909.139 | F25: 0.1 | G25: 0.7 | H25: 3909.139 | I25: 0.1 | J25: 0.8 | K25: 3909.139 | L25: 0.1 | M25: 0.9 | N25: 3909.139 | O25: 0.1 | P25: 1
A26: 2 | B26: MICRO E MACRO DRENAGEM - TERRAPLENAGEM | C26: 0.161400747 | D26: 543125.07 | E26: 0 | G26: 1 | H26: 0 | J26: 1 | K26: 0 | M26: 1 | N26: 0 | P26: 1
A27: 3 | B27: MICRO E MACRO DRENAGEM - DISPOSITIVOS AUXILIARES | C27: 0.466279294 | D27: 1569063.21 | E27: 0 | G27: 1 | H27: 0 | J27: 1 | K27: 0 | M27: 1 | N27: 0 | P27: 1
A28: 4 | B28: IMPLANTAÇÃO ASFÁLTICA - TERRAPLENAGEM | C28: 0.02741934822 | D28: 92268.07 | E28: 18453.614 | F28: 0.2 | G28: 0.8 | H28: 18453.614 | I28: 0.2 | J28: 1 | K28: 0 | M28: 1 | N28: 0 | P28: 1
A29: 5 | B29: IMPLANTAÇÃO ASFÁLTICA - PAVIMENTAÇÃO | C29: 0.178000685 | D29: 598985.05 | E29: 239594.02 | F29: 0.4 | G29: 0.4 | H29: 179695.515 | I29: 0.3 | J29: 0.7 | K29: 179695.515 | L29: 0.3 | M29: 1 | N29: 0 | P29: 1
A30: 6 | B30: SERVIÇOS COMPLEMENTARES | C30: 0.08627519248 | D30: 290322.2 | E30: 0 | G30: 0 | H30: 87096.66 | I30: 0.3 | J30: 0.3 | K30: 58064.44 | L30: 0.2 | M30: 0.5 | N30: 145161.1 | O30: 0.5 | P30: 1
A31: 7 | B31: PASSEIO COM ACESSIBILIDADE | C31: 0.04533178729 | D31: 152544.71 | E31: 0 | G31: 0 | H31: 0 | J31: 0 | K31: 76272.355 | L31: 0.5 | M31: 0.5 | N31: 76272.355 | O31: 0.5 | P31: 1
A32: 8 | B32: SINALIZAÇÃO VIÁRIA PERMANENTE | C32: 0.02367613812 | D32: 79671.9 | E32: 0 | G32: 0 | H32: 0 | J32: 0 | K32: 39835.95 | L32: 0.5 | M32: 0.5 | N32: 39835.95 | O32: 0.5 | P32: 1
A33: 9 | B33: ADMINISTRAÇÃO LOCAL | C33: 0.08588421714 | D33: 289006.54 | E33: 36125.8175 | F33: 0.125 | G33: 0.625 | H33: 36125.8175 | I33: 0.125 | J33: 0.75 | K33: 36125.8175 | L33: 0.125 | M33: 0.875 | N33: 36125.8175 | O33: 0.125 | P33: 1
D34: 3654078.14
C35: T OT AL MENSAL= | E35: 298082.5905 | H35: 325280.7455 | K35: 393903.2165 | N35: 301304.3615
C36: T OT AL ACUMULADO= | E36: 2633589.817 | F36: 0.08157531916 | G36: 0.7207261902 | H36: 2958870.562 | I36: 0.08901855216 | J36: 0.8097447423 | K36: 3352773.779 | L36: 0.1077982466 | M36: 0.917542989 | N36: 3654078.13 | O36: 0.08245701103 | P36: 1

Sheet BDI NAO DESONERADO
B1: ESTADO DO MATO GROSSO DO SUL
B2: PREFEITURA MUNICIPAL DE SIDROLÃNDIA | D2: ____________________________________________
B3: SECRETARIA DE OBRAS | D3: FABIO MARQUES RIBEIRO ENGENHEIRO CIVIL CREA: 15.276/MS
A4: DEMONSTRAÇÃO DE BDI - NÃO DESONERADO - Acórdão 2622/2013
A5: Objeto: | B5: INFRAESTRUTURA - URBANA - PAVIMENTAÇÃO ASFÁLTICA, DRENAGEM, ACESSIBILIDADE E SINALIZAÇÃO VIÁRIA EM DIVERSAS RUAS NO MUNICÍPIO DE SIDROLÂNDIA/MS
A6: Município: | B6: SIDROLÃNDIA
A7: Local: | B7: DIVERSAS RUAS
A9: TIPO DE OBRA: | B9: CONSTRUÇÃO DE RODOVIAS - SERVIÇOS
A11: IMPOSTOS:
B12: TRIBUTOS: | C12: 3.65 | D12: %
B13: ISS BRUTO: | C13: 5 | D13: %
B14: INCIDENCIA SOBRE MO: | C14: 40 | D14: %
B15: TOTAL TRIBUSTOS: | C15: 5.65 | D15: %
E16: ADOTADO
E18: 4.01
E19: 0.4
E20: 0.56
E21: 1.11
E22: 7.3
A25: BDI SEM DESONERAÇÃO ADOTADO | E25: 0.207
A27: TIPO DE OBRA: | B27: FORNECIMENTO DE MATERIAIS E EQUIPAMENTOS
A29: IMPOSTOS:
B30: TRIBUTOS: | C30: 3.65 | D30: %
B31: ISS BRUTO: | C31: 5 | D31: %
B32: INCIDENCIA SOBRE MO: | C32: 100 | D32: %
B33: TOTAL TRIBUSTOS: | C33: 8.65 | D33: %
E34: ADOTADO
E36: 1.5
E37: 0.3
E38: 0.56
E39: 0.85
E40: 3.5
A43: BDI DESONERADO ADOTADO | E43: 0.1696

Sheet CAMADAS (hidden)
B1: ESTADO DO MATO GROSSO DO SUL
B2: =OFFSET(DADOS!$I$2,DADOS!$A$7,0,1,1) -> PREFEITURA MUNICIPAL DE SIDROLÃNDIA | M2: ____________________________________________
B3: =ORÇAMENTO_DES!$D$3 -> SECRETARIA DE OBRAS | M3: FABIO MARQUES RIBEIRO ENGENHEIRO CIVIL CREA: 15.276/MS
A4: MEMÓRIA DE CALCULO CAMADAS PAVIMENTAÇÃO
A5: =DRENAGEM!A5 -> Objeto: | B5: =DRENAGEM!B5 -> INFRAESTRUTURA - URBANA - PAVIMENTAÇÃO ASFÁLTICA, DRENAGEM, ACESSIBILIDADE E SINALIZAÇÃO VIÁRIA EM DIVERSAS RUAS NO MUNICÍPIO DE SIDROLÂNDIA/MS
A6: Município: | B6: =DRENAGEM!B6 -> SIDROLÃNDIA
A7: Local: | B7: =DRENAGEM!B7 -> DIVERSAS RUAS
A8: COEFICIENTE DE EQUIVALÊNCIA ESTRUTURAL | B8: CBUQ | D8: 2 | F8: NUMERO N | L8: ESPESSURA EQUIVALENTE | N8: CBRp | O8: =K14 -> 3
B9: BRITA GRADUADA | D9: 1 | N9: CBRB | O9: 21
B10: SUBLEITO | D10: 1 | F10: N= | G10: 2,5X106 | N10: CBRS | O10: 40
N11: CBRR | O11: 0
A13: REVESTIMENTO | B13: N | D13: TRAFEGO | F13: TIPO DE REVESTIMENTO | K13: ESPESSURA ADOTADA
B14: N≥X105 | D14: LEVE | F14: CONCRETO ASFÁLTICO USINADO A QUENTE | K14: 3 | M14: cm
A16: DIMENSIONAMENTO DA BASE | B16: CBR | C16: ESP.EQ | D16: CBUQ | E16: E MIN | F16: E ADOTADO | G16: PARÂMETRO DE TRÁFEGO | I16: TRAFEGO | J16: VMD 1ºANO | K16: VT | L16: TAXA % | M16: FV | N16: V1 | O16: PERIODO ANOS
B17: 0.8 | C17: =O9 -> 21 | D17: =K14 -> 3 | E17: =SUM(C17-D17*D8)/D9 -> 15 | F17: 15 | G17: =K17*M17 -> 2550966.75 | I17: LEVE | J17: =(N17*(2+(O17+1)*L17/100))/2 -> 418.5 | K17: =365*O17*J17 -> 1527525 | L17: 10 | M17: 1.67 | N17: 270 | O17: 10
A19: DIMENSIONAMENTO DO SUBLEITO | B19: CBR | C19: H | D19: CBUQ | E19: BASE | F19: ESP. MINIMA | G19: ESP. ADOTADA | H19: TRECHO | J19: OBSERVAÇÃO
H20: EST.INIC. | I20: EST.FINAL | J20: ISC=5,5%
B21: 0.1 | C21: =O10 -> 40 | D21: =D17 -> 3 | E21: =F17 -> 15 | F21: =SUM(C21-D21*D8-E21*D9)/D10 -> 19 | G21: 20 | J21: ISC=7,2%,7,2%;20,3%
J22: ISC=19,4%;30,8%;32%;36,7%
A24: REFORÇO | B24: CBR | C24: H | D24: CBUQ | E24: BASE | F24: ESP. MINIMA | G24: ESP. ADOTADA | H24: TRECHO | J24: OBSERVAÇÃO
H25: EST.INIC. | I25: EST.FINAL
C26: =O11 -> 0 | F26: =SUM(C26-D26*2-E26*1.1)/D10 -> 0
A28: Coeficiente de Equivalência Estrutural dos Materiais | I28: Espessura Mínima de Revestimentos Betuminoso
A29: Tipo de Material | F29: Coeficiente Estrutural (K) | I29: n | K29: tipo
A30: Base ou revestimento de concreto asfáltico | F30: 2 | I30: N≤ 106 | K30: TSD-1,5 a 3,0 cm
A31: Base ou revestimento pré-misturado a quente de graduação densa | F31: 1.7 | I31: 106 < N ≤ 5 x 106 | K31: BETUMINOSO 5,00 cm
A32: Base ou revestimento pré-misturado a frio de graduação densa | F32: 1.4 | I32: 5x106 < N ≤ 107 | K32: BETUMINOSO 7,50 cm
A33: Base ou revestimento asfáltico por penetração | F33: 1.2 | I33: 107 < N ≤ 5 x 107 | K33: BETUMINOSO 10,00 cm
A34: Base Granulares | F34: 1 | I34: N> 5 x 107 | K34: BETUMINOSO 12,50 cm
A35: Sub-base granulares | F35: 1
A36: Reforço do subleito | F36: 1
A37: Solo-cimento com resistência aos 7 dias superior a 4,5MPa (compressão) | F37: 1.7
A38: Solo-cimento com resistência aos 7 dias entre 2,8 a 4,5MPa (compressão) | F38: 1.4
A39: Solo-cimento com resistência aos 7 dias entre 2,1 a 4,5MPa (compressão) | F39: 1.2
A40: Bases de solo-cal | F40: 1.2

Sheet MOVIMENTO DE TERRA (hidden)
C1: ESTADO DO MATO GROSSO DO SUL
C2: =OFFSET(DADOS!$I$2,DADOS!$A$7,0,1,1) -> PREFEITURA MUNICIPAL DE SIDROLÃNDIA
C3: =ORÇAMENTO_DES!$D$3 -> SECRETARIA DE OBRAS
A4: MEMÓRIA DE CALCULO CORTE E ATERRO
A5: =DRENAGEM!A5 -> Objeto: | B5: =DRENAGEM!B5 -> INFRAESTRUTURA - URBANA - PAVIMENTAÇÃO ASFÁLTICA, DRENAGEM, ACESSIBILIDADE E SINALIZAÇÃO VIÁRIA EM DIVERSAS RUAS NO MUNICÍPIO DE SIDROLÂNDIA/MS
A6: Município: | B6: =DRENAGEM!B6 -> SIDROLÃNDIA
A7: Local: | B7: =DRENAGEM!B7 -> DIVERSAS RUAS
A8: EXTRAIDO DAS PLANILHA DE CUBAÇÃO DO CIVIL 3D | C8: QUANTIDADES
A13: LOCAL | C13: VOLUMES
C14: CORTE (m³) | E14: ATERRO (m³)
A15: =PAVIMENTAÇÃO!G14 -> RUA PROJETADA | C15: 126.63 | E15: 110.49
A16: =PAVIMENTAÇÃO!H14 -> RUA ALOISIO MAIA | C16: 153.31 | E16: 74.02
A17: =PAVIMENTAÇÃO!I14 -> RUA JOVELINA ZUZA | C17: 114.49 | E17: 68.69
A18: =PAVIMENTAÇÃO!J14 -> RUA GUARANI | C18: 134.52 | E18: 25.34
A19: =PAVIMENTAÇÃO!K14 -> RUA EVARISTO ANZILIERO | C19: 102.66 | E19: 42.85
A20: =PAVIMENTAÇÃO!L14 -> RUA DALVA PEREIRA | C20: 72.76 | E20: 12.62
A21: =PAVIMENTAÇÃO!M14 -> RUA MARCINIO DE BRITO | C21: 113.69 | E21: 4.29
A22: =PAVIMENTAÇÃO!N14 -> RUA MARCOS FERREIRA | C22: 103.06 | E22: 20.53
A23: =PAVIMENTAÇÃO!O14 -> RUA HÉLIO MARTINS | C23: 335.5 | E23: 112.79
A24: VOLUME TOTAL | C24: =SUM(C15:D23) -> 1256.62 | E24: =SUM(E15:F23) -> 471.62
B27: ____________________________________________
B28: FABIO MARQUES RIBEIRO ENGENHEIRO CIVIL CREA: 15.276/MS

Sheet PAVIMENTAÇÃO (hidden)
D1: ESTADO DO MATO GROSSO DO SUL
D2: =OFFSET(DADOS!$I$2,DADOS!$A$7,0,1,1) -> PREFEITURA MUNICIPAL DE SIDROLÃNDIA
D3: =ORÇAMENTO_DES!$D$3 -> SECRETARIA DE OBRAS
A4: MEMÓRIA DE CALCULO PAVIMENTAÇÃO
A5: =DRENAGEM!A5 -> Objeto: | B5: =DRENAGEM!B5 -> INFRAESTRUTURA - URBANA - PAVIMENTAÇÃO ASFÁLTICA, DRENAGEM, ACESSIBILIDADE E SINALIZAÇÃO VIÁRIA EM DIVERSAS RUAS NO MUNICÍPIO DE SIDROLÂNDIA/MS
A6: Município: | B6: =DRENAGEM!B6 -> SIDROLÃNDIA
A7: Local: | B7: =DRENAGEM!B7 -> DIVERSAS RUAS
A8: Transporte DMT (Km)
A9: Pedreira | C9: =DMT!E7 -> 120 | D9: CBUQ | E9: =DMT!E9 -> 89
A10: Bota Fora | C10: =DMT!E8 -> 6 | D10: Emulsão/Cim. | E10: =DMT!E10 -> 445
A11: Solo | C11: =DMT!E8 -> 6 | D11: Bica corrida | E11: =DMT!E11 -> 120
A12: Areeiro | C12: =DMT!E13 -> 25
A14: NOME DA RUA | G14: RUA PROJETADA | H14: RUA ALOISIO MAIA | I14: RUA JOVELINA ZUZA | J14: RUA GUARANI | K14: RUA EVARISTO ANZILIERO | L14: RUA DALVA PEREIRA | M14: RUA MARCINIO DE BRITO | N14: RUA MARCOS FERREIRA | O14: RUA HÉLIO MARTINS | P14: TOTAL
A15: DADOS | E15: ESTACA INICIAL | G15: 0+0,00 | H15: 0+0,00 | I15: 0+0,00 | J15: 0+0,00 | K15: 0+0,00 | L15: 0+0,00 | M15: 0+0,00 | N15: 0+0,00 | O15: 0+0,00
E16: ESTACA FINAL | G16: 14+17,11 | H16: 13+9,98 | I16: 12+17,05 | J16: 12+5,32 | K16: 9+10,75 | L16: 8+19,08 | M16: 8+3,53 | N16: 7+10,42 | O16: 21+1,82
E17: EXTENSÃO (m) | G17: =20*14+17.11 -> 297.11 | H17: =20*13+9.98 -> 269.98 | I17: =20*12+17.05 -> 257.05 | J17: =20*12+5.32 -> 245.32 | K17: =20*9+10.75 -> 190.75 | L17: =20*8+19.08 -> 179.08 | M17: =20*8+3.53 -> 163.53 | N17: =20*7+10.42 -> 150.42 | O17: =20*21+1.82 -> 421.82 | P17: =SUM(G17:O17) -> 2175.06
E18: DECLIVIDADE TRANSVERSAL DA PISTA | G18: simples 3% cada lado | H18: simples 3% cada lado | I18: simples 3% cada lado | J18: simples 3% cada lado | K18: simples 3% cada lado | L18: simples 3% cada lado | M18: simples 3% cada lado | N18: simples 3% cada lado | O18: simples 3% cada lado
E19: LARGURA DA PISTA (capa de rolamento) (m) | G19: 6 | H19: 6 | I19: 6 | J19: 6 | K19: 6 | L19: 6 | M19: 6 | N19: 6 | O19: 8
E20: LARGURA DO MEIO - FIO COM SARJETA (m) | G20: 0.42 | H20: 0.42 | I20: 0.42 | J20: 0.42 | K20: 0.42 | L20: 0.42 | M20: 0.42 | N20: 0.42 | O20: 0.42
E21: LARGURA DO MEIO - FIO, (GUIA) SEM SARJETA (m) | G21: 0.12 | H21: 0.12 | I21: 0.12 | J21: 0.12 | K21: 0.12 | L21: 0.12 | M21: 0.12 | N21: 0.12 | O21: 0.12
E22: ÁREA (m) | G22: =(G17*G19)+(G25+G38+G41+G28+G31)-G34 -> 1821.56 | H22: =(H17*H19)+(H25+H38+H41+H28+H31)-H34 -> 1658.78 | I22: 1581.2 | J22: 1510.82 | K22: 1183.4 | L22: 1113.38 | M22: 1020.08 | N22: 941.42 | O22: 3401.1 | P22: =SUM(G22:O22) -> 14231.74
A23: LIMPA RODAS | E23: QUANTIDADE DE LIMPA RODAS TP-1 (un) | P23: =SUM(G23:O23) -> 0
E24: ÁREA UNITÁRIA DOS LIMPA RODAS TP-1 (m²) | G24: 40 | H24: 40 | I24: 40 | J24: 40 | K24: 40 | L24: 40 | M24: 40 | N24: 40 | O24: 40
E25: ÁREA TP-1 (m²) | G25: =G23*G24 -> 0 | H25: =H23*H24 -> 0 | I25: =I23*I24 -> 0 | J25: =J23*J24 -> 0 | K25: =K23*K24 -> 0 | L25: 0 | M25: 0 | N25: 0 | O25: 0 | P25: =SUM(G25:O25) -> 0
E26: QUANTIDADE DE LIMPA RODAS TP-2 (un)
E27: ÁREA UNITÁRIA DOS LIMPA RODAS TP-2 (m²) | G27: 232 | H27: 232 | I27: 232 | J27: 232 | K27: 232 | L27: 232 | M27: 232 | N27: 232 | O27: 232
E28: ÁREA TP-2 (m²) | G28: =G26*G27 -> 0 | H28: 0 | I28: 0 | J28: 0 | K28: 0 | L28: 0 | M28: 0 | N28: 0 | O28: 0
E29: QUANTIDADE DE LIMPA RODAS TP-3 (un)
E30: ÁREA UNITÁRIA DOS LIMPA RODAS TP-3 (m²) | G30: 128 | H30: 128 | I30: 128 | J30: 128 | K30: 128 | L30: 128 | M30: 128 | N30: 128 | O30: 128
E31: ÁREA TP-3 (m²) | G31: =G29*G30 -> 0 | H31: 0 | I31: 0 | J31: 0 | K31: 0 | L31: 0 | M31: 0 | N31: 0 | O31: 0
A32: CANTEIRO | F32: EXTENSÃO (m) | G32: 0 | H32: 0 | I32: 0 | J32: 0 | K32: 0 | L32: 0 | M32: 0 | N32: 0 | O32: 0
E33: LARGURA (m) | G33: 0 | H33: 0 | I33: 0 | J33: 0 | K33: 7 | L33: 7 | M33: 7 | N33: 7 | O33: 7 | R33: CANTEIRO 1
E34: ÁREA (m²) | G34: =V53 -> 0 | H34: 0 | I34: 0 | J34: 0 | K34: 0 | L34: 0 | M34: 0 | N34: 0 | O34: 0 | P34: =SUM(G34:O34) -> 0
E35: PERIMETRO (m) | G35: 0 | H35: 0 | I35: 0 | J35: 0 | K35: 0 | L35: 0 | M35: 0 | N35: 0 | O35: 0 | S35: =SUM(S33:S34) -> 0 | T35: =SUM(T33:T34) -> 0
A36: RAIOS | E36: TP-01 - QUANTIDADE DE RAIOS DE 13,27 m (un) | G36: 2 | H36: 2 | I36: 2 | J36: 2 | K36: 2 | L36: 2 | M36: 2 | N36: 2 | O36: 2 | P36: =SUM(G36:O36) -> 18
E37: TP-01 - ÁREA UNITÁRIA DO RAIO DE 13,27 m (m²) | G37: 13.27 | H37: 13.27 | I37: 13.27 | J37: 13.27 | K37: 13.27 | L37: 13.27 | M37: 13.27 | N37: 13.27 | O37: 13.27 | T37: =S35+T35 -> 0
E38: TP-01 - ÁREA (m²) | G38: =ROUND(G36*G37,2) -> 26.54 | H38: =ROUND(H36*H37,2) -> 26.54 | I38: =ROUND(I36*I37,2) -> 26.54 | J38: =ROUND(J36*J37,2) -> 26.54 | K38: =ROUND(K36*K37,2) -> 26.54 | L38: 26.54 | M38: 26.54 | N38: 26.54 | O38: 26.54 | P38: =SUM(G38:O38) -> 238.86
E39: TP-02 - QUANTIDADE DE RAIOS DE 5,00 m (un) | G39: 2 | H39: 2 | I39: 2 | J39: 2 | K39: 2 | L39: 2 | M39: 2 | N39: 2 | O39: 0 | P39: =SUM(G39:O39) -> 16
E40: TP-02 - ÁREA UNITÁRIA DO RAIO DE 5,00 m (m²) | G40: 6.18 | H40: 6.18 | I40: 6.18 | J40: 6.18 | K40: 6.18 | L40: 6.18 | M40: 6.18 | N40: 6.18 | O40: 6.18
E41: TP-02 - ÁREA (m²) | G41: =ROUND(G39*G40,2) -> 12.36 | H41: =ROUND(H39*H40,2) -> 12.36 | I41: =ROUND(I39*I40,2) -> 12.36 | J41: =ROUND(J39*J40,2) -> 12.36 | K41: =ROUND(K39*K40,2) -> 12.36 | L41: 12.36 | M41: 12.36 | N41: 12.36 | O41: 0 | P41: =SUM(G41:O41) -> 98.88
A42: TERRAPLENAGEM | B42: LIMPEZA | C42: ESCAVAÇÃO | E42: LARGURA (m) | G42: =G19 -> 6 | H42: 6 | I42: 6 | J42: 6 | K42: 6 | L42: 6 | M42: 6 | N42: 6 | O42: 8
E43: ÁREA (m²) | G43: =G22 -> 1821.56 | H43: 1658.78 | I43: 1581.2 | J43: 1510.82 | K43: 1183.4 | L43: 1113.38 | M43: 1020.08 | N43: 941.42 | O43: 3401.1 | P43: =SUM(G43:O43) -> 14231.74
E44: ESPESSURA (m²) | G44: 0.1 | H44: 0.1 | I44: 0.1 | J44: 0.1 | K44: 0.1 | L44: 0.1 | M44: 0.1 | N44: 0.1 | O44: 0.1
E45: VOLUME (m³) | G45: =G43*G44 -> 182.156 | H45: =H43*H44 -> 165.878 | I45: =I43*I44 -> 158.12 | J45: =J43*J44 -> 151.082 | K45: =K43*K44 -> 118.34 | L45: 111.338 | M45: 102.008 | N45: 94.142 | O45: 340.11 | P45: =SUM(G45:O45) -> 1423.174
C46: CARGA | E46: VOLUME (m³) | G46: =G45*(1+G47) -> 236.8028 | H46: =H45*(1+H47) -> 215.6414 | I46: =I45*(1+I47) -> 205.556 | J46: =J45*(1+J47) -> 196.4066 | K46: =K45*(1+K47) -> 153.842 | L46: 144.7394 | M46: 132.6104 | N46: 122.3846 | O46: 442.143 | P46: =SUM(G46:O46) -> 1850.1262
C47: TRANSPORTE | E47: EMPOLAMENTO (%) | G47: 0.3 | H47: 0.3 | I47: 0.3 | J47: 0.3 | K47: 0.3 | L47: 0.3 | M47: 0.3 | N47: 0.3 | O47: 0.3
E48: DMT (km) | G48: =$C$10 -> 6 | H48: =$C$10 -> 6 | I48: 6 | J48: 6 | K48: 6 | L48: 6 | M48: 6 | N48: 6 | O48: 6
E49: TOTAL (m³ x km) | G49: =G46*G48 -> 1420.8168 | H49: =H46*H48 -> 1293.8484 | I49: 1233.336 | J49: 1178.4396 | K49: 923.052 | L49: 868.4364 | M49: 795.6624 | N49: 734.3076 | O49: 2652.858 | P49: =SUM(G49:O49) -> 11100.7572
B50: CORTE | C50: ESCAVAÇÃO | E50: VOLUME (m³) - CIVIL 3D | G50: ='MOVIMENTO DE TERRA'!C15 -> 126.63 | H50: ='MOVIMENTO DE TERRA'!C16 -> 153.31 | I50: ='MOVIMENTO DE TERRA'!C17 -> 114.49 | J50: ='MOVIMENTO DE TERRA'!C18 -> 134.52 | K50: ='MOVIMENTO DE TERRA'!C19 -> 102.66 | L50: ='MOVIMENTO DE TERRA'!C20 -> 72.76 | M50: ='MOVIMENTO DE TERRA'!C21 -> 113.69 | N50: ='MOVIMENTO DE TERRA'!C22 -> 103.06 | O50: ='MOVIMENTO DE TERRA'!C23 -> 335.5 | P50: =SUM(G50:O50) -> 1256.62
C51: CARGA | E51: VOLUME (m³) | G51: =G50*(1+G52) -> 164.619 | H51: =H50*(1+H52) -> 199.303 | I51: =I50*(1+I52) -> 148.837 | J51: =J50*(1+J52) -> 174.876 | K51: =K50*(1+K52) -> 133.458 | L51: 94.588 | M51: 147.797 | N51: 133.978 | O51: 436.15 | P51: =SUM(G51:O51) -> 1633.606
C52: TRANSPORTE | E52: EMPOLAMENTO (%) | G52: 0.3 | H52: 0.3 | I52: 0.3 | J52: 0.3 | K52: 0.3 | L52: 0.3 | M52: 0.3 | N52: 0.3 | O52: 0.3
E53: DMT (km) | G53: =G48 -> 6 | H53: =H48 -> 6 | I53: =I48 -> 6 | J53: =J48 -> 6 | K53: =K48 -> 6 | L53: 6 | M53: 6 | N53: 6 | O53: 6
E54: TOTAL (m³ x km) | G54: =G53*G51 -> 987.714 | H54: =H53*H51 -> 1195.818 | I54: 893.022 | J54: 1049.256 | K54: 800.748 | L54: 567.528 | M54: 886.782 | N54: 803.868 | O54: 2616.9 | P54: =SUM(G54:O54) -> 9801.636
B55: ATERRO | C55: ESCAVAÇÃO | E55: VOLUME (m³) - CIVIL 3D | G55: ='MOVIMENTO DE TERRA'!E15+G45 -> 292.646 | H55: ='MOVIMENTO DE TERRA'!F15+H45 -> 165.878 | I55: ='MOVIMENTO DE TERRA'!G15+I45 -> 158.12 | J55: ='MOVIMENTO DE TERRA'!H15+J45 -> 151.082 | K55: ='MOVIMENTO DE TERRA'!I15+K45 -> 118.34 | L55: ='MOVIMENTO DE TERRA'!J15+L45 -> 111.338 | M55: ='MOVIMENTO DE TERRA'!K15+M45 -> 102.008 | N55: ='MOVIMENTO DE TERRA'!L15+N45 -> 94.142 | O55: ='MOVIMENTO DE TERRA'!M15+O45 -> 340.11 | P55: =SUM(G55:O55) -> 1533.664
C56: ATERRO | E56: VOLUME (m³) | G56: =G55 -> 292.646 | H56: =H55 -> 165.878 | I56: =I55 -> 158.12 | J56: =J55 -> 151.082 | K56: =K55 -> 118.34 | L56: 111.338 | M56: 102.008 | N56: 94.142 | O56: 340.11 | P56: =SUM(G56:O56) -> 1533.664
C57: CARGA DO SUBLEITO | E57: VOLUME (m³) | G57: =G56*(1+G58) -> 380.4398 | H57: =H56*(1+H58) -> 215.6414 | I57: =I56*(1+I58) -> 205.556 | J57: =J56*(1+J58) -> 196.4066 | K57: =K56*(1+K58) -> 153.842 | L57: 144.7394 | M57: 132.6104 | N57: 122.3846 | O57: 442.143 | P57: =SUM(G57:O57) -> 1993.7632
C58: TRANSPORTE | E58: EMPOLAMENTO (%) | G58: 0.3 | H58: 0.3 | I58: 0.3 | J58: 0.3 | K58: 0.3 | L58: 0.3 | M58: 0.3 | N58: 0.3 | O58: 0.3
E59: DMT (km) | G59: =$C$11 -> 6 | H59: 6 | I59: 6 | J59: 6 | K59: 6 | L59: 6 | M59: 6 | N59: 6 | O59: 6
E60: TOTAL (m³ x km) | G60: =G57*G59 -> 2282.6388 | H60: =H57*H59 -> 1293.8484 | I60: 1233.336 | J60: 1178.4396 | K60: 923.052 | L60: 868.4364 | M60: 795.6624 | N60: 734.3076 | O60: 2652.858 | P60: =SUM(G60:O60) -> 11962.5792
A61: ESTRUTURA PAVIMENTO | B61: SUBLEITO | C61: ESCAVAÇÃO | E61: LARGURA (m) | G61: =G19+(2*0.52) -> 7.04 | H61: =H19+(2*0.52) -> 7.04 | I61: 7.04 | J61: 7.04 | K61: 7.04 | L61: 7.04 | M61: 7.04 | N61: 7.04 | O61: 9.04
E62: ÁREA (m²) | G62: =G61*G17+G25+G38+G41-G34 -> 2130.5544 | H62: =H61*H17+H25+H38+H41-H34 -> 1939.5592 | I62: 1848.532 | J62: 1765.9528 | K62: 1381.78 | L62: 1299.6232 | M62: 1190.1512 | N62: 1097.8568 | O62: 3839.7928 | P62: =SUM(G62:O62) -> 16493.8024
E63: ESPESSURA (m) | G63: 0.15 | H63: 0.15 | I63: 0.15 | J63: 0.15 | K63: 0.15 | L63: 0.15 | M63: 0.15 | N63: 0.15 | O63: 0.15
E64: VOLUME (m3) | G64: =G62*G63 -> 319.58316 | H64: =H62*H63 -> 290.93388 | I64: =I62*I63 -> 277.2798 | J64: =J62*J63 -> 264.89292 | K64: =K62*K63 -> 207.267 | L64: 194.94348 | M64: 178.52268 | N64: 164.67852 | O64: 575.96892 | P64: =SUM(G64:O64) -> 2474.07036
C65: TRANSPORTE | E65: EMPOLAMENTO (%) | G65: 0.3 | H65: 0.3 | I65: 0.3 | J65: 0.3 | K65: 0.3 | L65: 0.3 | M65: 0.3 | N65: 0.3 | O65: 0.3
E66: DMT (km) | G66: =$C$11 -> 6 | H66: 6 | I66: 6 | J66: 6 | K66: 6 | L66: 6 | M66: 6 | N66: 6 | O66: 6
E67: TOTAL (m³ x km) | G67: =G64*(1+G65)*G66 -> 2492.748648 | H67: =H64*(1+H65)*H66 -> 2269.284264 | I67: =I64*(1+I65)*I66 -> 2162.78244 | J67: =J64*(1+J65)*J66 -> 2066.164776 | K67: =K64*(1+K65)*K66 -> 1616.6826 | L67: 1520.559144 | M67: 1392.476904 | N67: 1284.492456 | O67: 4492.557576 | P67: =SUM(G67:O67) -> 19297.74881
B68: BASE | C68: ESCAVAÇÃO | E68: LARGURA (m) | G68: =G19+(2*0.52) -> 7.04 | H68: 7.04 | I68: 7.04 | J68: 7.04 | K68: 7.04 | L68: 7.04 | M68: 7.04 | N68: 7.04 | O68: 9.04 | P68: =SUM(G68:O68) -> 65.36
E69: ÁREA (m²) | G69: =G68*G17-G25+G38-G34 -> 2118.1944 | H69: 1927.1992 | I69: 1836.172 | J69: 1753.5928 | K69: 1369.42 | L69: 1287.2632 | M69: 1177.7912 | N69: 1085.4968 | O69: 3839.7928 | P69: =SUM(G69:O69) -> 16394.9224
E70: ESPESSURA (m) | G70: 0.15 | H70: 0.15 | I70: 0.15 | J70: 0.15 | K70: 0.15 | L70: 0.15 | M70: 0.15 | N70: 0.15 | O70: 0.15
E71: VOLUME (m³) | G71: =G69*G70 -> 317.72916 | H71: =H69*H70 -> 289.07988 | I71: =I69*I70 -> 275.4258 | J71: =J69*J70 -> 263.03892 | K71: =K69*K70 -> 205.413 | L71: 193.08948 | M71: 176.66868 | N71: 162.82452 | O71: 575.96892 | P71: =SUM(G71:O71) -> 2459.23836
C72: TIPO | E72: C=CASCALHO SB=SOLO BRITA BC=BICA CORRIDA SC=SOLO MELHORADO COM CIMENTO (4%) | G72: BC | H72: BC | I72: BC | J72: BC | K72: BC | L72: BC | M72: BC | N72: BC | O72: BC
C73: TRANSPORTE DO MATERIAL DA BASE (SOLO/CASCALHO/BRITA) | E73: VOLUME (m³) | G73: =(G71+G71)*G75 -> 635.45832 | H73: =(H71+H71)*H75 -> 578.15976 | I73: 550.8516 | J73: 526.07784 | K73: 410.826 | L73: 386.17896 | M73: 353.33736 | N73: 325.64904 | O73: 1151.93784 | P73: =SUM(G73:O73) -> 4918.47672
E74: EMPOLAMENTO (%) | G74: 0.3 | H74: 0.3 | I74: 0.3 | J74: 0.3 | K74: 0.3 | L74: 0.3 | M74: 0.3 | N74: 0.3 | O74: 0.3
E75: CONSUMO (% X m3) | G75: 1 | H75: 1 | I75: 1 | J75: 1 | K75: 1 | L75: 1 | M75: 1 | N75: 1 | O75: 1
E76: DMT (km) | G76: =IF($E$11>=30,30,$E$11) -> 30 | H76: 30 | I76: 30 | J76: 30 | K76: 30 | L76: 30 | M76: 30 | N76: 30 | O76: 30
E77: DMT EXCEDENTE (km) | G77: =IF($E$11>=30,$E$11-30,0) -> 90 | H77: 90 | I77: 90 | J77: 90 | K77: 90 | L77: 90 | M77: 90 | N77: 90 | O77: 90
E78: DENSIDADE (t/m³) | G78: 1.6 | H78: 1.6 | I78: 1.6 | J78: 1.6 | K78: 1.6 | L78: 1.6 | M78: 1.6 | N78: 1.6 | O78: 1.6
E79: TOTAL EXCEDENTE (m³ x km) | G79: =G77*G73*G74*G75 -> 17157.37464 | H79: =H77*H73*H74*H75 -> 15610.31352 | I79: =I77*I73*I74*I75 -> 14872.9932 | J79: =J77*J73*J74*J75 -> 14204.10168 | K79: =K77*K73*K74*K75 -> 11092.302 | L79: =L77*L73*L74*L75 -> 10426.83192 | M79: 9540.10872 | N79: 8792.52408 | O79: 31102.32168 | P79: =SUM(G79:O79) -> 132798.8714
E80: TOTAL (m³ x km) | G80: =G73*G74*G75*G76 -> 5719.12488 | H80: =H73*H74*H75*H76 -> 5203.43784 | I80: =I73*I74*I75*I76 -> 4957.6644 | J80: =J73*J74*J75*J76 -> 4734.70056 | K80: =K73*K74*K75*K76 -> 3697.434 | L80: 3475.61064 | M80: 3180.03624 | N80: 2930.84136 | O80: 10367.44056 | P80: 44266.29048
C81: BRITA PARA TSD E CAPA SELANTE | E81: CONSUMO PARA TSD (m³/m²) | G81: =G86*0.0247 -> 44.992532 | H81: =H86*0.0247 -> 40.971866 | I81: 39.05564 | J81: 37.317254 | K81: 29.22998 | L81: 27.500486 | M81: 25.195976 | N81: 23.253074 | O81: 84.00717 | P81: 351.523978
E82: CONSUMO PARA CAPA SELANTE (m³/m²) | G82: =G86*0.0072 -> 13.115232 | H82: =H86*0.0072 -> 11.943216 | I82: 11.38464 | J82: 10.877904 | K82: 8.52048 | L82: 8.016336 | M82: 7.344576 | N82: 6.778224 | O82: 24.48792 | P82: 102.468528
E83: DENSIDADE (t/m³) | G83: =G82*2.4 -> 31.4765568 | H83: =H82*2.4 -> 28.6637184 | I83: 27.323136 | J83: 26.1069696 | K83: 20.449152 | L83: 19.2392064 | M83: 17.6269824 | N83: 16.2677376 | O83: 58.771008 | P83: 245.9244672
E84: TOTAL (t) | G84: =G83*2.4 -> 75.54373632 | H84: 68.79292416 | I84: 65.5755264 | J84: 62.65672704 | K84: 49.0779648 | L84: 46.17409536 | M84: 42.30475776 | N84: 39.04257024 | O84: 141.0504192 | P84: 590.2187213
A85: PAVIMENTAÇÃO ASFÁLTICA | B85: IMPRIMAÇÃO | E85: LARGURA (m) | G85: =G19 -> 6 | H85: 6 | I85: 6 | J85: 6 | K85: 6 | L85: 6 | M85: 6 | N85: 6 | O85: 8
E86: ÁREA (m²) | G86: =G85*G17+G25+G38+G41+G28+G31-G34 -> 1821.56 | H86: =H85*H17+H25+H38+H41+H28+H31-H34 -> 1658.78 | I86: 1581.2 | J86: 1510.82 | K86: 1183.4 | L86: 1113.38 | M86: 1020.08 | N86: 941.42 | O86: 3401.1 | P86: =SUM(G86:O86) -> 14231.74
E87: CONSUMO (t/m²) | G87: 0.0013 | H87: 0.0013 | I87: 0.0013 | J87: 0.0013 | K87: 0.0013 | L87: 0.0013 | M87: 0.0013 | N87: 0.0013 | O87: 0.0013
E88: DMT (km) | G88: =IF($E$10>=30,30,$E$10) -> 30 | H88: 30 | I88: 30 | J88: 30 | K88: 30 | L88: 30 | M88: 30 | N88: 30 | O88: 30
E89: DMT EXCEDENTE (km) | G89: =IF($E$10>=30,$E$10-30,0) -> 415 | H89: 415 | I89: 415 | J89: 415 | K89: 415 | L89: 415 | M89: 415 | N89: 415 | O89: 415
E90: TOTAL EXCEDENTE (t x km) | G90: =G87*G86*G89 -> 982.73162 | H90: =H87*H86*H89 -> 894.91181 | I90: =I87*I86*I89 -> 853.0574 | J90: =J87*J86*J89 -> 815.08739 | K90: =K87*K86*K89 -> 638.4443 | L90: =L87*L86*L89 -> 600.66851 | M90: 550.33316 | N90: 507.89609 | O90: 1834.89345 | P90: =SUM(G90:O90) -> 7678.02373
E91: TOTAL (t x km) | G91: =G88*G87*G86 -> 71.04084 | H91: =H88*H87*H86 -> 64.69242 | I91: =I88*I87*I86 -> 61.6668 | J91: =J88*J87*J86 -> 58.92198 | K91: =K88*K87*K86 -> 46.1526 | L91: 43.42182 | M91: 39.78312 | N91: 36.71538 | O91: 132.6429 | P91: =SUM(G91:O91) -> 555.03786
B92: PINTURA DE LIGAÇÃO | E92: LARGURA (m) | G92: =G85 -> 6 | H92: 6 | I92: 6 | J92: 6 | K92: =K85 -> 6 | L92: 6 | M92: 6 | N92: 6 | O92: 8
E93: ÁREA (m²) | G93: 1821.56 | H93: 1658.78 | I93: 1581.2 | J93: 1510.82 | K93: =K86 -> 1183.4 | L93: 1113.38 | M93: 1020.08 | N93: 941.42 | O93: 3401.1 | P93: =SUM(G93:O93) -> 14231.74
E94: CONSUMO (t/m²) | G94: 0.0045 | H94: 0.0045 | I94: 0.0045 | J94: 0.0045 | K94: 0.0045 | L94: 0.0045 | M94: 0.0045 | N94: 0.0045 | O94: 0.0045
E95: DMT (km) | G95: =IF($E$10>=30,30,$E$10) -> 30 | H95: 30 | I95: 30 | J95: 30 | K95: 30 | L95: 30 | M95: 30 | N95: 30 | O95: 30
E96: DMT EXCEDENTE (km) | G96: =IF($E$10>=30,$E$10-30,0) -> 415 | H96: 415 | I96: 415 | J96: 415 | K96: 415 | L96: 415 | M96: 415 | N96: 415 | O96: 415
E97: TOTAL EXCEDENTE (t x km) | G97: =G94*G93*G96 -> 3401.7633 | H97: =H94*H93*H96 -> 3097.77165 | I97: =I94*I93*I96 -> 2952.891 | J97: =J94*J93*J96 -> 2821.45635 | K97: =K94*K93*K96 -> 2209.9995 | L97: =L94*L93*L96 -> 2079.23715 | M97: 1904.9994 | N97: 1758.10185 | O97: 6351.55425 | P97: =SUM(G97:O97) -> 26577.77445
E98: TOTAL (t x km) | G98: =G95*G94*G93 -> 245.9106 | H98: =H95*H94*H93 -> 223.9353 | I98: =I95*I94*I93 -> 213.462 | J98: =J95*J94*J93 -> 203.9607 | K98: =K95*K94*K93 -> 159.759 | L98: =L95*L94*L93 -> 150.3063 | M98: 137.7108 | N98: 127.0917 | O98: 459.1485 | P98: =SUM(G98:O98) -> 1921.2849
B99: TIPO | E99: TSD CBUQ PMF MICRO | G99: CBUQ | H99: CBUQ | I99: CBUQ | J99: CBUQ | K99: CBUQ | L99: CBUQ | M99: CBUQ | N99: CBUQ | O99: CBUQ
B100: DADOS | E100: LARGURA (m) | G100: =G19 -> 6 | H100: 6 | I100: 6 | J100: 6 | K100: 6 | L100: 6 | M100: 6 | N100: 6 | O100: 8
E101: ÁREA (m²) | G101: =G100*G17+G25+G100+G38-G34 -> 1815.2 | H101: 1652.42 | I101: 1574.84 | J101: 1504.46 | K101: 1177.04 | L101: 1107.02 | M101: 1013.72 | N101: 935.06 | O101: 3409.1 | P101: =SUM(G101:O101) -> 14188.86
E102: VOLUME (m³) | G102: =G86*0.03 -> 54.6468 | H102: =H86*0.03 -> 49.7634 | I102: =I86*0.03 -> 47.436 | J102: =J86*0.03 -> 45.3246 | K102: =K86*0.03 -> 35.502 | L102: =L86*0.03 -> 33.4014 | M102: 30.6024 | N102: 28.2426 | O102: 102.033 | P102: =SUM(G102:O102) -> 426.9522
E103: PESO (t) | G103: =G102*2.4 -> 131.15232 | H103: =H102*2.4 -> 119.43216 | I103: =I102*2.4 -> 113.8464 | J103: =J102*2.4 -> 108.77904 | K103: =K102*2.4 -> 85.2048 | L103: 80.16336 | M103: 73.44576 | N103: 67.78224 | O103: 244.8792 | P103: =SUM(G103:O103) -> 1024.68528
B104: TRANSPORTE | E104: PESO (t) | G104: =G103 -> 131.15232 | H104: =H103 -> 119.43216 | I104: =I103 -> 113.8464 | J104: =J103 -> 108.77904 | K104: =K103 -> 85.2048 | L104: 80.16336 | M104: 73.44576 | N104: 67.78224 | O104: 244.8792 | P104: =SUM(G104:O104) -> 1024.68528
E105: TOTAL (t) | G105: =G104 -> 131.15232 | H105: =H104 -> 119.43216 | I105: 113.8464 | J105: 108.77904 | K105: 85.2048 | L105: 80.16336 | M105: 73.44576 | N105: 67.78224 | O105: 244.8792 | P105: =SUM(G105:O105) -> 1024.68528
E106: DMT (km) | G106: =IF($E$9>=30,30,$E$9) -> 30 | H106: 30 | I106: 30 | J106: 30 | K106: 30 | L106: 30 | M106: 30 | N106: 30 | O106: 30
E107: DMT EXCEDENTE (km) | G107: =IF($E$9>=30,$E$9-30,0) -> 59 | H107: 59 | I107: 59 | J107: 59 | K107: 59 | L107: 59 | M107: 59 | N107: 59 | O107: 59 | P107: =SUM(G107:O107) -> 531
E108: TOTAL EXCEDENTE(t x km) | G108: =G107*G105 -> 7737.98688 | H108: =H107*H105 -> 7046.49744 | I108: =I107*I105 -> 6716.9376 | J108: =J107*J105 -> 6417.96336 | K108: =K107*K105 -> 5027.0832 | L108: =L107*L105 -> 4729.63824 | M108: 4333.29984 | N108: 3999.15216 | O108: 14447.8728 | P108: 60456.43152
E109: TOTAL (t x km) | G109: =G105*G106 -> 3934.5696 | H109: =H105*H106 -> 3582.9648 | I109: =I105*I106 -> 3415.392 | J109: =J105*J106 -> 3263.3712 | K109: =K105*K106 -> 2556.144 | L109: =L105*L106 -> 2404.9008 | M109: 2203.3728 | N109: 2033.4672 | O109: 7346.376 | P109: 30740.5584
A110: REVESTIMENTO | B110: RECAPE | E110: DADOS | F110: TSD - CBUQ - MICROREVESTIMENTO | P110: 0
F111: ÁREA (m²) | P111: 0
F112: ESPESSURA (m) | P112: 0
F113: VOLUME (m³) | P113: 0
E114: PINTURA DE LIGAÇÃO | F114: CONSUMO (t/m²) | P114: 0
F115: PESO (t) | P115: 0
F116: DMT (km) | P116: 0
F117: TRANSPORTE (T x km) | P117: 0
E118: REVESTIMENTO | F118: ÁREA (m²) | P118: 0
F119: ESPESSURA (m) | P119: 0
F120: VOLUME (m³) | P120: 0
F121: PESO ESPECIFICO (t/m³) | P121: 0
F122: PESO (t) | P122: 0
F123: DMT (km) | P123: 0
F124: TRANSPORTE (m³ x km) | P124: 0
A125: SERVIÇOS COMPLEMETARES | B125: MEIO-FIOS | E125: MEIO FIOS COM SARJETA (m) | P125: 0
E126: MEIO FIOS GUIA (SEM SARJETA) (m) | G126: =G35 -> 0 | H126: =H35 -> 0 | I126: =I35 -> 0 | J126: =J35 -> 0 | K126: =T37 -> 0 | L126: 0 | M126: =V37 -> 0 | N126: =W37 -> 0 | O126: =X37 -> 0 | P126: 0
B127: TENTO | E127: TENTO (m) | P127: 0
B128: TRANSPORTE DE BRITA PARA MEIO FIO E TENTO | E128: SEÇÃO DO MEIO FIO COM SARJETA (m²) | G128: 0.0615 | H128: 0.0615 | I128: 0.0615 | J128: 0.0615 | K128: 0.0615 | L128: 0.0615 | M128: 0.0615 | N128: 0.0615 | O128: 0.0615
E129: SEÇÃO DO MEIO FIO (GUIA) (m²) | G129: 0.0285 | H129: 0.0285 | I129: 0.0285 | J129: 0.0285 | K129: 0.0285 | L129: 0.0285 | M129: 0.0285 | N129: 0.0285 | O129: 0.0285
E130: SEÇÃO DO TENTO (m²) | G130: 0.033 | H130: 0.033 | I130: 0.033 | J130: 0.033 | K130: 0.033 | L130: 0.033 | M130: 0.033 | N130: 0.033 | O130: 0.033
E131: CONSUMO | G131: 0.836 | H131: 0.836 | I131: 0.836 | J131: 0.836 | K131: 0.836 | L131: 0.836 | M131: 0.836 | N131: 0.836 | O131: 0.836
E132: DENSIDADE (t/m³) | G132: 1.6 | H132: 1.6 | I132: 1.6 | J132: 1.6 | K132: 1.6 | L132: 1.6 | M132: 1.6 | N132: 1.6 | O132: 1.6
E133: DMT (km) | G133: =IF($C$9>=30,30,$C$9) -> 30 | H133: =IF($C$9>=30,30,$C$9) -> 30 | I133: 30 | J133: 30 | K133: 30 | L133: 30 | M133: 30 | N133: 30 | O133: 30
E134: DMT EXCEDENTE (km) | G134: =IF($C$9>=30,$C$9-G133,0) -> 90 | H134: =IF($C$9>=30,$C$9-H133,0) -> 90 | I134: 90 | J134: 90 | K134: 90 | L134: 90 | M134: 90 | N134: 90 | O134: 90
E135: TOTAL (t x km) | G135: =ROUND((((G125*G128)+(G126*G129)+(G127*G130))*G131*G132)*G133,2) -> 0 | H135: =ROUND((((H125*H128)+(H126*H129)+(H127*H130))*H131*H132)*H133,2) -> 0 | I135: =ROUND((((I125*I128)+(I126*I129)+(I127*I130))*I131*I132)*I133,2) -> 0 | J135: =ROUND((((J125*J128)+(J126*J129)+(J127*J130))*J131*J132)*J133,2) -> 0 | K135: =ROUND((((K125*K128)+(K126*K129)+(K127*K130))*K131*K132)*K133,2) -> 0 | L135: =ROUND((((L125*L128)+(L126*L129)+(L127*L130))*L131*L132)*L133,2) -> 0 | M135: 0 | N135: 0 | O135: 0 | P135: =SUM(G135:O135) -> 0
E136: TOTALE XCEDENTE (t x km) | G136: =ROUND((((G125*G128)+(G126*G129)+(G127*G130))*G131*G132)*G134,2) -> 0 | H136: =ROUND((((H125*H128)+(H126*H129)+(H127*H130))*H131*H132)*H134,2) -> 0 | I136: 0 | J136: 0 | K136: 0 | L136: 0 | M136: 0 | N136: 0 | O136: 0 | P136: =SUM(G136:O136) -> 0
E137: TOTAL (m3 x km) | G137: =G135/G132 -> 0 | H137: =H135/H132 -> 0 | I137: =I135/I132 -> 0 | J137: =J135/J132 -> 0 | K137: =K135/K132 -> 0 | L137: 0 | M137: 0 | N137: 0 | O137: 0 | P137: =SUM(G137:O137) -> 0

Sheet DRENAGEM (hidden)
D1: ESTADO DO MATO GROSSO DO SUL
D2: =OFFSET(DADOS!$I$2,DADOS!$A$7,0,1,1) -> PREFEITURA MUNICIPAL DE SIDROLÃNDIA | X2: ____________________________________________
D3: =ORÇAMENTO_DES!$D$3 -> SECRETARIA DE OBRAS | X3: FABIO MARQUES RIBEIRO ENGENHEIRO CIVIL CREA: 15.276/MS
A4: MEMÓRIA DE CALCULO DRENAGEM PLUVIAL
A5: Objeto: | B5: =ORÇAMENTO_DES!B5 -> INFRAESTRUTURA - URBANA - PAVIMENTAÇÃO ASFÁLTICA, DRENAGEM, ACESSIBILIDADE E SINALIZAÇÃO VIÁRIA EM DIVERSAS RUAS NO MUNICÍPIO DE SIDROLÂNDIA/MS
A6: Município: | B6: =ORÇAMENTO_DES!B6 -> SIDROLÃNDIA
A7: Local: | B7: =ORÇAMENTO_DES!B7 -> DIVERSAS RUAS
A8: TRANSPORTE DMT (Km) | E8: PESO TUBOS
A9: TUBOS | C9: =DMT!E12 -> 89 | E9: Ø 40 | F9: 0.18 | G9: T | H9: Ø 100 | I9: 0.8 | J9: T
A10: SOLO/BOTA-FORA | C10: =DMT!E8 -> 6 | E10: Ø 60 | F10: 0.35 | G10: T | H10: Ø 120 | I10: 1.3 | J10: T
A11: BRITA | C11: =DMT!E11 -> 120 | E11: Ø 80 | F11: 0.54 | G11: T | H11: Ø 150 | I11: 1.93 | J11: T | AH11: 2,5KM
A15: DADOS
A16: DADOS | B16: VIA | E16: xxx | G16: xxx | H16: xxx | N16: xxx | P16: xxx | Q16: xxx | X16: xxx | AD16: BIGODES ASFALTO EXIST. | AG16: =13+14+15 -> 42
B17: TRECHO | E17: T-01 | F17: T-02 | G17: T-03 | H17: T-04 | I17: T-05 | J17: T-05A | K17: T-06 | L17: T-06A | M17: T-07 | N17: T-08 | O17: T-09 | P17: T-10 | Q17: T-11 | R17: T-11A | S17: T-12 | T17: T-12A | U17: T-13 | V17: T-14 | W17: T-15 | X17: T-16 | Y17: BIGODES | Z17: TOTAL | AD17: BIGODES BOCA DE DRAGÃO | AG17: =9+8 -> 17
B18: EXTENSÃO (m) SEM PAVIMENTO | Z18: =TRUNC(SUM(E18:Y18),2) -> 0 | AA18: =Z18*0.3 -> 0
B19: EXTENSÃO PARA CALCULO DE ESCAVAÇÃO | E19: =E18+E20 -> 0 | F19: 0 | G19: 0 | H19: 0 | I19: 0 | J19: =J18+J20 -> 0 | K19: 0 | L19: =L18+L20 -> 0 | M19: 0 | N19: 0 | O19: =O18+O20 -> 0 | P19: 0 | Q19: 0 | R19: =R18+R20 -> 0 | S19: 0 | T19: =T18+T20 -> 0 | U19: 0 | V19: 0 | W19: 0 | X19: 0 | Y19: 42 | Z19: =TRUNC(SUM(E19:Y19),2) -> 42 | AA19: =Z19*0.3 -> 12.6
B20: EXTENSÃO (m) PAVIMENTADA | E20: 0 | F20: 0 | G20: 0 | H20: 0 | I20: 0 | J20: 0 | K20: 0 | L20: 0 | M20: 0 | N20: 0 | O20: 0 | P20: 0 | Q20: 0 | R20: 0 | S20: 0 | T20: 0 | U20: 0 | V20: 0 | W20: 0 | X20: 0 | Y20: =AG16 -> 42 | Z20: =TRUNC(SUM(E20:Y20),2) -> 42
B21: TELA PLASTICA*30% | E21: =E19*0.3 -> 0 | F21: =F19*0.3 -> 0 | G21: 0 | H21: 0 | I21: 0 | J21: 0 | K21: 0 | L21: 0 | M21: 0 | N21: 0 | O21: 0 | P21: 0 | Q21: 0 | R21: 0 | S21: 0 | T21: 0 | U21: 0 | V21: 0 | W21: 0 | X21: 0 | Y21: 12.6 | Z21: =TRUNC(SUM(E21:Y21),2) -> 12.6
B22: N° DE LINHAS | E22: 1 | F22: 1 | G22: 1 | H22: 1 | I22: 1 | J22: 1 | K22: 1 | L22: 1 | M22: 1 | N22: 1 | O22: 1 | P22: 1 | Q22: 1 | R22: 1 | S22: 1 | T22: 1 | U22: 1 | V22: 1 | W22: 1 | X22: 1 | Y22: 1 | AB22: COTAS
B23: DIÂMETRO (m) | E23: 0.6 | F23: 0.8 | G23: 0.8 | H23: 1 | I23: 1 | J23: 1 | K23: 1.2 | L23: 1.2 | M23: 1.2 | N23: 0.6 | O23: 0.6 | P23: 0.6 | Q23: 0.8 | R23: 0.8 | S23: 1 | T23: 1 | U23: 1 | V23: 0.6 | W23: 0.6 | X23: 0.6 | Y23: 0.4 | AB23: PV1 | AD23: PV2 | AF23: PV3 | AG23: PV4 | AH23: PV5 | AI23: PV6 | AJ23: PV6A
B24: COTA TERRENO (m) | E24: =AB24 -> xxx | F24: =AD24 -> xxx | G24: =AF24 -> xxx | H24: =AG24 -> xxx | I24: xxx | J24: 328.088 | K24: 329.102 | L24: 329.711 | M24: =AD30 -> xxx | N24: =AF30 -> xxx | O24: =AG30 -> xxx | P24: =AH30 -> xxx | Q24: =AI30 -> xxx | R24: =AJ30 -> xxx | S24: =AF37 -> xxx | T24: =AG37 -> xxx | U24: =AG37 -> xxx | V24: xxx | W24: xxx | X24: =AF45 -> xxx | Z24: 291.358 | AB24: xxx | AD24: xxx | AF24: xxx | AG24: xxx | AH24: xxx | AI24: xxx | AJ24: xxx
B25: COTA FUNDO PV (m) | E25: =AB25 -> xxx | F25: =AD25 -> xxx | G25: xxx | H25: xxx | I25: xxx | J25: 325.996 | K25: 326.28 | L25: 326.28 | M25: =AD31 -> xxx | N25: =AF31 -> xxx | O25: =AG31 -> xxx | P25: =AH31 -> xxx | Q25: 308.629 | R25: 309.629 | S25: =AF38 -> xxx | T25: =AG38 -> xxx | U25: xxx | V25: xxx | W25: xxx | X25: =AF46 -> xxx | Z25: 289.62 | AB25: xxx | AD25: xxx | AF25: xxx | AG25: xxx | AH25: xxx | AI25: xxx | AJ25: xxx
B26: PROFUNDIDADE MONTANTE (PV) (m) | E26: =E24-E25 ->  | J26: 2.092 | K26: 2.822 | L26: 3.431 | O26: =O24-O25 ->  | R26: =R24-R25 ->  | T26: =T24-T25 ->  | X26: =X24-X25 ->  | Y26: 1.2
B27: PROFUNDIDADE MONTANTE DE ESCAVAÇÃO (m) | E27: =E26+0.2 ->  | J27: 2.292 | K27: 3.022 | L27: 3.631 | O27: =O26+0.2 ->  | R27: =R26+0.2 ->  | T27: =T26+0.2 ->  | X27: =X26+0.2 ->  | Y27: =Y26+0.2 -> 1.4
B28: PROFUNDIDADE JUSANTE (PV) (m) | E28: =AB24-AB25 ->  | F28: =G24-G25 ->  | G28: =H24-H25 ->  | H28: =AD24-AD25 ->  | I28: =K24-K25 -> 2.822 | J28: =L24-L25 -> 3.431 | K28: =M24-M25 ->  | L28: =N24-N25 ->  | M28: =AF24-AF25 ->  | N28: =X24-X25 ->  | O28: =Y24-Y25 -> 0 | P28: =Z24-Z25 -> 1.738 | Q28: =AA24-AA25 -> 0 | R28: =AB24-AB25 ->  | S28: =AB24-AB25 ->  | T28: =AC24-AC25 -> 0 | U28: =AC24-AC25 -> 0 | W28: 0 | X28: =AD30-AD31 ->  | Y28: =Y27+0.2 -> 1.6
B29: PROFUNDIDADE JUSANTE DE ESCAVAÇÃO (m) | E29: =E28+0.2 ->  | I29: 3.022 | J29: 3.631 | O29: =O28+0.2 -> 0.2 | P29: 1.938 | Q29: 0.2 | R29: =R28+0.2 ->  | T29: =T28+0.2 -> 0.2 | U29: 0.2 | W29: 0.2 | X29: =X28+0.2 ->  | Y29: =Y28+0.2 -> 1.8 | AB29: BC | AD29: PV7 | AF29: PV8 | AG29: PV9 | AH29: PV10 | AI29: PV11 | AJ29: PV7A
B30: PROFUNDIDADE MÉDIA DE ESCAVAÇÃO (m) | E30: =ROUND((E27+E29)/2,2) ->  | J30: 2.96 | O30: =ROUND((O27+O29)/2,2) ->  | R30: =ROUND((R27+R29)/2,2) ->  | T30: =ROUND((T27+T29)/2,2) ->  | X30: =ROUND((X27+X29)/2,2) ->  | Y30: 1.5 | AB30: xxx | AD30: xxx | AF30: xxx | AG30: xxx | AH30: xxx | AI30: xxx | AJ30: xxx
B31: TALUDE (m/m) | E31: =TRUNC(E30/5,2) ->  | J31: 0.59 | O31: =TRUNC(O30/5,2) ->  | R31: =TRUNC(R30/5,2) ->  | T31: =TRUNC(T30/5,2) ->  | X31: =TRUNC(X30/5,2) ->  | Y31: =TRUNC(Y30/5,2) -> 0.3 | AB31: xxx | AD31: xxx | AF31: xxx | AG31: xxx | AH31: xxx | AI31: xxx | AJ31: xxx
B32: ALTURA DE ESCAVAÇÃO ATÉ 1,50m DE PROFUNDIDADE (m) | Y32: =ROUND(IF(Y30<1.51,Y30),2) -> 1.5
B33: ALTURA DE ESCAVAÇÃO ATÉ 3,00m DE PROFUNDIDADE (m) | Y33: =ROUND(IF(Y30>3.01,Y30),2) -> 0
B34: ALTURA DE ESCAVAÇÃO ATÉ 4,50m DE PROFUNDIDADE (m) | Y34: =ROUND(IF(Y30>3.01,Y30),2) -> 0
B35: ALTURA DE ESCAVAÇÃO ATÉ 6,00m DE PROFUNDIDADE (m) | Y35: =ROUND(IF(Y30>4.51,Y30),2) -> 0
B36: BASE SUPERIOR (m) | E36: =ROUND((E37+E31*2),2) ->  | J36: 3.18 | O36: =ROUND((O37+O31*2),2) ->  | R36: =ROUND((R37+R31*2),2) ->  | T36: =ROUND((T37+T31*2),2) ->  | X36: =ROUND((X37+X31*2),2) ->  | Y36: =ROUND((Y37+Y31*2),2) -> 1.4 | AF36: PV12 | AG36: PV13 | AH36: PV14 | AI36: PV15 | AJ36: PV15-A
B37: BASE INFERIOR (m) | E37: =ROUND(2*E23,2) -> 1.2 | F37: 1.6 | G37: 1.6 | H37: 2 | I37: 2 | J37: 2 | K37: 2.4 | L37: 2.4 | M37: 2.4 | N37: 1.2 | O37: =ROUND(2*O23,2) -> 1.2 | P37: 1.2 | Q37: 1.6 | R37: =ROUND(2*R23,2) -> 1.6 | S37: 2 | T37: =ROUND(2*T23,2) -> 2 | U37: 2 | V37: 1.2 | W37: 1.2 | X37: =ROUND(2*X23,2) -> 1.2 | Y37: =ROUND(2*Y23,2) -> 0.8 | AF37: xxx | AG37: xxx | AH37: xxx | AI37: xxx | AJ37: xxx
B38: LASTRO DE BRITA (m3) | E38: =E37*E19*0.21/2*E23 -> 0 | F38: 0 | G38: 0 | H38: 0 | I38: 0 | J38: 0 | K38: 0 | L38: 0 | M38: 0 | N38: 0 | O38: =O37*O19*0.21/2*O23 -> 0 | P38: 0 | Q38: 0 | R38: =R37*R19*0.21/2*R23 -> 0 | S38: 0 | T38: =T37*T19*0.21/2*T23 -> 0 | U38: 0 | V38: 0 | W38: 0 | X38: =X37*X19*0.21/2*X23 -> 0 | Y38: =Y37*Y19*0.21/2*Y23 -> 1.4112 | Z38: =TRUNC(SUM(E38:Y38),2) -> 1.41 | AF38: xxx | AG38: xxx | AH38: xxx | AI38: xxx | AJ38: xxx
B39: ALTURA DO REATERRO MANUAL (m) | E39: =ROUND(E23*1.2+0.3,2) -> 1.02 | F39: 1.26 | G39: 1.26 | H39: 1.5 | I39: 1.5 | J39: 1.5 | K39: 1.74 | L39: 1.74 | M39: 1.74 | N39: 1.02 | O39: =ROUND(O23*1.2+0.3,2) -> 1.02 | P39: 1.02 | Q39: 1.26 | R39: =ROUND(R23*1.2+0.3,2) -> 1.26 | S39: 1.5 | T39: =ROUND(T23*1.2+0.3,2) -> 1.5 | U39: 1.5 | V39: 1.02 | W39: 1.02 | X39: =ROUND(X23*1.2+0.3,2) -> 1.02 | Y39: =ROUND(Y23*1.2+0.3,2) -> 0.78
B40: ALTURA DO REATERRO MANUAL X MECÂNICO (m) | E40: =ROUND((E39*E31*2)+(2*E23),2) ->  | J40: 3.77 | O40: =ROUND((O39*O31*2)+(2*O23),2) ->  | R40: =ROUND((R39*R31*2)+(2*R23),2) ->  | T40: =ROUND((T39*T31*2)+(2*T23),2) ->  | X40: =ROUND((X39*X31*2)+(2*X23),2) ->  | Y40: =ROUND((Y39*Y31*2)+(2*Y23),2) -> 1.27
B41: ARÉA MONTANTE (m²) | E41: =ROUND((E23*2)+(E27*E31)*E27,2) ->  | J41: 5.1 | O41: =ROUND((O23*2)+(O27*O31)*O27,2) ->  | R41: =ROUND((R23*2)+(R27*R31)*R27,2) ->  | T41: =ROUND((T23*2)+(T27*T31)*T27,2) ->  | X41: =ROUND((X23*2)+(X27*X31)*X27,2) ->  | Y41: =ROUND((Y23*2)+(Y27*Y31)*Y27,2) -> 1.39
B42: ARÉA JUSANTE (m²) | E42: =ROUND(((E23*2+E29*E31)*E29),2) ->  | J42: 15.04 | O42: =ROUND(((O23*2+O29*O31)*O29),2) ->  | R42: =ROUND(((R23*2+R29*R31)*R29),2) ->  | T42: =ROUND(((T23*2+T29*T31)*T29),2) ->  | X42: =ROUND(((X23*2+X29*X31)*X29),2) ->  | Y42: =ROUND(((Y23*2+Y29*Y31)*Y29),2) -> 2.41
B43: ARÉA DO TUBO (m²) | E43: =ROUND((PI()*(E23*1.2)^2/4)*E22,2) -> 0.41 | F43: 0.72 | G43: 0.72 | H43: 1.13 | I43: 1.13 | J43: 1.13 | K43: 1.63 | L43: 1.63 | M43: 1.63 | N43: 0.41 | O43: =ROUND((PI()*(O23*1.2)^2/4)*O22,2) -> 0.41 | P43: 0.41 | Q43: 0.72 | R43: =ROUND((PI()*(R23*1.2)^2/4)*R22,2) -> 0.72 | S43: 1.13 | T43: =ROUND((PI()*(T23*1.2)^2/4)*T22,2) -> 1.13 | U43: 1.13 | V43: 0.41 | W43: 0.41 | X43: =ROUND((PI()*(X23*1.2)^2/4)*X22,2) -> 0.41 | Y43: =ROUND((PI()*(Y23*1.2)^2/4)*Y22,2) -> 0.18
A44: RECORTE DE PAVIMENTO | B44: CORTE DE PAVIMENTO - REDE E BIGODES (m) | E44: =IF(E20=0,0,(E20*2)+(2*((E23*2)+(E30*E31*2)))) -> 0 | F44: 0 | G44: 0 | H44: 0 | I44: 0 | J44: 0 | K44: 0 | L44: 0 | M44: 0 | N44: 0 | O44: =IF(O20=0,0,(O20*2)+(2*((O23*2)+(O30*O31*2)))) -> 0 | P44: 0 | Q44: 0 | R44: =IF(R20=0,0,(R20*2)+(2*((R23*2)+(R30*R31*2)))) -> 0 | S44: 0 | T44: =IF(T20=0,0,(T20*2)+(2*((T23*2)+(T30*T31*2)))) -> 0 | U44: 0 | V44: 0 | W44: 0 | X44: =IF(X20=0,0,(X20*2)+(2*((X23*2)+(X30*X31*2)))) -> 0 | Y44: =IF(Y20=0,0,(Y20*2)+(2*((Y23*2)+(Y30*Y31*2)))) -> 87.4 | Z44: =TRUNC(SUM(E44:Y44),2) -> 87.4 | AD44: PV16A | AF44: PV16 | AG44: PV17 | AH44: PV18
B45: RECOMPOSIÇÃO DE PAVIMENTO - REDE E BIGODES (m²) | E45: =IF(E20=0,0,(((2*E30*E31)+(2*E23))*E20)) -> 0 | F45: 0 | G45: 0 | H45: 0 | I45: 0 | J45: 0 | K45: 0 | L45: 0 | M45: 0 | N45: 0 | O45: =IF(O20=0,0,(((2*O30*O31)+(2*O23))*O20)) -> 0 | P45: 0 | Q45: 0 | R45: =IF(R20=0,0,(((2*R30*R31)+(2*R23))*R20)) -> 0 | S45: 0 | T45: =IF(T20=0,0,(((2*T30*T31)+(2*T23))*T20)) -> 0 | U45: 0 | V45: 0 | W45: 0 | X45: =IF(X20=0,0,(((2*X30*X31)+(2*X23))*X20)) -> 0 | Y45: =IF(Y20=0,0,(((2*Y30*Y31)+(2*Y23))*Y20)) -> 71.4 | Z45: 71.4 | AD45: xxx | AF45: xxx | AG45: xxx | AH45: xxx
A46: TERRAPLENAGEM | B46: ESCAVAÇÃO TOTAL (m³) | E46: =E47+E48+E49+E50+E51+E52+E53+E54+E55 ->  | J46: 0 | L46: =L47+L48+L49+L52+L53+L54+L55 ->  | O46: =O47+O48+O49+O50+O51+O52+O53+O54+O55 ->  | R46: =R47+R48+R49+R50+R51+R52+R53+R54+R55 ->  | T46: =T47+T48+T49+T50+T51+T52+T53+T54+T55 ->  | X46: =X47+X48+X49+X50+X51+X52+X53+X54+X55 ->  | Y46: =Y47+Y48+Y49+Y50+Y51+Y52+Y53+Y54+Y55 -> 72.765 | AD46: xxx | AF46: xxx | AG46: xxx | AH46: xxx
B47: ESCAVAÇÃO MECÂNICA ATÉ 1,50m (m³) largura até 0,80m | E47: =IF(IF(E30<=(1.5),IF(E37<=(0.8),(E36+E37)/2*E30*E19))=FALSE,0,IF(E30<=(1.5),IF(E37<=(0.8),(E36+E37)/2*E30*E19))) ->  | F47: =IF(IF(F30<=(1.5),IF(F37<=(0.8),(F36+F37)/2*F30*F19))=FALSE,0,IF(F30<=(1.5),IF(F37<=(0.8),(F36+F37)/2*F30*F19))) ->  | J47: 0 | Y47: 69.3
B48: ESCAVAÇÃO MECÂNICA ATÉ 3,00m (m³) largura >0,80 até 1,5 m | E48: =IF(IF(E30<=(3),IF(E30>(1.5),IF(E37>(0.8),IF(E37<=(1.5),(E36+E37)/2*E30*E19))))=FALSE,0,IF(E30<=(3),IF(E30>(1.5),IF(E37>(0.8),IF(E37<=(1.5),(E36+E37)/2*E30*E19))))) ->  | F48: =IF(IF(F30<=(3),IF(F30>(1.5),IF(F37>(0.8),IF(F37<=(1.5),(F36+F37)/2*F30*F19))))=FALSE,0,IF(F30<=(3),IF(F30>(1.5),IF(F37>(0.8),IF(F37<=(1.5),(F36+F37)/2*F30*F19))))) ->  | J48: 0 | Y48: 0
B49: ESCAVAÇÃO MECÂNICA ATÉ 3,00m (m³) largura >1,5 até 2,5 m | E49: =IF(IF(E30<=(3),IF(E30>(1.5),IF(E37>(1.5),IF(E37<=(3.5),(E36+E37)/2*E30*E19),0),0),0)=FALSE,0,IF(E30<=(3),IF(E30>(1.5),IF(E37>(1.5),IF(E37<=(3.5),(E36+E37)/2*E30*E19),0),0),0)) ->  | F49: =IF(IF(F30<=(3),IF(F30>(1.5),IF(F37>(1.5),IF(F37<=(3.5),(F36+F37)/2*F30*F19),0),0),0)=FALSE,0,IF(F30<=(3),IF(F30>(1.5),IF(F37>(1.5),IF(F37<=(3.5),(F36+F37)/2*F30*F19),0),0),0)) ->  | J49: 0 | Y49: 0
B50: ESCAVAÇÃO MECÂNICA ATÉ 4,50m (m³) | E50: =IF(IF(E30<=(4.5),IF(E30>(3),(E36+E37)/2*E30*E19))=FALSE,0,IF(E30<=(4.5),IF(E30>(3),(E36+E37)/2*E30*E19))) ->  | F50: =IF(IF(F30<=(4.5),IF(F30>(3),(F36+F37)/2*F30*F19))=FALSE,0,IF(F30<=(4.5),IF(F30>(3),(F36+F37)/2*F30*F19))) ->  | J50: 0 | Y50: 0
B51: ESCAVAÇÃO MECÂNICA ATÉ 6,00m (m³) | E51: =IF(IF(AND(E30>(4.5),E30<=(6)),IF(E30>(3),(E36+E37)/2*E30*E19))=FALSE,0,IF(AND(E30>(4.5),E30<=(6)),IF(E30>(3),(E36+E37)/2*E30*E19))) ->  | F51: =IF(IF(AND(F30>(4.5),F30<=(6)),IF(F30>(3),(F36+F37)/2*F30*F19))=FALSE,0,IF(AND(F30>(4.5),F30<=(6)),IF(F30>(3),(F36+F37)/2*F30*F19))) ->  | J51: 0 | Y51: 0
B52: ESCAVAÇÃO MANUAL ATÉ 1,50m (m³) | E52: =IF(IF(E30<=1.5,(E47)*0.05,0)=FALSE,0,IF(E30<=1.5,(E47)*0.05,0)) ->  | F52: =IF(IF(F30<=1.5,(F47)*0.05,0)=FALSE,0,IF(F30<=1.5,(F47)*0.05,0)) ->  | J52: 0 | Y52: 3.465
B53: ESCAVAÇÃO MANUAL ATÉ 3,00m (m³) | E53: =IF(E30>(1.5),IF(E30<=(3),(E48+E49)*0.05,0),0) ->  | F53: =IF(F30>(1.5),IF(F30<=(3),(F48+F49)*0.05,0),0) ->  | J53: 0 | Y53: 0 | AA53: =Z52+Z53 -> 
B54: ESCAVAÇÃO MANUAL ATÉ 4,50m (m³) | E54: =(E50)*0.05 ->  | F54: =(F50)*0.05 ->  | J54: 0 | Y54: 0
B55: ESCAVAÇÃO MANUAL ATÉ 6,00m (m³) | E55: =(E51)*0.05 ->  | F55: =(F51)*0.05 ->  | J55: 0 | Y55: 0
B56: TRANSPORTE (BOTA FORA) | D56: VOLUME (m³) | E56: =E46 ->  | J56: 0 | O56: =O46 ->  | R56: =R46 ->  | T56: =T46 ->  | X56: =X46 ->  | Y56: =Y46 -> 72.765
D57: EMPOLAMENTO (%) | E57: 0.3 | F57: 0.3 | G57: 0.3 | H57: 0.3 | I57: 0.3 | J57: 0.3 | K57: 0.3 | L57: 0.3 | M57: 0.3 | N57: 0.3 | O57: 0.3 | P57: 0.3 | Q57: 0.3 | R57: 0.3 | S57: 0.3 | T57: 0.3 | U57: 0.3 | V57: 0.3 | W57: 0.3 | X57: 0.3 | Y57: 0.3
D58: DMT (km) | E58: =$C$10 -> 6 | F58: =$C$10 -> 6 | G58: 6 | H58: 6 | I58: 6 | J58: 6 | K58: 6 | L58: 6 | M58: 6 | N58: 6 | O58: 6 | P58: 6 | Q58: 6 | R58: 6 | S58: 6 | T58: 6 | U58: 6 | V58: 6 | W58: 6 | X58: 6 | Y58: 6
D59: TOTAL (m³ x km) | E59: =ROUND(E56*(1+E57)*E58,2) ->  | J59: 0 | O59: =ROUND(O56*(1+O57)*O58,2) ->  | R59: =ROUND(R56*(1+R57)*R58,2) ->  | T59: =ROUND(T56*(1+T57)*T58,2) ->  | X59: =ROUND(X56*(1+X57)*X58,2) ->  | Y59: =ROUND(Y56*(1+Y57)*Y58,2) -> 567.57 | Z59: =TRUNC(SUM(E59:Y59),2) -> 
B60: ESCORAMENTO PARA VALA H DE 0 ATÉ 1,5 m, LARGURA <1,5 m (m³) | E60: =IF(E30<=(1.5),E30*E19*2,0) ->  | J60: 0 | O60: =IF(O30<=(1.5),O30*O19*2,0) ->  | R60: =IF(R30<=(1.5),R30*R19*2,0) ->  | T60: =IF(T30<=(1.5),T30*T19*2,0) ->  | X60: =IF(X30<=(1.5),X30*X19*2,0) ->  | Y60: =IF(Y30<=(1.5),Y30*Y19*2,0) -> 126
B61: ESCORAMENTO PARA VALA H DE 1,5 A 3,0 m, LARGURA <1,5 m (m³) | E61: =IF(E30>(1.5),IF(E30<=(3),IF(2*E23<=(1.5),E30*2*E19),0),0) ->  | J61: FALSE | O61: =IF(O30>(1.5),IF(O30<=(3),IF(2*O23<=(1.5),O30*2*O19),0),0) ->  | R61: =IF(R30>(1.5),IF(R30<=(3),IF(2*R23<=(1.5),R30*2*R19),0),0) ->  | T61: =IF(T30>(1.5),IF(T30<=(3),IF(2*T23<=(1.5),T30*2*T19),0),0) ->  | X61: =IF(X30>(1.5),IF(X30<=(3),IF(2*X23<=(1.5),X30*2*X19),0),0) ->  | Y61: =IF(Y30>(1.5),IF(Y30<=(3),IF(Y37<=(1.5),Y30*2*#REF!),0),0) -> 0
B62: ESCORAMENTO PARA VALA H DE 1,5 A 3,0 m, LARGURA maior ou igual a 1,5m e Menor que 2,5m (m³) | E62: =IF(E30>(1.5),IF(E30<=(3.5),IF(2*E23>=(1.5),IF(2*E23<(3.5),(E30*2*E19),0),0),0),0) ->  | J62: 0 | O62: =IF(O30>(1.5),IF(O30<=(3.5),IF(2*O23>=(1.5),IF(2*O23<(3.5),(O30*2*O19),0),0),0),0) ->  | R62: =IF(R30>(1.5),IF(R30<=(3.5),IF(2*R23>=(1.5),IF(2*R23<(3.5),(R30*2*R19),0),0),0),0) ->  | T62: =IF(T30>(1.5),IF(T30<=(3.5),IF(2*T23>=(1.5),IF(2*T23<(3.5),(T30*2*T19),0),0),0),0) ->  | X62: =IF(X30>(1.5),IF(X30<=(3.5),IF(2*X23>=(1.5),IF(2*X23<(3.5),(X30*2*X19),0),0),0),0) ->  | Y62: =IF(Y30>(1.5),IF(Y30<=(3),IF(Y37>=(1.5),IF(Y37<(2.5),(Y30*2*#REF!),0),0),0),0) -> 0
B63: Preparo de fundo de vala com largura menor que 1,5 m | E63: =IF(2*E23<(1.5),2*E23*E22*E19,0) -> 0 | F63: 0 | G63: 0 | H63: 0 | I63: 0 | J63: 0 | K63: 0 | L63: 0 | M63: 0 | N63: 0 | O63: =IF(2*O23<(1.5),2*O23*O22*O19,0) -> 0 | P63: 0 | Q63: 0 | R63: =IF(2*R23<(1.5),2*R23*R22*R19,0) -> 0 | S63: 0 | T63: =IF(2*T23<(1.5),2*T23*T22*T19,0) -> 0 | U63: 0 | V63: 0 | W63: 0 | X63: =IF(2*X23<(1.5),2*X23*X22*X19,0) -> 0 | Y63: =IF(2*Y23<(1.5),2*Y23*Y22*Y19,0) -> 33.6 | Z63: 33.6
B64: Preparo de fundo de vala com largura maior ou igual a 1,5 m, ate 2,5m | E64: =IF(2*E23>=(1.5),2*E23*E22*E19,0) -> 0 | F64: 0 | G64: 0 | H64: 0 | I64: 0 | J64: 0 | K64: 0 | L64: 0 | M64: 0 | N64: 0 | O64: =IF(2*O23>=(1.5),2*O23*O22*O19,0) -> 0 | P64: 0 | Q64: 0 | R64: =IF(2*R23>=(1.5),2*R23*R22*R19,0) -> 0 | S64: 0 | T64: =IF(2*T23>=(1.5),2*T23*T22*T19,0) -> 0 | U64: 0 | V64: 0 | W64: 0 | X64: =IF(2*X23>=(1.5),2*X23*X22*X19,0) -> 0 | Y64: =IF(2*Y23>=(1.5),2*Y23*Y22*#REF!,0) -> 0 | Z64: 0
B65: REATERRO TOTAL (m³) | E65: =(E47+E48+E49+E50+E51+E52+E53+E54)-(E43*E19) ->  | J65: 0 | L65: =(L47+L48+L49+L52+L53+L54)-(L43*L19) ->  | O65: =(O47+O48+O49+O50+O51+O52+O53+O54)-(O43*O19) ->  | R65: =(R47+R48+R49+R50+R51+R52+R53+R54)-(R43*R19) ->  | T65: =(T47+T48+T49+T50+T51+T52+T53+T54)-(T43*T19) ->  | X65: =(X47+X48+X49+X50+X51+X52+X53+X54)-(X43*X19) ->  | Y65: =(Y47+Y48+Y49+Y50+Y51+Y52+Y53+Y54)-(Y43*Y19) -> 65.205
B66: REATERRO MECÂNICA ATÉ 1,50m (m³) largura até 0,80 | E66: =IF(IF(E30<=(1.5),IF(E37<=(0.8),ROUND((E47+E52)-(E43*E19),2)))=FALSE,0,IF(E30<=(1.5),IF(E37<=(0.8),ROUND((E47+E52)-(E43*E19),2)))) ->  | F66: =IF(IF(F30<=(1.5),IF(F37<=(0.8),ROUND((F47+F52)-(F43*F19),2)))=FALSE,0,IF(F30<=(1.5),IF(F37<=(0.8),ROUND((F47+F52)-(F43*F19),2)))) ->  | J66: 0 | Y66: 65.21
B67: REATERRO MECÂNICA ATÉ 3,00m (m³) largura > 0,8 até 1,5 m | E67: =IF(IF(E30<=(3),IF(E30>(1.5),IF(E37>=(0.8),IF(E37<(1.5),ROUND((E48+E53)-(E43*E19),2)))))=FALSE,0,IF(E30<=(3),IF(E30>(1.5),IF(E37>=(0.8),IF(E37<(1.5),ROUND((E48+E53)-(E43*E19),2)))))) ->  | F67: =IF(IF(F30<=(3),IF(F30>(1.5),IF(F37>=(0.8),IF(F37<(1.5),ROUND((F48+F53)-(F43*F19),2)))))=FALSE,0,IF(F30<=(3),IF(F30>(1.5),IF(F37>=(0.8),IF(F37<(1.5),ROUND((F48+F53)-(F43*F19),2)))))) ->  | J67: 0 | Y67: 0
B68: REATERRO MECÂNICA ATÉ 3,00m (m³) largura > 1,5 até 2,5 m | E68: =IF(IF(E30<=(3),IF(E30>(1.5),IF(E37>=(1.5),IF(E37<(3.5),ROUND((E49+E54)-(E43*E19),2)))))=FALSE,0,IF(E30<=(3),IF(E30>(1.5),IF(E37>=(1.5),IF(E37<(3.5),ROUND((E49+E54)-(E43*E19),2)))))) ->  | F68: =IF(IF(F30<=(3),IF(F30>(1.5),IF(F37>=(1.5),IF(F37<(3.5),ROUND((F49+F54)-(F43*F19),2)))))=FALSE,0,IF(F30<=(3),IF(F30>(1.5),IF(F37>=(1.5),IF(F37<(3.5),ROUND((F49+F54)-(F43*F19),2)))))) ->  | J68: 0 | Y68: 0
B69: REATERRO MECÂNICA ATÉ 4,50m (m³) | E69: =IF(IF(E30<=(4.5),IF(E30>(3),ROUND((E50+E54)-(E43*E19),2)))=FALSE,0,IF(E30<=(4.5),IF(E30>(3),ROUND((E50+E54)-(E43*E19),2)))) ->  | F69: =IF(IF(F30<=(4.5),IF(F30>(3),ROUND((F50+F54)-(F43*F19),2)))=FALSE,0,IF(F30<=(4.5),IF(F30>(3),ROUND((F50+F54)-(F43*F19),2)))) ->  | J69: 0 | Y69: 0
B70: REATERRO MECÂNICA ATÉ 6,00m (m³) | E70: =IF(IF(E30<=(6),IF(E30>(4.5),ROUND((E51+E55)-(E43*E19),2)))=FALSE,0,IF(E30<=(6),IF(E30>(4.5),ROUND((E51+E55)-(E43*E19),2)))) ->  | F70: =IF(IF(F30<=(6),IF(F30>(4.5),ROUND((F51+F55)-(F43*F19),2)))=FALSE,0,IF(F30<=(6),IF(F30>(4.5),ROUND((F51+F55)-(F43*F19),2)))) ->  | J70: 0 | Y70: 0
B71: CARGA E DESCARGA (BOTA FORA) (m³) | E71: =E46-E65 ->  | J71: 0 | O71: =O46-O65 ->  | R71: =R46-R65 ->  | T71: =T46-T65 ->  | X71: =X46-X65 ->  | Y71: =Y46-Y65 -> 7.56
B72: TRANSPORTE (BOTA-FORA) ÁREA DA TUBULAÇÃO | D72: VOLUME (m³) | E72: =E71*(1+E73) ->  | F72: =F71*(1+F73) ->  | J72: 0 | Y72: 9.828 | Z72: =SUM(E72:Y72) -> 
D73: EMPOLAMENTO (%) | E73: 0.3 | F73: 0.3 | G73: 0.3 | H73: 0.3 | I73: 0.3 | J73: 0.3 | K73: 0.3 | L73: 0.3 | M73: 0.3 | N73: 0.3 | O73: 0.3 | P73: 0.3 | Q73: 0.3 | R73: 0.3 | S73: 0.3 | T73: 0.3 | U73: 0.3 | V73: 0.3 | W73: 0.3 | X73: 0.3 | Y73: 0.3
D74: DMT (km) | E74: =$C$10 -> 6 | F74: =$C$10 -> 6 | G74: 6 | H74: 6 | I74: 6 | J74: 6 | K74: 6 | L74: 6 | M74: 6 | N74: 6 | O74: 6 | P74: 6 | Q74: 6 | R74: 6 | S74: 6 | T74: 6 | U74: 6 | V74: 6 | W74: 6 | X74: 6 | Y74: 6
D75: TOTAL (m³ x km) | E75: =ROUND(E72*E74,2) ->  | F75: =ROUND(F72*F74,2) ->  | J75: 0 | Y75: 58.97 | Z75: =TRUNC(SUM(E75:Y75),2) -> 
A76: DISPOSITIVOS ESTRUTURAIS | B76: TUBOS DE Ø0,40 (m) | E76: =IF(E23=(0.4),E18*E22,0) -> 0 | F76: 0 | G76: 0 | H76: 0 | I76: 0 | J76: 0 | K76: 0 | L76: 0 | M76: 0 | N76: 0 | O76: =IF(O23=(0.4),O18*O22,0) -> 0 | P76: 0 | Q76: 0 | R76: =IF(R23=(0.4),R18*R22,0) -> 0 | S76: 0 | T76: =IF(T23=(0.4),T18*T22,0) -> 0 | U76: 0 | V76: 0 | W76: 0 | X76: =IF(X23=(0.4),X18*X22,0) -> 0 | Y76: =IF(Y23=(0.4),Y19*Y22,0) -> 42 | Z76: 42 | AB76: =Z76+Z78 -> 42
B77: TUBOS DE Ø0,60 (m) | E77: =IF(E23=(0.6),E19*E22,0) -> 0 | F77: =IF(F23=(0.6),F18*F22,0) -> 0 | G77: 0 | H77: 0 | I77: 0 | J77: 0 | K77: 0 | L77: 0 | M77: 0 | N77: 0 | O77: =IF(O23=(0.6),O18*O22,0) -> 0 | P77: 0 | Q77: 0 | R77: =IF(R23=(0.6),R18*R22,0) -> 0 | S77: 0 | T77: =IF(T23=(0.6),T18*T22,0) -> 0 | U77: 0 | V77: 0 | W77: 0 | X77: =IF(X23=(0.6),X18*X22,0) -> 0 | Y77: =IF(Y23=(0.6),Y18*Y22,0) -> 0 | Z77: 0
B78: TUBOS DE Ø0,80 (m) | E78: =IF(E23=(0.8),E18*E22,0) -> 0 | F78: 0 | G78: 0 | H78: 0 | I78: 0 | J78: 0 | K78: 0 | L78: 0 | M78: 0 | N78: 0 | O78: =IF(O23=(0.8),O18*O22,0) -> 0 | P78: 0 | Q78: 0 | R78: =IF(R23=(0.8),R18*R22,0) -> 0 | S78: 0 | T78: =IF(T23=(0.8),T18*T22,0) -> 0 | U78: 0 | V78: 0 | W78: 0 | X78: =IF(X23=(0.8),X18*X22,0) -> 0 | Y78: =IF(Y23=(0.8),Y18*Y22,0) -> 0 | Z78: 0
B79: TUBOS DE Ø1,00 (m) | E79: =IF(E23=(1),E19*E22,0) -> 0 | F79: =IF(F23=(1),F18*F22,0) -> 0 | G79: 0 | H79: 0 | I79: 0 | J79: 0 | K79: 0 | L79: 0 | M79: 0 | N79: 0 | O79: =IF(O23=(1),O18*O22,0) -> 0 | P79: 0 | Q79: 0 | R79: =IF(R23=(1),R18*R22,0) -> 0 | S79: 0 | T79: =IF(T23=(1),T18*T22,0) -> 0 | U79: 0 | V79: 0 | W79: 0 | X79: =IF(X23=(1),X18*X22,0) -> 0 | Y79: =IF(Y23=(1),Y18*Y22,0) -> 0 | Z79: 0
B80: TUBOS DE Ø1,20 (m) | E80: =IF(E23=(1.2),E18*E22,0) -> 0 | F80: 0 | G80: 0 | H80: 0 | I80: 0 | J80: 0 | K80: 0 | L80: 0 | M80: 0 | N80: 0 | O80: =IF(O23=(1.2),O18*O22,0) -> 0 | P80: 0 | Q80: 0 | R80: =IF(R23=(1.2),R18*R22,0) -> 0 | S80: 0 | T80: =IF(T23=(1.2),T18*T22,0) -> 0 | U80: 0 | V80: 0 | W80: 0 | X80: =IF(X23=(1.2),X18*X22,0) -> 0 | Y80: =IF(Y23=(1.2),Y18*Y22,0) -> 0 | Z80: 0
B81: TUBOS DE Ø1,50 (m) | E81: =IF(E23=(1.5),E18*E22,0) -> 0 | F81: =IF(F23=(1.5),F19*F22,0) -> 0 | G81: 0 | H81: 0 | I81: 0 | J81: =IF(J23=(1.5),J19*J22,0) -> 0 | K81: 0 | L81: =IF(L23=(1.5),L19*L22,0) -> 0 | M81: 0 | N81: 0 | O81: =IF(O23=(1.5),O19*O22,0) -> 0 | P81: 0 | Q81: 0 | R81: =IF(R23=(1.5),R19*R22,0) -> 0 | S81: 0 | T81: =IF(T23=(1.5),T19*T22,0) -> 0 | U81: 0 | V81: 0 | W81: 0 | X81: 0 | Y81: 0 | Z81: 0
B82: PESO TUBOS DE Ø0,40 (t) | E82: =E76*0.18 -> 0 | F82: 0 | G82: 0 | H82: 0 | I82: 0 | J82: 0 | K82: 0 | L82: 0 | M82: 0 | N82: 0 | O82: =O76*0.18 -> 0 | P82: 0 | Q82: 0 | R82: =R76*0.18 -> 0 | S82: 0 | T82: =T76*0.18 -> 0 | U82: 0 | V82: 0 | W82: 0 | X82: =X76*0.18 -> 0 | Y82: =Y76*0.18 -> 7.56 | Z82: 7.56
B83: PESO TUBOS DE Ø0,60 (t) | E83: =E77*0.35 -> 0 | F83: 0 | G83: 0 | H83: 0 | I83: 0 | J83: 0 | K83: 0 | L83: 0 | M83: 0 | N83: 0 | O83: =O77*0.35 -> 0 | P83: 0 | Q83: 0 | R83: =R77*0.35 -> 0 | S83: 0 | T83: =T77*0.35 -> 0 | U83: 0 | V83: 0 | W83: 0 | X83: =X77*0.35 -> 0 | Y83: =Y77*0.35 -> 0 | Z83: 0
B84: PESO TUBOS DE Ø0,80 (t) | E84: =E78*0.54 -> 0 | F84: 0 | G84: 0 | H84: 0 | I84: 0 | J84: 0 | K84: 0 | L84: 0 | M84: 0 | N84: 0 | O84: =O78*0.54 -> 0 | P84: 0 | Q84: 0 | R84: =R78*0.54 -> 0 | S84: 0 | T84: =T78*0.54 -> 0 | U84: 0 | V84: 0 | W84: 0 | X84: =X78*0.54 -> 0 | Y84: =Y78*0.54 -> 0 | Z84: 0
B85: PESO TUBOS DE Ø1,00 (t) | E85: =E79*0.8 -> 0 | F85: 0 | G85: 0 | H85: 0 | I85: 0 | J85: 0 | K85: 0 | L85: 0 | M85: 0 | N85: 0 | O85: =O79*0.8 -> 0 | P85: 0 | Q85: 0 | R85: =R79*0.8 -> 0 | S85: 0 | T85: =T79*0.8 -> 0 | U85: 0 | V85: 0 | W85: 0 | X85: =X79*0.8 -> 0 | Y85: =Y79*0.54 -> 0 | Z85: =TRUNC(SUM(E85:Y85),2) -> 0
B86: PESO TUBOS DE Ø1,20 (t) | E86: =E80*1.3 -> 0 | F86: 0 | G86: 0 | H86: 0 | I86: 0 | J86: 0 | K86: 0 | L86: 0 | M86: 0 | N86: 0 | O86: =O80*1.3 -> 0 | P86: 0 | Q86: 0 | R86: =R80*1.3 -> 0 | S86: 0 | T86: =T80*1.3 -> 0 | U86: 0 | V86: 0 | W86: 0 | X86: =X80*1.3 -> 0 | Y86: =Y80*0.54 -> 0 | Z86: 0
B87: PESO TUBOS DE Ø1,50 (t) | E87: =E81*1.93 -> 0 | F87: 0 | G87: 0 | H87: 0 | I87: 0 | J87: 0 | K87: 0 | L87: 0 | M87: 0 | N87: 0 | O87: =O81*1.93 -> 0 | P87: 0 | Q87: 0 | R87: =R81*1.93 -> 0 | S87: 0 | T87: =T81*1.93 -> 0 | U87: 0 | V87: 0 | W87: 0 | X87: =X81*1.93 -> 0 | Y87: =Y80*0.54 -> 0 | Z87: 0
B88: PESO DOS TUBOS (t) | E88: =ROUND(((E76)*0.18)+((E77)*0.35)+((E78)*0.54)+((E79)*0.8)+((E80)*1.13)+((E81)*1.93),2) -> 0 | F88: =ROUND(((F76)*0.18)+((F77)*0.3466)+((F78)*0.533)+((F79)*0.8)+((F80)*1.133)+((F81)*1.933),2) -> 0 | G88: 0 | H88: 0 | I88: 0 | J88: =ROUND(((J76)*0.18)+((J77)*0.3466)+((J78)*0.533)+((J79)*0.8)+((J80)*1.133)+((J81)*1.933),2) -> 0 | K88: 0 | L88: =ROUND(((L76)*0.18)+((L77)*0.3466)+((L78)*0.533)+((L79)*0.8)+((L80)*1.133)+((L81)*1.933),2) -> 0 | M88: 0 | N88: 0 | O88: =ROUND(((O76)*0.18)+((O77)*0.3466)+((O78)*0.533)+((O79)*0.8)+((O80)*1.133)+((O81)*1.933),2) -> 0 | P88: 0 | Q88: 0 | R88: =ROUND(((R76)*0.18)+((R77)*0.3466)+((R78)*0.533)+((R79)*0.8)+((R80)*1.133)+((R81)*1.933),2) -> 0 | S88: 0 | T88: =ROUND(((T76)*0.18)+((T77)*0.3466)+((T78)*0.533)+((T79)*0.8)+((T80)*1.133)+((T81)*1.933),2) -> 0 | U88: 0 | V88: 0 | W88: 0 | X88: 0 | Y88: 7.56 | Z88: 7.56
B89: TRANSPORTE (TUBOS) | D89: DMT (km) | E89: =IF($C$9>=30,30,$C$9) -> 30 | F89: =IF($C$9>=30,30,$C$9) -> 30 | G89: 30 | H89: 30 | I89: 30 | J89: 30 | K89: 30 | L89: 30 | M89: 30 | N89: 30 | O89: 30 | P89: 30 | Q89: 30 | R89: 30 | S89: 30 | T89: 30 | U89: 30 | V89: 30 | W89: 30 | X89: 30 | Y89: 30
D90: DMT EXCEDENTE (km) | E90: =IF($C$9>=30,$C$9-30,0) -> 59 | F90: =IF($C$9>=30,$C$9-30,0) -> 59 | G90: 59 | H90: 59 | I90: 59 | J90: 59 | K90: 59 | L90: 59 | M90: 59 | N90: 59 | O90: 59 | P90: 59 | Q90: 59 | R90: 59 | S90: 59 | T90: 59 | U90: 59 | V90: 59 | W90: 59 | X90: 59 | Y90: 59
D91: TOTAL (t x km) | E91: =ROUND(E88*E89,2) -> 0 | F91: 0 | G91: 0 | H91: 0 | I91: 0 | J91: =ROUND(J88*J89,2) -> 0 | K91: 0 | L91: =ROUND(L88*L89,2) -> 0 | M91: 0 | N91: 0 | O91: =ROUND(O88*O89,2) -> 0 | P91: 0 | Q91: 0 | R91: =ROUND(R88*R89,2) -> 0 | S91: 0 | T91: =ROUND(T88*T89,2) -> 0 | U91: 0 | V91: 0 | W91: 0 | X91: 0 | Y91: 226.8 | Z91: =TRUNC(SUM(E91:Y91),2) -> 226.8
D92: TOTAL EXCEDENTE (t x km) | E92: =ROUND(E88*E90,2) -> 0 | F92: 0 | G92: 0 | H92: 0 | I92: 0 | J92: =ROUND(J88*J90,2) -> 0 | K92: 0 | L92: =ROUND(L88*L90,2) -> 0 | M92: 0 | N92: 0 | O92: =ROUND(O88*O90,2) -> 0 | P92: 0 | Q92: 0 | R92: =ROUND(R88*R90,2) -> 0 | S92: 0 | T92: =ROUND(T88*T90,2) -> 0 | U92: 0 | V92: 0 | W92: 0 | X92: 0 | Y92: 446.04 | Z92: 446.04
B93: PV - TIPO 1 (un.) | Z93: 0
B94: CHAMINÉ (PESCOÇO) (m) | E94: =IF(E23=0.6,E26-1.12,IF(E23=0.8,E26-1.32,IF(E23=1,E26-1.62,IF(E23=1.2,E26-1.82,IF(E23=1.5,E26-2.12,""))))) ->  | J94: 0.472 | K94: 1.002 | L94: 1.611
B95: TAMPÃO (m) | E95: =E93 -> 0 | F95: =F93 -> 0 | G95: =G93 -> 0 | H95: 0 | I95: 0 | J95: 0 | K95: 0 | L95: 0 | M95: 0 | N95: 0 | O95: 0 | P95: 0 | Q95: 0 | R95: 0 | S95: 0 | T95: 0 | U95: 0 | V95: 0 | W95: 0 | X95: 0 | Z95: 0
B96: BOCA DE LOBO SIMPLES (un.) | Z96: 0
B97: BOCA DE LOBO DUPLA (un.) | Z97: 0
B98: BOCA DE LOBO TRIPLA (un.) | E98: 0 | Z98: 0 | AB98: =Z98*3+Z97*2+Z96 -> 0
B99: BOCA DE LOBO TRIPLA (un.) | Z99: 0
B100: BOCA DE BUEIRO SIMPLES | N100: 0 | O100: 0 | P100: 0 | Q100: 0 | R100: 0 | S100: 0 | T100: 0 | U100: 0 | V100: 0 | W100: 0 | Z100: 0
B101: BOCA DE BUEIRO DUPLA | Z101: 0
B102: BOCA DE BUEIRO TRIPLA | Z102: 0
B103: DISSIPADOR | N103: 0 | O103: 0 | P103: 0 | Q103: 0 | R103: 0 | S103: 0 | T103: 0 | U103: 0 | V103: 0 | W103: 0 | Z103: 0
B104: BOCA DE DRAGÃO | M104: 0 | N104: 0 | O104: 0 | P104: 0 | Q104: 0 | R104: 0 | S104: 0 | T104: 0 | U104: 0 | V104: 0 | W104: 0 | Z104: 0

Sheet SINALIZAÇÃO (hidden)
B1: ESTADO DO MATO GROSSO DO SUL
B2: =OFFSET(DADOS!$I$2,DADOS!$A$7,0,1,1) -> PREFEITURA MUNICIPAL DE SIDROLÃNDIA | F2: ____________________________________________
B3: =ORÇAMENTO_DES!$D$3 -> SECRETARIA DE OBRAS | F3: FABIO MARQUES RIBEIRO ENGENHEIRO CIVIL CREA: 15.276/MS
A4: MEMÓRIA DE SINALIZAÇÃO
A5: Objeto: | B5: =ORÇAMENTO_DES!B5 -> INFRAESTRUTURA - URBANA - PAVIMENTAÇÃO ASFÁLTICA, DRENAGEM, ACESSIBILIDADE E SINALIZAÇÃO VIÁRIA EM DIVERSAS RUAS NO MUNICÍPIO DE SIDROLÂNDIA/MS
A6: Município: | B6: =ORÇAMENTO_DES!B6 -> SIDROLÃNDIA
A7: Local: | B7: =ORÇAMENTO_DES!B7 -> DIVERSAS RUAS
A8: MODELO | B8: DESCRIÇÃO | C8: LOCAL | F8: QUANTIDADE | G8: ÁREA UNITÁRIA (M2) | H8: ÁREA TOTAL (M2)
B9: R-1 | C9: =PAVIMENTAÇÃO!$G$14 -> RUA PROJETADA | G9: 0.28 | H9: =F9*G9 -> 0
C10: =PAVIMENTAÇÃO!$H$14 -> RUA ALOISIO MAIA | G10: 0.28 | H10: =F10*G10 -> 0
C11: =PAVIMENTAÇÃO!$I$14 -> RUA JOVELINA ZUZA | G11: 0.28 | H11: 0
C12: =PAVIMENTAÇÃO!$J$14 -> RUA GUARANI | G12: 0.28 | H12: 0
C13: =PAVIMENTAÇÃO!K14 -> RUA EVARISTO ANZILIERO | G13: 0.28 | H13: 0
C14: =PAVIMENTAÇÃO!L14 -> RUA DALVA PEREIRA | G14: 0.28 | H14: 0
C15: =PAVIMENTAÇÃO!M14 -> RUA MARCINIO DE BRITO | G15: 0.28 | H15: 0
C16: =PAVIMENTAÇÃO!N14 -> RUA MARCOS FERREIRA | G16: 0.28 | H16: 0
C17: =PAVIMENTAÇÃO!O14 -> RUA HÉLIO MARTINS | G17: 0.28 | H17: 0
C18: =PAVIMENTAÇÃO!#REF! ->  | G18: 0.28 | H18: 0
C19: =PAVIMENTAÇÃO!#REF! ->  | G19: 0.28 | H19: 0
C20: =PAVIMENTAÇÃO!#REF! ->  | G20: 0.28 | H20: 0
C21: =PAVIMENTAÇÃO!#REF! ->  | G21: 0.28 | H21: 0
C22: =PAVIMENTAÇÃO!#REF! ->  | G22: 0.28 | H22: 0
A23: TOTAL | F23: =SUM(F9:F22) -> 0 | H23: =SUM(H9:H22) -> 0
A24: MODELO | B24: DESCRIÇÃO | C24: LOCAL | F24: QUANTIDADE | G24: ÁREA UNITÁRIA (M2) | H24: ÁREA TOTAL (M2)
B25: R-19 | C25: =C9 -> RUA PROJETADA | G25: 0.28 | H25: =F25*G25 -> 0
C26: RUA ALOISIO MAIA | G26: 0.28 | H26: =F26*G26 -> 0
C27: RUA JOVELINA ZUZA | G27: 0.28 | H27: 0
C28: RUA GUARANI | G28: 0.28 | H28: 0
C29: RUA EVARISTO ANZILIERO | G29: 0.28 | H29: 0
C30: RUA DALVA PEREIRA | G30: 0.28 | H30: 0
C31: RUA MARCINIO DE BRITO | G31: 0.28 | H31: 0
C32: RUA MARCOS FERREIRA | G32: 0.28 | H32: 0
C33: RUA HÉLIO MARTINS | G33: 0.28 | H33: 0
G34: 0.28 | H34: 0
G35: 0.28 | H35: 0
G36: 0.28 | H36: 0
G37: 0.28 | H37: 0
G38: 0.28 | H38: 0
A39: TOTAL | F39: =SUM(F25:F38) -> 0 | H39: =SUM(H25:H38) -> 0
A40: MODELO | B40: DESCRIÇÃO | C40: LOCAL | F40: QUANTIDADE | G40: ÁREA UNITÁRIA (M2) | H40: ÁREA TOTAL (M2)
B41: LOGRADOURO | C41: =C9 -> RUA PROJETADA | G41: 0.11 | H41: =F41*G41 -> 0
C42: =C10 -> RUA ALOISIO MAIA | G42: 0.11 | H42: =F42*G42 -> 0
C43: =C11 -> RUA JOVELINA ZUZA | G43: 0.11 | H43: 0
C44: =C12 -> RUA GUARANI | G44: 0.11 | H44: 0
C45: =C29 -> RUA EVARISTO ANZILIERO | G45: 0.11 | H45: 0
C46: RUA DALVA PEREIRA | G46: 0.11 | H46: 0
C47: RUA MARCINIO DE BRITO | G47: 0.11 | H47: 0
C48: RUA MARCOS FERREIRA | G48: 0.11 | H48: 0
C49: RUA HÉLIO MARTINS | G49: 0.11 | H49: 0
G50: 0.11 | H50: 0
G51: 0.11 | H51: 0
G52: 0.11 | H52: 0
G53: 0.11 | H53: 0
G54: 0.11 | H54: 0
G55: 0.11 | H55: 0
A56: TOTAL | F56: =SUM(F41:F55) -> 0 | H56: =SUM(H41:H55) -> 0
A57: MODELO | B57: DESCRIÇÃO | C57: LOCAL | F57: EXTENSÃO (M) | G57: ÁREA UNITÁRIA (M2) | H57: ÁREA TOTAL (M2)
B58: FAIXA TRÁFEGO | C58: =C41 -> RUA PROJETADA | G58: 0.24 | H58: =F58*G58 -> 0
C59: =C42 -> RUA ALOISIO MAIA | G59: 0.24 | H59: =F59*G59 -> 0
C60: =C43 -> RUA JOVELINA ZUZA | G60: 0.24 | H60: 0
C61: =C44 -> RUA GUARANI | G61: 0.24 | H61: 0
C62: =C45 -> RUA EVARISTO ANZILIERO | G62: 0.24 | H62: =F62*G62 -> 0
C63: =C47 -> RUA MARCINIO DE BRITO | G63: 0.24 | H63: 0
C64: RUA MARCOS FERREIRA | G64: 0.24 | H64: 0
C65: RUA HÉLIO MARTINS | G65: 0.24 | H65: 0
G66: 0.24 | H66: 0
G67: 0.24 | H67: 0
G68: 0.24 | H68: 0
G69: 0.24 | H69: 0
G70: 0.24 | H70: 0
A71: TOTAL | F71: =SUM(F58:F70) -> 0 | H71: =SUM(H58:H70) -> 0
A72: MODELO | B72: DESCRIÇÃO | C72: LOCAL | F72: QUANTIDADE | G72: ÁREA UNITÁRIA (M2) | H72: ÁREA TOTAL (M2)
B73: PARE | C73: xxx | G73: 2.92 | H73: =F73*G73 -> 0
C74: xxx | G74: 2.92 | H74: =F74*G74 -> 0
C75: xxx | G75: 2.92 | H75: =F75*G75 -> 0
C76: xxx | G76: 2.92 | H76: =F76*G76 -> 0
C77: xxx | G77: 2.92 | H77: =F77*G77 -> 0
C78: xxx | G78: 2.92 | H78: 0
C79: xxx | G79: 2.92 | H79: 0
C80: xxx | G80: 2.92 | H80: 0
C81: xxx | G81: 2.92 | H81: 0
C82: xxx | G82: 2.92 | H82: 0
C83: xxx | G83: 2.92 | H83: 0
C84: xxx | G84: 2.92 | H84: 0
C85: xxx | G85: 2.92 | H85: 0
A86: TOTAL | F86: =SUM(F73:F85) -> 0 | H86: =SUM(H73:H85) -> 0
A87: MODELO | B87: DESCRIÇÃO | C87: LOCAL | F87: QUANTIDADE | G87: ÁREA UNITÁRIA (M2) | H87: ÁREA TOTAL (M2)
B88: FAIXA DE PEDESTRE | C88: xxx | G88: 11.2 | H88: =F88*G88 -> 0
C89: xxx | G89: 11.2 | H89: =F89*G89 -> 0
C90: xxx | G90: 11.2 | H90: 0
C91: xxx | G91: 11.2 | H91: 0
C92: xxx | G92: 11.2 | H92: 0
C93: xxx | G93: 11.2 | H93: 0
C94: xxx | G94: 11.2 | H94: 0
C95: xxx | G95: 11.2 | H95: 0
C96: xxx | G96: 11.2 | H96: 0
C97: xxx | G97: 11.2 | H97: 0
C98: xxx | G98: 11.2 | H98: 0
C99: xxx | G99: 11.2 | H99: 0
C100: xxx | G100: 11.2 | H100: 0
A101: TOTAL | F101: =SUM(F88:F100) -> 0 | H101: =SUM(H88:H100) -> 0
A102: MODELO | B102: DESCRIÇÃO | C102: LOCAL | F102: QUANTIDADE | G102: ÁREA UNITÁRIA (M2) | H102: ÁREA TOTAL (M2)
B103: FAIXA DE RETENÇÃO | C103: xxx | G103: 1.6 | H103: =F103*G103 -> 0
C104: xxx | G104: 1.6 | H104: =F104*G104 -> 0
C105: xxx | G105: 1.6 | H105: 0
C106: xxx | G106: 1.6 | H106: 0
C107: xxx | G107: 1.6 | H107: =F107*G107 -> 0
C108: xxx | G108: 1.6 | H108: =F108*G108 -> 0
C109: xxx | G109: 1.6 | H109: 0
C110: xxx | G110: 1.6 | H110: 0
C111: xxx | G111: 1.6 | H111: 0
C112: xxx | G112: 1.6 | H112: 0
C113: xxx | G113: 1.6 | H113: 0
C114: xxx | G114: 1.6 | H114: 0
C115: xxx | G115: 1.6 | H115: 0
A116: TOTAL | F116: =SUM(F103:F115) -> 0 | H116: =SUM(H103:H115) -> 0
A117: MODELO | B117: DESCRIÇÃO | C117: LOCAL | F117: QUANTIDADE | G117: ÁREA UNITÁRIA (M2) | H117: ÁREA TOTAL (M2)
B118: FAIXA CONTÍNUA | C118: xxx | G118: 3.6 | H118: =F118*G118 -> 0
C119: xxx | G119: 3.6 | H119: =F119*G119 -> 0
C120: xxx | G120: 3.6 | H120: 0
C121: xxx | G121: 3.6 | H121: 0
C122: xxx | G122: 3.6 | H122: 0
C123: xxx | G123: 3.6 | H123: 0
C124: xxx | G124: 3.6 | H124: 0
C125: xxx | G125: 3.6 | H125: 0
C126: xxx | G126: 3.6 | H126: 0
C127: xxx | G127: 3.6 | H127: 0
C128: xxx | G128: 3.6 | H128: 0
C129: xxx | G129: 3.6 | H129: 0
C130: xxx | G130: 3.6 | H130: 0
A131: TOTAL | F131: =SUM(F118:F130) -> 0 | H131: =SUM(H118:H130) -> 0
A132: MODELO | B132: DESCRIÇÃO | C132: LOCAL | F132: QUANTIDADE | G132: ÁREA UNITÁRIA (M2) | H132: ÁREA TOTAL (M2)
B133: FAIXA SENTIDO TRAFEGO | C133: xxx | G133: 0.2 | H133: =F135*G133 -> 0
C134: xxx | G134: 0.2 | H134: =F134*G134 -> 0
C135: xxx | G135: 0.2 | H135: 0
C136: xxx | G136: 0.2 | H136: 0
C137: xxx | G137: 0.2 | H137: 0
C138: xxx | G138: 0.2 | H138: 0
C139: xxx | G139: 0.2 | H139: 0
C140: xxx | G140: 0.2 | H140: 0
C141: xxx | G141: 0.2 | H141: 0
C142: xxx | G142: 0.2 | H142: 0
C143: xxx | G143: 0.2 | H143: 0
C144: xxx | G144: 0.2 | H144: 0
C145: xxx | G145: 0.2 | H145: 0
A146: TOTAL | F146: =SUM(F134:F145) -> 0 | H146: =SUM(H133:H145) -> 0
A147: QUADRO RESUMO SINALIZAÇÃO VERTICAL | D147: QUADRO RESUMO SINALIZAÇÃO HORIZONTAL
A148: MODELO | B148: DESCRIÇÃO | C148: QUANTIDADE | D148: MODELO | E148: DESCRIÇÃO | F148: QUANTIDADE | G148: ÁREA UNITÁRIA | H148: ÁREA TOTAL
B149: R-1 | C149: =F23 -> 0 | E149: FAIXA TRÁFEGO | F149: =F71 -> 0 | G149: =G58 -> 0.24 | H149: =F149*G149 -> 0
B150: R-19 | C150: =F39 -> 0 | E150: PARE | F150: =F86 -> 0 | G150: =G73 -> 2.92 | H150: 0
B151: LOGRADOURO | C151: =F56 -> 0 | E151: FAIXA DE PEDESTRE | F151: =F101 -> 0 | G151: =G88 -> 11.2 | H151: 0
E152: FAIXA DE RETENÇÃO | F152: =F116 -> 0 | G152: =G103 -> 1.6 | H152: 0
E153: FAIXA CONTÍNUA | F153: =F131 -> 0 | G153: =G118 -> 3.6 | H153: 0
E154: FAIXA SENTIDO TRAFEGO | F154: =F146 -> 0 | G154: 0.2 | H154: 0 | I154: =H149+H150+H151+H152+H153+H154 -> 0
C157: =SUM(C149:C152) -> 0

Sheet CALÇADAS E RAMPAS (hidden)
B1: ESTADO DO MATO GROSSO DO SUL
B2: =OFFSET(DADOS!$I$2,DADOS!$A$7,0,1,1) -> PREFEITURA MUNICIPAL DE SIDROLÃNDIA | F2: ____________________________________________
B3: =ORÇAMENTO_DES!$D$3 -> SECRETARIA DE OBRAS | F3: FABIO MARQUES RIBEIRO ENGENHEIRO CIVIL CREA: 15.276/MS
A4: MEMÓRIA DE CALCULO CALÇADAS E RAMPAS
A5: =DRENAGEM!A5 -> Objeto: | B5: =DRENAGEM!B5 -> INFRAESTRUTURA - URBANA - PAVIMENTAÇÃO ASFÁLTICA, DRENAGEM, ACESSIBILIDADE E SINALIZAÇÃO VIÁRIA EM DIVERSAS RUAS NO MUNICÍPIO DE SIDROLÂNDIA/MS
A6: Município: | B6: =DRENAGEM!B6 -> SIDROLÃNDIA
A7: Local: | B7: =DRENAGEM!B7 -> DIVERSAS RUAS
A8: TRANSPORTE | D8: CONSUMO
A9: DMT PISO TATIL | B9: =DMT!E14 -> 25 | E9: Consumo de brita para calçadas = | F9: 0,585 m3.m3
A10: DMT SOLO | B10: =DMT!E8 -> 6 | D10: Consumo de piso tátil = | F10: 0,005 t.m
A11: DMT BRITA | B11: =DMT!E11 -> 120 | E11: Consumo de cimento para calçada = | F11: 0,32180 t.m3
E12: Transporte comercial de brita para calçada= | F12: =(0.585*N6)*N9 -> 0
E13: Transporte comercial de Piso tátil= | F13: =N2*0.005*N10 -> 0
A14: NOME DA RUA | F14: TODAS AS RUAS | K14: TOTAL
A15: CALÇADAS E RAMPAS DE ACESSO | B15: MEIO FIOS GUIAS | D15: SEM SARJETA (m) | F15: =PAVIMENTAÇÃO!#REF! ->  | K15: =SUM(#REF!) -> 
B16: CALÇADA | D16: EXTENSÃO (m) | K16: =SUM(F16:J16) -> 0
D17: LARGURA (m) | F17: 1.4
D18: ÁREA (m²) | F18: =F16*F17 -> 0 | K18: =SUM(F18:J18) -> 0
D19: ESPESSURA (m) | F19: 0.07
D20: VOLUME (m²) | F20: =F18*F19 -> 0 | K20: =SUM(F20:J20) -> 0
B21: RAMPAS | D21: QUANTIDADE | F21: 99 | K21: =SUM(F21:J21) -> 99
D22: ÁREA UNITÁRIA (m²) | F22: 7.65 | K22: =SUM(F22:J22) -> 7.65
D23: ESPESSURA (m) | F23: 0.07
D24: VOLUME (m²) | F24: =F21*F22*F23 -> 53.0145 | K24: =SUM(F24:J24) -> 53.0145
D25: AREA TOTAL(m2) | F25: =F21*F22 -> 757.35 | K25: =SUM(F25:J25) -> 757.35
B26: PISO TÁTIL | D26: EXTENSÃO (m) | F26: =4.5*F21 -> 445.5 | K26: 445.5
D27: LARGURA (m) | F27: 0.2
D28: ÁREA (m²) | F28: =F26*F27 -> 89.1 | K28: 89.1
B29: CALÇADA E RAMPAS | D29: AREA TOTAL (m²): | F29: =F18+F25 -> 757.35 | K29: 757.35
D30: VOLUME TOTAL (m3) | F30: =F24+F20 -> 53.0145 | K30: 53.0145
B31: TRANSPORTE | D31: DMT ( KM) | F31: =IF($B$11>=30,30,$B$11) -> 30
D32: DMT EXCEDENTE( KM) | F32: =IF($B$11>=30,$B$11-F31) -> 90
D33: VOLUME TOTAL EXCEDENTE (m3 ) | F33: =F32*0.585*F30 -> 2791.213425 | K33: 2791.213425
D34: VOLUME TOTAL (m3 ) | F34: =F30*0.585*F31 -> 930.404475 | K34: 930.404475

Sheet CHUVA (hidden)
B1: ESTADO DO MATO GROSSO DO SUL
B2: ='CALÇADAS E RAMPAS'!B2 -> PREFEITURA MUNICIPAL DE SIDROLÃNDIA | P2: ____________________________________________
B3: SECRETARIA DE PLANEJAMENTO | P3: FABIO MARQUES RIBEIRO ENGENHEIRO CIVIL CREA: 15.276/MS
A4: MEMÓRIA DE CALCULO CHUVA
A5: Objeto: | B5: =ORÇAMENTO_DES!B5 -> INFRAESTRUTURA - URBANA - PAVIMENTAÇÃO ASFÁLTICA, DRENAGEM, ACESSIBILIDADE E SINALIZAÇÃO VIÁRIA EM DIVERSAS RUAS NO MUNICÍPIO DE SIDROLÂNDIA/MS
A6: Município: | B6: =ORÇAMENTO_DES!B6 -> SIDROLÃNDIA
A7: Local: | B7: =ORÇAMENTO_DES!B7 -> DIVERSAS RUAS
A9: Intensidade Média da Chuva
H10: l= | I10: 1.572 | J10: Km | P10: Ichuva | Q10: =1146.93*I13^0.18/(I14+12)^0.79 -> 80.80887649 | R10: (mm / h)
H11: Dh= | I11: =J15-I15 -> 9 | J11: m
P12: FÓRMULA VAZÃO
A13: Coeficiente de Tipo Superf. (n)= | C13: 0.015 | E13: DADOS VIA | H13: Tr | I13: 15 | J13: ANOS
A14: Coef. de Esc. Superficial C= | C14: 0.5 | E14: it= | F14: 3 | G14: % | H14: t | I14: =57*(I10^3/I11)^0.385 -> 41.24717176 | J14: mm/h
A15: Capac. Boca de Lobo Simples (l/s) = | C15: 0.06 | E15: L= | F15: 8 | G15: m | H15: Dh= | I15: 189 | J15: 198 | P15: FÓRMULA VELOCIDADE DE ESCOAMENTO
A16: Capac. Boca de Lobo Dupla (l/s) = | C16: 0.14 | E16: Ymax= | F16: =(F14/100)*F15 -> 0.24 | G16: m
A17: Capac. Boca de Lobo Tripla (l/s) = | C17: 0.21 | E17: Qsarjeta | F17: =0.375*((1/(F14/100))/C13)*(((F14/100)*F15)^2.667) -> 18.52857994
A19: REDE | B19: TRECHO INICIAL | C19: TRECHO FINAL | D19: Nº DA BACIA | E19: Área Contr. (há) | F19: Ext (m) | G19: Cota Montante | H19: Cota Jusante | I19: Decliv. m/m | J19: Im (mm/h) | K19: Tipo de Via | L19: Q. Montante (m³/s) | M19: Q. Trecho (m³/s) | N19: Q. Jusante (m³/s) | O19: n | P19: d (m) | Q19: Ø (m) | R19: V (m³/s)
A22: REDE- RUA ABELO FERREIRA | D22: 1 | E22: 0.56 | F22: 118.66 | G22: 330.283 | H22: 328.758 | I22: =(G22-H22)/G22 -> 0.004617252477 | J22: =$Q$10 -> 80.80887649 | K22: 1 | L22: 0 | M22: =($C$14*$Q$10*E22)/360 -> 0.06285134838 | N22: =IF(F22>0,((L22+(M22))),"") -> 0.06285134838 | O22: 0.015 | P22: =1.511*(O22*M22/I22^0.5)^(3/8) -> 0.3038048704 | Q22: 0.6 | R22: =M22/(0.7445*Q22^2) -> 0.2345024564
A23: REDE- RUA ABELO FERREIRA | D23: 2 | E23: =E22+0.56 -> 1.12 | F23: 114.57 | G23: 328.76 | H23: 325.557 | I23: 0.009742669425 | J23: 80.80887649 | K23: 1 | L23: =N22 -> 0.06285134838 | M23: 0.1257026968 | N23: 0.1885540451 | O23: 0.015 | P23: 0.3425119993 | Q23: 0.8 | R23: 0.2638152635
A24: REDE- RUA DAVID DO LIVRAMENTO | D24: 3 | E24: =E23+0.34 -> 1.46 | F24: 60 | G24: 325.56 | H24: 325.306 | I24: 0.000780194127 | J24: 80.80887649 | K24: 1 | L24: 0.1885540451 | M24: 0.163862444 | N24: 0.3524164891 | O24: 0.015 | P24: 0.6073520058 | Q24: 0.8 | R24: 0.3439020399
A25: REDE- RUA FERNANDO BASTOS | D25: 4 | E25: =E24+0.54 -> 2 | F25: 115.06 | G25: 327.518 | H25: 327.4 | I25: 0.0003602855416 | J25: 80.80887649 | K25: 1 | L25: 0.3524164891 | M25: 0.2244691013 | N25: 0.5768855905 | O25: 0.015 | P25: 0.7899709446 | Q25: 1 | R25: 0.3015031583
A26: REDE- RUA FERNANDO BASTOS | D26: 5 | E26: =E25+0.83 -> 2.83 | F26: 163.67 | G26: 327.4 | H26: 327.228 | I26: 0.0005253512523 | J26: 80.80887649 | K26: 1 | L26: 0.5768855905 | M26: 0.3176237784 | N26: 0.8945093689 | O26: 0.015 | P26: 0.838362284 | Q26: 1 | R26: 0.426626969
A27: REDE- RUA FERNANDO BASTOS | D27: 6 | E27: =E26+0.91 -> 3.74 | F27: 142 | G27: 327.23 | H27: 326.89 | I27: 0.001039024539 | J27: 80.80887649 | K27: 1 | L27: 0.8945093689 | M27: 0.4197572195 | N27: 1.314266588 | O27: 0.015 | P27: 0.8190410397 | Q27: 1.2 | R27: 0.3915353514
A28: REDE- RUA FERNANDO BASTOS | D28: 7 | E28: =E27+0.4 -> 4.14 | F28: 144 | G28: 326.89 | H28: 326.663 | I28: 0.0006944232005 | J28: 80.80887649 | K28: 1 | L28: 1.314266588 | M28: 0.4646510398 | N28: 1.778917628 | O28: 0.015 | P28: 0.91762817 | Q28: 1.2 | R28: 0.43341079
A29: REDE- RUA EVALDO BARBOSA | D29: 8 | E29: 0.55 | F29: 115.56 | G29: 330.4 | H29: 330.2 | I29: 0.0006053268765 | J29: 80.80887649 | K29: 1 | L29: =N28 -> 1.778917628 | M29: =($C$14*$Q$10*E29)/360 -> 0.06172900287 | N29: 1.840646631 | O29: 0.015 | P29: 0.4416813308 | Q29: 0.6 | R29: =M29/(0.7445*Q29^2) -> 0.2303149126
A30: REDE- RUA EVALDO BARBOSA | D30: 9 | E30: =E29+0.57 -> 1.12 | F30: 115.66 | G30: 330.2 | H30: 329.95 | I30: 0.0007571168988 | J30: 80.80887649 | K30: 1 | L30: 1.840646631 | M30: 0.1257026968 | N30: 1.966349328 | O30: 0.015 | P30: 0.5529805529 | Q30: 0.6 | R30: 0.4690049129
A31: REDE- RUA MARIA ELZA | D31: 10 | E31: =E30+0.11 -> 1.23 | F31: 59.33 | G31: 330.49 | H31: 330.234 | I31: 0.0007746074011 | J31: 80.80887649 | K31: 1 | L31: 1.966349328 | M31: 0.1380484973 | N31: 2.104397825 | O31: 0.015 | P31: 0.5703057627 | Q31: 0.6 | R31: 0.5150678954
A32: REDE- RUA 14 | D32: 11 | E32: =E31+0.55 -> 1.78 | F32: 163.94 | G32: 330.23 | H32: 328.637 | I32: 0.004823910608 | J32: 80.80887649 | K32: 1 | L32: 2.104397825 | M32: 0.1997775002 | N32: 2.304175325 | O32: 0.015 | P32: 0.4649072216 | Q32: 0.8 | R32: 0.4192778295
A33: REDE- RUA 14 | D33: 12 | E33: =E32+0.55 -> 2.33 | F33: 166.83 | G33: 328.64 | H33: 325.741 | I33: 0.008821202532 | J33: 80.80887649 | K33: 1 | L33: 2.304175325 | M33: 0.2615065031 | N33: 2.565681828 | O33: 0.015 | P33: 0.4592700872 | Q33: 0.8 | R33: 0.5488299678
A34: REDE- RUA 14 | D34: 13 | E34: =E33+0.28 -> 2.61 | F34: 88.15 | G34: 325.74 | H34: 324.762 | I34: 0.003002394548 | J34: 80.80887649 | K34: 1 | L34: 2.565681828 | M34: 0.2929321773 | N34: 2.858614006 | O34: 0.015 | P34: 0.5865582341 | Q34: 1 | R34: 0.3934616216
A35: REDE- RUA 14 | D35: 14 | E35: 0.32 | F35: 113.68 | G35: 331.4 | H35: 331.251 | I35: 0.0004496077248 | J35: 80.80887649 | K35: 1 | L35: 2.858614006 | M35: 0.03591505622 | N35: 2.894529062 | O35: 0.015 | P35: 0.3811720625 | Q35: 0.6 | R35: 0.1340014037
A36: REDE- RUA 14 | D36: 15 | E36: 0.35 | F36: 115.54 | G36: 331.25 | H36: 330.234 | I36: 0.003067169811 | J36: 80.80887649 | K36: 1 | L36: 2.894529062 | M36: 0.03928209274 | N36: 2.933811155 | O36: 0.015 | P36: 0.2750162312 | Q36: 0.6 | R36: 0.1465640353
A37: REDE- RUA 15 | D37: 16 | E37: 0.83 | F37: 115.26 | G37: 328.4 | H37: 327.518 | I37: 0.002685749086 | J37: 80.80887649 | K37: 3 | L37: 2.933811155 | M37: 0.09315467706 | N37: 3.026965832 | O37: 0.015 | P37: 0.3897630511 | Q37: 0.6 | R37: 0.3475661408
A39: REDE | B39: Área da Sarjeta | C39: Perimetro Molhado | D39: Raio Hidraulico | E39: Coeficiente C | F39: LP | G39: ALTURA MAXIMA | H39: Z | I39: Altura da Lamina d'água (m) | J39: Largura da Lamina d'água (m) | K39: Velocidade Real na Sarjeta V(m/s) | L39: Capacidade Sarjeta Plena Q (m³/s) | M39: Bocas de Lobo | O39: FÓRMULA DIMENSIONAMENTO TUBO
W40: BOCA DE DRAGÃO
V41: TUBO DE 40 | W41: Altura | X41: 1.11
A42: =A22 -> REDE- RUA ABELO FERREIRA | B42: =(I42*J42)/2 -> 0.1013507052 | C42: =SQRT(I42^2+J42^2)+I42 -> 2.678518429 | D42: =B42/C42 -> 0.0378383453 | E42: =(1/$C$13)*D42^(1/6) -> 38.62757374 | F42: =IF(K22=1,($F$16/$F$15),0) -> 0.03 | G42: =IF(K22=1,$F$16,IF(K22=2,$F$16,IF(K22=3,$F$16,0))) -> 0.24 | H42: =IF(K22=1,$F$15/G42,IF(K22=2,#REF!/G42,IF(K22=3,$R$13/G42,0))) -> 33.33333333 | I42: =IF(K22=1,($C$13*N22/(0.375*($F$15/$F$16)*I22^(1/2)))^0.375,IF(K22=2,($C$13*N22/(0.375*(F15/F16)*I22^(1/2)))^0.375,IF(K22=3,($C$13*N22/(0.375*($C$14/$C$15)*I22^(1/2)))^0.375,0))) -> 0.07798103816 | J42: =I42/F42 -> 2.599367939 | K42: =E42*(D42*I22)^(1/2) -> 0.5105700198 | L42: =IF(K22>0,IF(K22=1,($F$17*(I22^0.5)),IF(K22=2,($F$17*(I22^0.5)),IF(K22=3,($R$17*(I22^0.5)))))*1,"") -> 1.259023821 | M42: =IF(M22/2=0,"-",IF(M22/2<$C$15,"Simples",IF(AND(M22/2>$C$15,M22/2<=$C$16),"Dupla","Tripla"))) -> Simples | W42: Comprimento | X42: 6 | Z42: =X44*X41*X42*X43 -> 24.210432
A43: =A23 -> REDE- RUA ABELO FERREIRA | B43: =(I43*J43)/2 -> 0.1746052658 | C43: =SQRT(I43^2+J43^2)+I43 -> 3.515684708 | D43: =B43/C43 -> 0.04966465433 | E43: =(1/$C$13)*D43^(1/6) -> 40.41879022 | F43: =IF(K23=1,($F$16/$F$15),0) -> 0.03 | G43: =IF(K23=1,$F$16,IF(K23=2,$F$16,IF(K23=3,$F$16,0))) -> 0.24 | H43: =IF(K23=1,$F$15/G43,IF(K23=2,#REF!/G43,IF(K23=3,$R$13/G43,0))) -> 33.33333333 | I43: =IF(K23=1,($C$13*N23/(0.375*($F$15/$F$16)*I23^(1/2)))^0.375,IF(K23=2,($C$13*N23/(0.375*(F16/F17)*I23^(1/2)))^0.375,IF(K23=3,($C$13*N23/(0.375*($C$14/$C$15)*I23^(1/2)))^0.375,0))) -> 0.1023538761 | J43: =I43/F43 -> 3.411795869 | K43: =E43*(D43*I23)^(1/2) -> 0.8890905669 | L43: =IF(K23>0,IF(K23=1,($F$17*(I23^0.5)),IF(K23=2,($F$17*(I23^0.5)),IF(K23=3,($R$17*(I23^0.5)))))*1,"") -> 1.82886277 | M43: =IF(M23/2=0,"-",IF(M23/2<$C$15,"Simples",IF(AND(M23/2>$C$15,M23/2<=$C$16),"Dupla","Tripla"))) -> Dupla | W43: Largura | X43: 1.42
A44: =A24 -> REDE- RUA DAVID DO LIVRAMENTO | B44: =(I44*J44)/2 -> 0.7193675538 | C44: =SQRT(I44^2+J44^2)+I44 -> 7.136030115 | D44: =B44/C44 -> 0.100807808 | E44: =(1/$C$13)*D44^(1/6) -> 45.48041681 | F44: =IF(K24=1,($F$16/$F$15),0) -> 0.03 | G44: =IF(K24=1,$F$16,IF(K24=2,$F$16,IF(K24=3,$F$16,0))) -> 0.24 | H44: =IF(K24=1,$F$15/G44,IF(K24=2,#REF!/G44,IF(K24=3,$R$13/G44,0))) -> 33.33333333 | I44: =IF(K24=1,($C$13*N24/(0.375*($F$15/$F$16)*I24^(1/2)))^0.375,IF(K24=2,($C$13*N24/(0.375*(F17/K18)*I24^(1/2)))^0.375,IF(K24=3,($C$13*N24/(0.375*($C$14/$C$15)*I24^(1/2)))^0.375,0))) -> 0.2077547911 | J44: =I44/F44 -> 6.925159703 | K44: =E44*(D44*I24)^(1/2) -> 0.4033414547 | L44: =IF(K24>0,IF(K24=1,($F$17*(I24^0.5)),IF(K24=2,($F$17*(I24^0.5)),IF(K24=3,($R$17*(I24^0.5)))))*1,"") -> 0.5175394667 | M44: =IF(M24/2=0,"-",IF(M24/2<$C$15,"Simples",IF(AND(M24/2>$C$15,M24/2<=$C$16),"Dupla","Tripla"))) -> Dupla | W44: Base | X44: =X42/2.34375 -> 2.56
A45: =A28 -> REDE- RUA FERNANDO BASTOS | B45: =(I45*J45)/2 -> 2.530710576 | C45: =SQRT(I45^2+J45^2)+I45 -> 13.38451046 | D45: =B45/C45 -> 0.1890775597 | E45: =(1/$C$13)*D45^(1/6) -> 50.5066704 | F45: =IF(K28=1,($F$16/$F$15),0) -> 0.03 | G45: 0.24 | H45: =IF(K28=1,$F$15/G45,IF(K28=2,#REF!/G45,IF(K28=3,$R$13/G45,0))) -> 33.33333333 | I45: =IF(K28=1,($C$13*N28/(0.375*($F$15/$F$16)*I28^(1/2)))^0.375,IF(K28=2,($C$13*N28/(0.375*(K18/L19)*I28^(1/2)))^0.375,IF(K28=3,($C$13*N28/(0.375*($C$14/$C$15)*I28^(1/2)))^0.375,0))) -> 0.3896699046 | J45: =I45/F45 -> 12.98899682 | K45: =E45*(D45*I28)^(1/2) -> 0.5787364612 | L45: =IF(K28>0,IF(K28=1,($F$17*(I28^0.5)),IF(K28=2,($F$17*(I28^0.5)),IF(K28=3,($R$17*(I28^0.5)))))*1,"") -> 0.488263485 | M45: =IF(M28/2=0,"-",IF(M28/2<$C$15,"Simples",IF(AND(M28/2>$C$15,M28/2<=$C$16),"Dupla","Tripla"))) -> Tripla

Sheet DADOS (hidden)
I1: NOME PREFEITURA | J1: LOGO | K1: CNPJ
J2: 0
A3: SELECIONAR PREFEITURA | F3: =RIGHT(I3,LEN(I3)-24) -> ÁGUA CLARA | G3: =LEN(I3) -> 34 | I3: PREFEITURA MUNICIPAL DE ÁGUA CLARA | K3: 03.184.066/0001-77 | L3: ok
A4: PREFEITURA MUNICIPAL DE JARDIM | I4: PREFEITURA MUNICIPAL DE BANDEIRANTES | K4: 03.501.491/0001-42 | L4: ok
I5: PREFEITURA MUNICIPAL DE BODOQUENA | K5: 15.465.016/0001-47 | L5: ok
I6: PREFEITURA MUNICIPAL DE CAARAPÓ | K6: 03.155.900/0001-04 | L6: ok
A7: 19 | I7: PREFEITURA MUNICIPAL DE CARACOL | K7: 03.217.924/0001.32 | L7: ok
I8: PREFEITURA MUNICIPAL DE CAMAPUÃ | K8: 03.501.517/0001.52 | L8: ok
I9: PREFEITURA MUNICIPAL DE COSTA RICA | K9: 15.389.596/0001.30 | L9: ok
I10: PREFEITURA MUNICIPAL DE ELDORADO | K10: 03.741.675/0001-80 | L10: ok
I11: PREFEITURA MUNICIPAL DE IVINHEMA | K11: 03.575.875/0001-00 | L11: ok
I12: PREFEITURA MUNICIPAL DE IGUATEMI | K12: 03.568.318/0001.61 | L12: ok
I13: PREFEITURA MUNICIPAL DE ITAPORÃ | K13: 03.156.999/0001.50 | L13: ok
I14: PREFEITURA MUNICIPAL DE JARDIM | K14: 03.162.047/0001-40 | L14: ok
I15: PREFEITURA MUNICIPAL DE JARAGUARI | K15: 03.501.533/0001-45 | L15: ok
I16: PREFEITURA MUNICIPAL DE LADÁRIO | K16: 03.330.453/0001.74 | L16: ok
I17: PREFEITURA MUNICIPAL DE MIRANDA | K17: 03.452.315/0001.68 | L17: ok
I18: PREFEITURA MUNICIPAL DE NAVIRAÍ | K18: 03.155.934/0001-90 | L18: ok
I19: PREFEITURA MUNICIPAL DE NOVA ALVORADA DO SUL | K19: 37.212.719/0001-04 | L19: ok
I20: PREFEITURA MUNICIPAL DE SÃO GABRIEL DO OESTE | K20: 15.389.588/0001-94 | L20: ok
I21: PREFEITURA MUNICIPAL DE SIDROLÃNDIA | K21: 03.501.574/0001-31 | L21: ok
I22: PREFEITURA MUNICIPAL DE PORTO MURTINHO | K22: 03.107.539/0001-32 | L22: ok
I23: PREFEITURA MUNICIPAL DE SELVIRIA | K23: 15.410.665/0001-40

Sheet DMT (hidden)
D1: ESTADO DO MATO GROSSO DO SUL
D2: =OFFSET(DADOS!$I$2,DADOS!$A$7,0,1,1) -> PREFEITURA MUNICIPAL DE SIDROLÃNDIA | K2: ____________________________________________
D3: =ORÇAMENTO_DES!$D$3 -> SECRETARIA DE OBRAS | K3: FABIO MARQUES RIBEIRO ENGENHEIRO CIVIL CREA: 15.276/MS
A4: TRANSPORTE DMT (KM)
A6: DMT'S | E6: KM
A7: PEDREIRA | E7: 120
A8: BOTA FORA (SOLO) | E8: 6
A9: CBUQ | E9: 89
A10: EMULSÃO/CIM. | E10: 445
A11: BRITA (BICA CORRIDA) | E11: 120
A12: TUBOS | E12: 89
A13: AREEIRO | E13: 25
A14: PISO TATIL | E14: 25

Sheet SERVIÇOS PRELIMINARES (hidden)
B1: ESTADO DO MATO GROSSO DO SUL | E1: RESPONSÁVEL ORÇAMENTO
B2: =OFFSET(DADOS!$I$2,DADOS!$A$7,0,1,1) -> PREFEITURA MUNICIPAL DE SIDROLÃNDIA | E2: =ORÇAMENTO_DES!$K$6 -> FÁBIO MARQUES RIBEIRO ENGENHEIRO CIVIL CREA: 15.276
B3: =ORÇAMENTO_DES!D3 -> SECRETARIA DE OBRAS
A4: MEMÓRIA DE SERVIÇOS PRELIMINARES
A5: Objeto: | B5: =ORÇAMENTO_DES!B5 -> INFRAESTRUTURA - URBANA - PAVIMENTAÇÃO ASFÁLTICA, DRENAGEM, ACESSIBILIDADE E SINALIZAÇÃO VIÁRIA EM DIVERSAS RUAS NO MUNICÍPIO DE SIDROLÂNDIA/MS
A6: Município: | B6: =ORÇAMENTO_DES!B6 -> SIDROLÃNDIA
A7: Local: | B7: =ORÇAMENTO_DES!B7 -> DIVERSAS RUAS
A34: ITENS | D34: CÁLCULOS
A35: PLACA DE OBRA EM CHAPA DE AÇO GALVANIZADO
A36: LOCACAO DE CONTAINER 2,30 X 6,00 M, ALT. 2,50 M, COM 1 SANITARIO, PARA ESCRITORIO, COMPLETO, SEM DIVISORIAS INTERNAS | D36: =ORÇAMENTO_DES!$B$8 &" dias " & "/ 30dias =" -> 240 dias / 30dias = | F36: =ORÇAMENTO_DES!$B$8/30 -> 8
A37: LOCACAO DE CONTAINER 2,30 X 6,00 M, ALT. 2,50 M, PARA ESCRITORIO, SEM DIVISORIAS INTERNAS E SEM SANITARIO | D37: =ORÇAMENTO_DES!$B$8 &" dias " & "/ 30dias =" -> 240 dias / 30dias = | F37: =ORÇAMENTO_DES!$B$8/30 -> 8
A38: SINALIZAÇÃO DE ADVERTÊNCIA DE OBRA COM PLACA (FUNDO LARANJA) SOBRE CAVALETE, CONFORME ABNT-NBR-7678 | D38: Cada 100m - 1uni.de Placa de Advertência | F38: =PAVIMENTAÇÃO!$P$17/100 -> 21.7506
A39: INSTALAÇÃO DE SINALIZADOR NOTURNO LED. AF_11/2017 | D39: Cada 40m - 1 und. Sinalizador | F39: =PAVIMENTAÇÃO!$P$17/40 -> 54.3765
A40: CONE DE SINALIZACAO EM PVC RIGIDO COM FAIXA REFLETIVA, H = 70 / 76 CM | D40: Cada 40m - 1 und. cone | F40: =PAVIMENTAÇÃO!$P$17/40 -> 54.3765

Sheet GALERIAS (hidden)
B1: ESTADO DO MATO GROSSO DO SUL
B2: ='CALÇADAS E RAMPAS'!B2 -> PREFEITURA MUNICIPAL DE SIDROLÃNDIA | X2: ____________________________________________
B3: SECRETARIA DE PLANEJAMENTO | X3: FABIO MARQUES RIBEIRO ENGENHEIRO CIVIL CREA: 15.276/MS
A4: MEMÓRIA DE CALCULO DE GALERIAS DE AGUAS PLUVIAIS
A5: Objeto: | B5: =ORÇAMENTO_DES!B5 -> INFRAESTRUTURA - URBANA - PAVIMENTAÇÃO ASFÁLTICA, DRENAGEM, ACESSIBILIDADE E SINALIZAÇÃO VIÁRIA EM DIVERSAS RUAS NO MUNICÍPIO DE SIDROLÂNDIA/MS
A6: Município: | B6: =ORÇAMENTO_DES!B6 -> SIDROLÃNDIA
A7: Local: | B7: =ORÇAMENTO_DES!B7 -> DIVERSAS RUAS
X8: MÚNICIPIO REFERENCIA
A9: O coeficiente de escoamento foi adotado | I9: Os diâmetros estão em metros para facilitar os cálculos. 1m = 1000 mm | X9: =UPPER(VLOOKUP(VLOOKUP(B2,'Parametros IDF'!$Y$3:$Z$23,2,0),'Parametros IDF'!$A$2:$Q$111,2,0)) -> SIDROLÂNDIA
X10: Parâmetros IDF
X11: K | Z11: =VLOOKUP(VALUE(VLOOKUP(B2,'Parametros IDF'!$Y$3:$Z$23,2,0)),'Parametros IDF'!$A$2:$Q$111,10,0) -> 1052.446
X12: a | Z12: =VLOOKUP(VALUE(VLOOKUP(B2,'Parametros IDF'!$Y$3:$Z$23,2,0)),'Parametros IDF'!$A$2:$Q$111,14,0) -> 0.1697
X13: b | Z13: =VLOOKUP(VALUE(VLOOKUP(B2,'Parametros IDF'!$Y$3:$Z$23,2,0)),'Parametros IDF'!$A$2:$Q$111,15,0) -> 10
X14: c | Z14: =VLOOKUP(VALUE(VLOOKUP(B2,'Parametros IDF'!$Y$3:$Z$23,2,0)),'Parametros IDF'!$A$2:$Q$111,16,0) -> 0.7419
X15: Tr | Z15: 15
X16: n | Z16: 0.016
A21: Rede | B21: Trecho | C21: Extensão (m) | D21: Área | H21: tempo de concentração trecho (min) | I21: Coeficiente escoamento C | J21: itensidade da chuva (mm/h) | K21: Q (m³/s) | L21: Diâmetro DN (m) | M21: Diâmetro Adotado (DN) (m) | N21: I Declividade (m/m) | O21: Cota do terreno | Q21: Cota do coletor | S21: Profundiade do coletor | U21: Qp (m³/s) | V21: vp (m/s) | W21: Q/Qp | X21: v/vp | Y21: Velocidade v (m/s) | Z21: Tempo escoamento (min) | AA21: Observação
D22: trecho (ha) | E22: trecho (km²) | F22: total (ha) | G22: total (km²) | O22: Montante (m) | P22: Jusante (m) | Q22: Montante (m) | R22: Jusante (m) | S22: Montante (m) | T22: Jusante (m)
A23: 1 | B23: 1-2 | C23: 103.27 | D23: 0.4 | E23: =D23*0.01 -> 0.004 | F23: =D23 -> 0.4 | G23: =F23*0.01 -> 0.004 | H23: 5 | I23: 0.5 | J23: =($Z$11*$Z$15^$Z$12)/(H23+$Z$13)^$Z$14 -> 223.4808957 | K23: =0.278*I23*J23*G23 -> 0.124255378 | L23: =1.511*($Z$16*K23*N23^(-1/2))^(3/8) -> 0.3071529494 | M23: 0.3 | N23: =(O23-P23)/C23 -> 0.01936670863 | O23: 739 | P23: 737 | Q23: =O23-S23 -> 737.7 | R23: =Q23-N23*C23 -> 735.7 | S23: =1+M23 -> 1.3 | T23: =P23-R23 -> 1.3 | U23: =((PI()*M23^2)/(4*$Z$16))*((M23/4)^(2/3))*N23^(1/2) -> 0.1093405262 | V23: =(1/$Z$16)*((M23/4)^(2/3))*N23^(1/2) -> 1.54685202 | W23: =K23/U23 -> 1.136407353 | X23: 1.1335 | Y23: =X23*V23 -> 1.753356765 | Z23: =(C23/Y23)/60 -> 0.9816408736
E24: =D24*0.01 -> 0 | H24: =H23+Z23 -> 5.981640874 | J24: 213.2140482 | K24: =0.278*I24*J24*G24 -> 0 | N24: =(O24-P24)/C24 -> 
E25: 0 | H25: 5.981640874 | J25: 213.2140482 | K25: 0
E26: 0 | H26: 5.981640874 | J26: 213.2140482 | K26: 0
E27: 0 | H27: 5.981640874 | J27: 213.2140482 | K27: 0
E28: 0 | H28: 5.981640874 | J28: 213.2140482 | K28: 0
E29: 0 | H29: 5.981640874 | J29: 213.2140482 | K29: 0
E30: 0 | H30: 5.981640874 | J30: 213.2140482 | K30: 0
E31: 0 | H31: 5.981640874 | J31: 213.2140482 | K31: 0
E32: 0 | H32: =H31+Z31 -> 5.981640874 | J32: 213.2140482 | K32: 0
E33: 0 | H33: 5.981640874 | J33: 213.2140482 | K33: 0

Sheet Parametros IDF (hidden)
A1: 1 | B1: =A1+1 -> 2 | C1: =B1+1 -> 3 | D1: 4 | E1: 5 | F1: 6 | G1: 7 | H1: 8 | I1: 9 | J1: 10 | K1: 11 | L1: 12 | M1: 13 | N1: 14 | O1: 15 | P1: 16 | Q1: 17
A2: N° da Estação | B2: Município | D2: Latitude | F2: Longitude | J2: K | N2: a | O2: b | P2: c | Q2: r²
A3: 2052002 | B3: Água Clara | D3: 20° 26' 42" | F3: 52° 54' 05" | J3: 882.877 | N3: 0.1593 | O3: 10 | P3: 0.7419 | Q3: 0.9991 | R3: Agua Clara | Y3: PREFEITURA MUNICIPAL DE ÁGUA CLARA | Z3: 2052002
A4: 2052003 | B4: Água Clara | D4: 20° 01' 00" | F4: 52° 50' 00" | J4: 928.753 | N4: 0.1587 | O4: 10 | P4: 0.7419 | Q4: 0.9992 | Y4: PREFEITURA MUNICIPAL DE BANDEIRANTES | Z4: 1954005
A5: 1952001 | B5: Água Clara | D5: 19° 40' 41" | F5: 52° 53' 47" | J5: 909.0756 | N5: 0.1735 | O5: 10 | P5: 0.7419 | Q5: 0.999 | Y5: PREFEITURA MUNICIPAL DE BODOQUENA | Z5: 2056003
A6: 1953000 | B6: Água Clara | D6: 19° 22' 36" | F6: 53° 34' 08" | J6: 932.3951 | N6: 0.1763 | O6: 10 | P6: 0.7419 | Q6: 0.999 | Y6: PREFEITURA MUNICIPAL DE CAARAPÓ | Z6: 2254000
A7: 1953003 | B7: Água Clara | D7: 19° 22' 36" | F7: 53° 34' 08" | J7: 917.4872 | N7: 0.1436 | O7: 10 | P7: 0.7419 | Q7: 0.9993 | Y7: PREFEITURA MUNICIPAL DE CARACOL | Z7: 2257000
A8: 2355001 | B8: Amambai | D8: 23° 15' 54" | F8: 55° 31' 33" | J8: 947.5453 | N8: 0.1401 | O8: 10 | P8: 0.7419 | Q8: 0.9993 | Y8: PREFEITURA MUNICIPAL DE CAMAPUÃ | Z8: 1853005
A9: 2355002 | B9: Amambai | D9: 23° 38' 56" | F9: 55° 23' 29" | J9: 997.9758 | N9: 0.1327 | O9: 10 | P9: 0.7419 | Q9: 0.998 | Y9: PREFEITURA MUNICIPAL DE COSTA RICA | Z9: 1853004
A10: 2355000 | B10: Amambai | D10: 23° 05' 58" | F10: 55° 14' 27" | J10: 1137.104 | N10: 0.1512 | O10: 10 | P10: 0.7419 | Q10: 0.9992 | Y10: PREFEITURA MUNICIPAL DE ELDORADO | Z10: 2354001
A11: 2055002 | B11: Anastácio | D11: 20° 26' 53" | F11: 55° 25' 39" | J11: 1040.878 | N11: 0.1793 | O11: 10 | P11: 0.7419 | Q11: 0.9989 | Y11: PREFEITURA MUNICIPAL DE IVINHEMA | Z11: 2253000
A12: 2252000 | B12: Anaurilândia | D12: 22° 10' 54" | F12: 52° 43' 01" | J12: 944.7132 | N12: 0.1403 | O12: 10 | P12: 0.7419 | Q12: 0.9993 | Y12: PREFEITURA MUNICIPAL DE IGUATEMI | Z12: 2354001
A13: 2255002 | B13: Antônio João | D13: 22° 11' 08" | F13: 55° 56' 31" | J13: 1127.197 | N13: 0.149 | O13: 10 | P13: 0.7419 | Q13: 0.9992 | Y13: PREFEITURA MUNICIPAL DE ITAPORÃ | Z13: 2254005
A14: 2051046 | B14: Aparecida Taboado | D14: 20° 04' 04" | F14: 51° 06' 11" | J14: 726.942 | N14: 0.1465 | O14: 10 | P14: 0.7419 | Q14: 0.9993 | Y14: PREFEITURA MUNICIPAL DE JARDIM | Z14: 2056003
A15: 2055003 | B15: Aquidauana | D15: 20° 17' 29" | F15: 55° 26' 41" | J15: 945.148 | N15: 0.1699 | O15: 10 | P15: 0.7419 | Q15: 0.999 | Y15: PREFEITURA MUNICIPAL DE JARAGUARI | Z15: 2054019
A16: 2055001 | B16: Aquidauana | D16: 20° 07' 37" | F16: 55° 23' 34" | J16: 1042.557 | N16: 0.1828 | O16: 10 | P16: 0.7419 | Q16: 0.9989 | Y16: PREFEITURA MUNICIPAL DE LADÁRIO | Z16: 1957003
A17: 2055004 | B17: Aquidauana | D17: 20° 04' 13" | F17: 55° 38' 39" | J17: 1085.176 | N17: 0.1688 | O17: 10 | P17: 0.7419 | Q17: 0.999 | Y17: PREFEITURA MUNICIPAL DE MIRANDA | Z17: 2056001
A18: 1755004 | B18: Aquidauana | D18: 17° 10' 00" | F18: 55° 59' 00" | J18: 906.3585 | N18: 0.1674 | O18: 10 | P18: 0.7419 | Q18: 0.9983 | Y18: PREFEITURA MUNICIPAL DE NAVIRAÍ | Z18: 2353048
A19: 1955000 | B19: Aquidauana | D19: 19° 56' 35" | F19: 55° 47' 32" | J19: 1155.58 | N19: 0.1851 | O19: 10 | P19: 0.7419 | Q19: 0.9989 | Y19: PREFEITURA MUNICIPAL DE NOVA ALVORADA DO SUL | Z19: 2154000
A20: 1956003 | B20: Aquidauana | D20: 19° 40' 41" | F20: 56° 12' 15" | J20: 950.8237 | N20: 0.133 | O20: 10 | P20: 0.7419 | Q20: 0.9994 | Y20: PREFEITURA MUNICIPAL DE SÃO GABRIEL DO OESTE | Z20: 1853005
A21: 1956008 | B21: Aquidauana | D21: 19° 21' 33" | F21: 56° 24' 23" | J21: 918.3326 | N21: 0.1246 | O21: 10 | P21: 0.7419 | Q21: 0.9994 | Y21: PREFEITURA MUNICIPAL DE PORTO MURTINHO | Z21: 2157005
A22: 1954005 | B22: Bandeirantes | D22: 19° 55' 04" | F22: 54° 21' 31" | J22: 933.0394 | N22: 0.1644 | O22: 10 | P22: 0.7419 | Q22: 0.9991 | R22: Bandeirantes | Y22: PREFEITURA MUNICIPAL DE SELVIRIA | Z22: 2051045
A23: 2152001 | B23: Bataguassu | D23: 21° 42' 57" | F23: 52° 26' 14" | J23: 925.977 | N23: 0.1553 | O23: 10 | P23: 0.7419 | Q23: 0.9992 | Y23: PREFEITURA MUNICIPAL DE SIDROLÃNDIA | Z23: 2054021
A24: 2256001 | B24: Bela Vista | D24: 22° 06' 32" | F24: 56° 31' 35" | J24: 1107.899 | N24: 0.1386 | O24: 10 | P24: 0.7419 | Q24: 0.9993
A25: 2056003 | B25: Bonito | D25: 20° 45' 43" | F25: 56° 05' 28" | J25: 931.751 | N25: 0.1365 | O25: 10 | P25: 0.7419 | Q25: 0.9993 | R25: Jardim | S25: Bodoquena
A26: 2152000 | B26: Brasilândia | D26: 21° 01' 00" | F26: 52° 11' 00" | J26: 823 | N26: 0.1336 | O26: 10 | P26: 0.7419 | Q26: 0.9994
A27: 2053004 | B27: Brasilândia | D27: 20° 57' 39" | F27: 53° 17' 16" | J27: 835.988 | N27: 0.1502 | O27: 10 | P27: 0.7419 | Q27: 0.9992
A28: 2152016 | B28: Brasilândia | D28: 21° 06' 00" | F28: 52° 59' 00" | J28: 847.618 | N28: 0.1472 | O28: 10 | P28: 0.7419 | Q28: 0.9993
A29: 2152005 | B29: Brasilândia | D29: 21° 17' 42" | F29: 52° 48' 37" | J29: 847.813 | N29: 0.1219 | O29: 10 | P29: 0.7419 | Q29: 0.9994
A30: 2152014 | B30: Brasilândia | D30: 21° 14' 54" | F30: 52° 17' 17" | J30: 903.233 | N30: 0.1499 | O30: 10 | P30: 0.7419 | Q30: 0.9992
A31: 2254000 | B31: Caarapó | D31: 22° 37' 27" | F31: 54° 49' 28" | J31: 860.9938 | N31: 0.1403 | O31: 10 | P31: 0.7419 | Q31: 0.9993 | R31: Caarapó
A32: 2354002 | B32: Caarapó | D32: 22° 58' 13" | F32: 54° 33' 48" | J32: 928.9664 | N32: 0.1525 | O32: 10 | P32: 0.7419 | Q32: 0.9992
A33: 1853005 | B33: Camapuã | D33: 18° 40' 25" | F33: 53° 38' 29" | J33: 937.1303 | N33: 0.1542 | O33: 10 | P33: 0.7419 | Q33: 0.9992 | R33: Camapuã | S33: São Gabriel
A34: 1954004 | B34: Camapuã | D34: 19° 32' 01" | F34: 54° 02' 08" | J34: 988.098 | N34: 0.1479 | O34: 10 | P34: 0.7419 | Q34: 0.9992
A35: 1954006 | B35: Camapuã | D35: 19° 18' 09" | F35: 54° 10' 22" | J35: 976.1128 | N35: 0.1674 | O35: 10 | P35: 0.7419 | Q35: 0.9991
A36: 2054014 | B36: Campo Grande | D36: 20° 27' 30" | F36: 54° 36' 17" | J36: 864.57 | N36: 0.1458 | O36: 10 | P36: 0.7419 | Q36: 0.9993 | R36: Campo Grande
A37: 2054010 | B37: Campo Grande | D37: 20° 27' 00" | F37: 54° 38' 00" | J37: 910.752 | N37: 0.1478 | O37: 10 | P37: 0.7419 | Q37: 0.9993
A38: 2054001 | B38: Campo Grande | D38: 20° 28' 00" | F38: 54° 40' 00" | J38: 923.634 | N38: 0.1589 | O38: 10 | P38: 0.7419 | Q38: 0.9992
A39: 2054020 | B39: Campo Grande | D39: 20° 40' 36" | F39: 53° 34' 14" | J39: 931.322 | N39: 0.1692 | O39: 10 | P39: 0.7419 | Q39: 0.9967
A40: 2257000 | B40: Caracol | D40: 22° 01' 51" | F40: 57° 01' 45" | J40: 993.116 | N40: 0.1337 | O40: 10 | P40: 0.7419 | Q40: 0.9993 | R40: Caracol
A41: 1852003 | B41: Cassilândia | D41: 18° 41' 20" | F41: 52° 35' 41" | J41: 898.4626 | N41: 0.1161 | O41: 10 | P41: 0.7419 | Q41: 0.9994
A42: 1951004 | B42: Cassilândia | D42: 19° 13' 45" | F42: 51° 52' 30" | J42: 937.7779 | N42: 0.1532 | O42: 10 | P42: 0.7419 | Q42: 0.9992
A43: 1952000 | B43: Chapadão do Sul | D43: 19° 26' 39" | F43: 52° 33' 28" | J43: 875.1853 | N43: 0.1909 | O43: 10 | P43: 0.7419 | Q43: 0.9988
A44: 1957006 | B44: Corumbá | D44: 19° 36' 20" | F44: 57° 26' 14" | J44: 899.083 | N44: 0.202 | O44: 10 | P44: 0.7419 | Q44: 0.9986
A45: 1957002 | B45: Corumbá | D45: 19° 00' 21" | F45: 57° 36' 07" | J45: 906.358 | N45: 0.1847 | O45: 10 | P45: 0.7419 | Q45: 0.9989
A46: 1957004 | B46: Corumbá | D46: 19° 55' 07" | F46: 57° 47' 22" | J46: 940.156 | N46: 0.1539 | O46: 10 | P46: 0.7532 | Q46: 0.9986
A47: 2057000 | B47: Corumbá | D47: 20° 17' 27" | F47: 57° 38' 52" | J47: 951.262 | N47: 0.196 | O47: 10 | P47: 0.7419 | Q47: 0.9987
A48: 1957005 | B48: Corumbá | D48: 19° 18' 19" | F48: 57° 35' 36" | J48: 1443.444 | N48: 0.2223 | O48: 10 | P48: 0.7419 | Q48: 0.9982
A49: 1755001 | B49: Corumbá | D49: 17° 47' 05" | F49: 55° 47' 22" | J49: 980.1668 | N49: 0.1603 | O49: 10 | P49: 0.7419 | Q49: 0.9991
A50: 1756002 | B50: Corumbá | D50: 18° 03' 09" | F50: 56° 42' 10" | J50: 1176.251 | N50: 0.2107 | O50: 10 | P50: 0.7419 | Q50: 0.9984
A51: 1756003 | B51: Corumbá | D51: 17° 37' 23" | F51: 56° 57' 55" | J51: 1028.9636 | N51: 0.1741 | O51: 10 | P51: 0.7419 | Q51: 0.999
A52: 1857001 | B52: Corumbá | D52: 18° 02' 19" | F52: 57° 29' 19" | J52: 924.6982 | N52: 0.1502 | O52: 10 | P52: 0.7419 | Q52: 0.9992
A53: 1857002 | B53: Corumbá | D53: 18° 14' 11" | F53: 56° 58' 23" | J53: 916.6425 | N53: 0.1554 | O53: 10 | P53: 0.7419 | Q53: 0.9992
A54: 1956001 | B54: Corumbá | D54: 19° 10' 24" | F54: 56° 42' 44" | J54: 910.3324 | N54: 0.2158 | O54: 10 | P54: 0.7419 | Q54: 0.9983
A55: 1956004 | B55: Corumbá | D55: 19° 00' 12" | F55: 56° 05' 20" | J55: 933.0394 | N55: 0.1296 | O55: 10 | P55: 0.7419 | Q55: 0.9994
A56: 1956005 | B56: Corumbá | D56: 19° 51' 42" | F56: 56° 59' 05" | J56: 992.6588 | N56: 0.1596 | O56: 10 | P56: 0.7419 | Q56: 0.9992
A57: 1853004 | B57: Costa Rica | D57: 18° 32' 48" | F57: 53° 08' 02" | J57: 894.7465 | N57: 0.0976 | O57: 10 | P57: 0.7419 | Q57: 0.9948 | R57: Costa Rica
A58: 1853002 | B58: Coxim | D58: 18° 11' 54" | F58: 54° 16' 41" | J58: 842.9465 | N58: 0.1314 | O58: 10 | P58: 0.7419 | Q58: 0.9994
A59: 1854003 | B59: Coxim | D59: 18° 38' 57" | F59: 54° 21' 26" | J59: 880.6432 | N59: 0.1557 | O59: 10 | P59: 0.7419 | Q59: 0.9992
A60: 1855000 | B60: Coxim | D60: 18° 21' 00" | F60: 55° 51' 00" | J60: 958.9589 | N60: 0.1245 | O60: 10 | P60: 0.7419 | Q60: 0.9994
A61: 2254004 | B61: Deodápolis | D61: 22° 04' 29" | F61: 54° 11' 19" | J61: 929.6083 | N61: 0.134 | O61: 10 | P61: 0.7419 | Q61: 0.9993
A62: 2254001 | B62: Dourados | D62: 22° 23' 50" | F62: 54° 47' 31" | J62: 875.5884 | N62: 0.129 | O62: 10 | P62: 0.7419 | Q62: 0.9994
A63: 2255004 | B63: Dourados | D63: 22° 05' 18" | F63: 55° 21' 07" | J63: 881.2518 | N63: 0.1669 | O63: 10 | P63: 0.7419 | Q63: 0.9991
A64: 2254003 | B64: Glória de Dourados | D64: 22° 24' 18" | F64: 54° 14' 06" | J64: 956.5331 | N64: 0.1315 | O64: 10 | P64: 0.7457 | Q64: 0.9992
A65: 2354001 | B65: Iguatemi | D65: 23° 40' 55" | F65: 54° 33' 46" | J65: 922.1467 | N65: 0.1466 | O65: 10 | P65: 0.7419 | Q65: 0.9993 | R65: Iguatemi | S65: Eldorado
A66: 2354004 | B66: Iguatemi | D66: 23° 27' 02" | F66: 54° 23' 22" | J66: 918.1212 | N66: 0.1375 | O66: 10 | P66: 0.7419 | Q66: 0.9993
A67: 1951005 | B67: Inocência | D67: 19° 44' 11" | F67: 51° 55' 57" | J67: 879.0225 | N67: 0.1807 | O67: 10 | P67: 0.7419 | Q67: 0.9989
A68: 1952002 | B68: Inocência | D68: 19° 33' 11" | F68: 52° 09' 59" | J68: 858.4203 | N68: 0.1298 | O68: 10 | P68: 0.7419 | Q68: 0.9994
A69: 2254005 | B69: Itaporã | D69: 22° 04' 32" | F69: 54° 47' 01" | J69: 922.9964 | N69: 0.1444 | O69: 10 | P69: 0.7419 | Q69: 0.9993 | R69: Itaporã
A70: 2253000 | B70: Ivinhema | D70: 22° 22' 59" | F70: 53° 31' 51" | J70: 824.1381 | N70: 0.1206 | O70: 10 | P70: 0.7419 | Q70: 0.9994 | R70: Ivinhema
A71: 2054019 | B71: Jaraguari | D71: 20° 06' 06" | F71: 54° 26' 01" | J71: 797.627 | N71: 0.179 | O71: 10 | P71: 0.7419 | Q71: 0.9989 | R71: Jaraguari
A72: 2253015 | B72: Jatei | D72: 22° 32' 42" | F72: 54° 01' 40" | J72: 838.8803 | N72: 0.1376 | O72: 10 | P72: 0.7419 | Q72: 0.9993
A73: 1957003 | B73: Landário | D73: 19° 15' 30" | F73: 57° 14' 07" | J73: 1074.979 | N73: 0.1564 | O73: 10 | P73: 0.7424 | Q73: 0.9992 | R73: Ladario
A74: 2056001 | B74: Miranda | D74: 20° 14' 29" | F74: 56° 22' 06" | J74: 1013.445 | N74: 0.19 | O74: 10 | P74: 0.7419 | Q74: 0.9988 | R74: Miranda
A75: 2056006 | B75: Miranda | D75: 20° 14' 00" | F75: 56° 23' 00" | J75: 1053.901 | N75: 0.1921 | O75: 10 | P75: 0.7419 | Q75: 0.9988
A76: 2056007 | B76: Miranda | D76: 20° 55' 36" | F76: 56° 59' 02" | J76: 1076.713 | N76: 0.1217 | O76: 10 | P76: 0.7419 | Q76: 0.9994
A77: 2056005 | B77: Miranda | D77: 20° 06' 07" | F77: 56° 47' 43" | J77: 1116.606 | N77: 0.1804 | O77: 10 | P77: 0.7419 | Q77: 0.9989
A78: 2353048 | B78: Navirai | D78: 23° 04' 24" | F78: 53° 49' 11" | J78: 1005.31 | N78: 0.1443 | O78: 10 | P78: 0.7419 | Q78: 0.9993 | R78: Navirai
A79: 2354000 | B79: Navirai | D79: 23° 03' 48" | F79: 54° 12' 01" | J79: 1004.847 | N79: 0.1558 | O79: 10 | P79: 0.7419 | Q79: 0.9992
A80: 2153003 | B80: Nova Andradina | D80: 21° 58' 55" | F80: 53° 26' 23" | J80: 807.235 | N80: 0.1278 | O80: 10 | P80: 0.7419 | Q80: 0.9994
A81: 2153000 | B81: Nova Andradina | D81: 21° 36' 52" | F81: 53° 03' 04" | J81: 981.07 | N81: 0.1858 | O81: 10 | P81: 0.7419 | Q81: 0.9988
A82: 1852002 | B82: Paranaíba | D82: 18° 59' 48" | F82: 52° 35' 14" | J82: 898.0489 | N82: 0.1086 | O82: 10 | P82: 0.7419 | Q82: 0.9995
A83: 1951003 | B83: Paranaíba | D83: 19° 23' 26" | F83: 51° 36' 31" | J83: 836.1804 | N83: 0.1424 | O83: 10 | P83: 0.7419 | Q83: 0.9993
A84: 1854001 | B84: Pedro Gomes | D84: 18° 06' 59" | F84: 54° 33' 37" | J84: 852.9037 | N84: 0.1913 | O84: 10 | P84: 0.7419 | Q84: 0.9967
A85: 2255001 | B85: Ponta Porá | D85: 22° 32' 00" | F85: 55° 42' 00" | J85: 935.1903 | N85: 0.18 | O85: 10 | P85: 0.7419 | Q85: 0.9989
A86: 2255003 | B86: Ponta Porá | D86: 22° 43' 50" | F86: 55° 14' 27" | J86: 940.3727 | N86: 0.1152 | O86: 10 | P86: 0.7419 | Q86: 0.9994
A87: 2157005 | B87: Porto Murtinho | D87: 21° 41' 18" | F87: 57° 21' 28" | J87: 1061.696 | N87: 0.1533 | O87: 10 | P87: 0.7419 | Q87: 0.9992 | R87: Porto Murtinho
A88: 2053001 | B88: Ribas do Rio Pardo | D88: 20° 40' 35" | F88: 53° 34' 14" | J88: 827.18 | N88: 0.1368 | O88: 10 | P88: 0.7419 | Q88: 0.9993
A89: 2153004 | B89: Ribas do Rio Pardo | D89: 20° 58' 55" | F89: 53° 38' 30" | J89: 860.994 | N89: 0.1287 | O89: 10 | P89: 0.7419 | Q89: 0.9994
A90: 2153002 | B90: Ribas do Rio Pardo | D90: 21° 24' 30" | F90: 53° 36' 46" | J90: 869.161 | N90: 0.1805 | O90: 10 | P90: 0.7419 | Q90: 0.9989
A91: 2053000 | B91: Ribas do Rio Pardo | D91: 20° 26' 36" | F91: 53° 45' 27" | J91: 928.753 | N91: 0.2026 | O91: 10 | P91: 0.7419 | Q91: 0.9986
A92: 1953001 | B92: Ribas do Rio Pardo | D92: 19° 46' 41" | F92: 53° 58' 18" | J92: 781.9878 | N92: 0.1491 | O92: 10 | P92: 0.7419 | Q92: 0.9992
A93: 2154000 | B93: Rio Brilhante | D93: 21° 38' 47" | F93: 54° 25' 28" | J93: 785.778 | N93: 0.131 | O93: 10 | P93: 0.7419 | Q93: 0.9994 | R93: Nova Alvorada do Sul
A94: 2154001 | B94: Rio Brilhante | D94: 21° 47' 47" | F94: 54° 37' 21" | J94: 901.779 | N94: 0.1825 | O94: 10 | P94: 0.7419 | Q94: 0.9989
A95: 1954003 | B95: Rio Negro | D95: 19° 26' 22" | F95: 54° 59' 00" | J95: 891.6615 | N95: 0.1854 | O95: 10 | P95: 0.7419 | Q95: 0.9988
A96: 1854002 | B96: Rio Verde | D96: 18° 54' 36" | F96: 54° 49' 56" | J96: 911.1712 | N96: 0.1335 | O96: 10 | P96: 0.7419 | Q96: 0.9993
A97: 1854006 | B97: Rio Verde | D97: 18° 43' 27" | F97: 54° 35' 56" | J97: 940.1562 | N97: 0.1512 | O97: 10 | P97: 0.7419 | Q97: 0.9992
A98: 1954002 | B98: Rochedo | D98: 19° 57' 06" | F98: 54° 53' 31" | J98: 830.998 | N98: 0.1395 | O98: 10 | P98: 0.7419 | Q98: 0.9993
A99: 2054021 | B99: Sidrolândia | D99: 20° 57' 07" | F99: 54° 58' 44" | J99: 1052.446 | N99: 0.1697 | O99: 10 | P99: 0.7419 | Q99: 0.999 | R99: Sidrolandia
A100: 1754004 | B100: Sonora | D100: 17° 49' 51" | F100: 54° 18' 47" | J100: 875.992 | N100: 0.1381 | O100: 10 | P100: 0.7419 | Q100: 0.9993
A101: 2355003 | B101: Tacuru | D101: 23° 38' 23" | F101: 55° 01' 11" | J101: 944.0609 | N101: 0.1215 | O101: 10 | P101: 0.7419 | Q101: 0.9994
A102: 2054009 | B102: Terenos | D102: 20° 29' 42" | F102: 54° 52' 18" | J102: 943.844 | N102: 0.141 | O102: 10 | P102: 0.7419 | Q102: 0.9993
A103: 2054005 | B103: Terenos | D103: 20° 29' 37" | F103: 54° 48' 42" | J103: 965.606 | N103: 0.1314 | O103: 10 | P103: 0.7419 | Q103: 0.9994
A104: 2051028 | B104: Três Lagoas | D104: 20° 48' 00" | F104: 51° 43' 00" | J104: 663.285 | N104: 0.1632 | O104: 10 | P104: 0.7419 | Q104: 0.9991
A105: 2052004 | B105: Três Lagoas | D105: 20° 35' 54" | F105: 52° 13' 10" | J105: 784.513 | N105: 0.1574 | O105: 10 | P105: 0.7419 | Q105: 0.9992
A106: 2051027 | B106: Três Lagoas | D106: 20° 47' 00" | F106: 51° 43' 00" | J106: 824.518 | N106: 0.1525 | O106: 10 | P106: 0.7419 | Q106: 0.9992
A107: 2052006 | B107: Três Lagoas | D107: 20° 05' 37" | F107: 52° 09' 35" | J107: 851.334 | N107: 0.1471 | O107: 10 | P107: 0.7419 | Q107: 0.9993
A108: 2051045 | B108: Três Lagoas | D108: 20° 21' 45" | F108: 51° 25' 39" | J108: 856.446 | N108: 0.134 | O108: 10 | P108: 0.7419 | Q108: 0.9993 | R108: Selviria
A109: 2051009 | B109: Três Lagoas | D109: 20° 47' 00" | F109: 51° 37' 00" | J109: 870.763 | N109: 0.1449 | O109: 10 | P109: 0.7419 | Q109: 0.9993
A110: 2051037 | B110: Três Lagoas | D110: 20° 48' 00" | F110: 51° 38' 00" | J110: 898.463 | N110: 0.1741 | O110: 10 | P110: 0.7419 | Q110: 0.999
A111: 1952003 | B111: Três Lagoas | D111: 19° 57' 48" | F111: 52° 13' 34" | J111: 956.5331 | N111: 0.139 | O111: 10 | P111: 0.7419 | Q111: 0.9993
